Workbook

Sheet Notes
A1: ObvModified.xlsm; Traders Tip spreadsheet created for the April 2020 Issue
A2: Coded beginning 2020-February-06 by Ronald McAllister (rpmac_xltt@sprynet.com)
A4: This Workbook demonstrates an EXCEL version of the ideas presented
A5: by Vitali Apirine in an article titled "On-Balance Volume Modified (OBVM)"
A6: which originally appeared in the April 2020 issue of
A7: "Technical Analysis of Stocks and Commodities" magazine.
A9: * * * * * * * * * * * * * * * *
A11: Development Notes:
A12: New with this version of my T-Tips template:
A13: A toggeled, "Window Shade" treatment of the Correlation and OBVM indicator Charts. This is a facility that lets the user selectively enlarge one or the
A14: other of these charts to occupy the vertical space between the price and volume charts. Or the user can split the difference and show both.
A15: Note: Logically, the color bars / bands are tied to OBVM crossovers, so they will only be displayed when the OBVM chart is visible.
A18: This workbook contains and uses VBA macros and may take advantage of user defined VBA Class structures.
A19: Input Data:
A20: The data in this workbook is sorted date-descending (most recent date at the top). All cell formulas and
A21: VBA routines are built assuming this date sequence.
A23: ERROR 9 (already fixed in this spreadsheet)
A24: On or about Jan 29, 2020 Yahoo Finance changed the format of the split factor expression used their historical data downloads.
A25: The Split expression went from using "/" as in "New Share Number/Old Share Number",
A26: to using ":" as in "New Share Number:Old Share Number".
A27: This caused the then current version of my VBA code to fail with a "Runtime Error '9': subscript out of range".
A29: Fix for this ERROR 9
A30: For T-Tip spreadsheets from September 2018 up to present:
A31: Selecting the Debug option takes one into the VBA at the code line which causes the failure:
A32: CellArray(C_A_RowNdx, C_A_ColNdx + 1) = SplitFactors(1)
A33: Two lines above the failing VBA line is a line that reads:
A34: SplitFactors = Split(CsvColumns(CsvColNdx), "/")
A35: Change the / to a :
A36: The corrected line should now read
A37: SplitFactors = Split(CsvColumns(CsvColNdx), ":")
A39: If you are fixing several spreadsheets and do not want to use the failure to find the fix location,
A40: you can use VBA’s FIND dialog (Ctrl F) to look for the substring
A41: SplitFactors =
A42: Do include one space and the equal sign in your FIND string
A43: Select the "Current Project" option
A44: There should only be one instance.
A46: T-Tip spreadsheets prior to the September 2018 spreadsheet do not hard fail.
A48: They just get weird results in the split columns of the Input Price Data tab (soft fail).
A49: These older spreadsheets used different data retrieval and formatting logic.
A51: To fix these older spreadsheets:
A52: In the VBA editor, use find (CTRL-F).
A53: Select the "Current Project" option, and search for the following:
A54: OtherChar:="/"
A55: You are looking for a hit in a line reading:
A56: Other:=True, OtherChar:="/", _
A57: This line is part of a multiline block of code starting with a line that reads:
A58: SplitRange.Offset(0, 1).Resize(SpRows, 1).TextToColumns
A59: Change the / to a : so that the line reads
A60: Other:=True, OtherChar:=":", _
A63: 2019-04-04 Finally came up with a mechanism to align the left location and overall length of the cursor scroll bar so that the left most and right most
A64: scroll bar thumb positions visually align reasonably well with the left and right ends of the price chart horizontal axis.
A65: Makes it a little easier to visually align the Thumb and thus the cursor with points of interest on the charts.
A67: Older:
B68: My sincere apologies to our Macintosh based readers: Neither MSXML nor WinHttpRequest are supported in your environment. So as it stands this version of the spreadsheet will not work for you.
B69: See "Why this approach does not work for Macintosh" below.
B70: I am investigating cURL as a non-Querytable based approach for the Macintosh environment.
A72: The new Yahoo Finance history download interface has changed rather radically. The biggest hurdle being a pseudo-security requirement of adding a
B73: crumb character string to any URL requesting any type of history download. That crumb must match up (by way of some sort of hash algorithm) with
B74: the Yahoo Finance cookie that must also be sent with any request to the new Yahoo History down load interface.
B76: A crumb value is returned, buried in the HTML for any of what I call the "entry level" Yahoo Finance web pages (no crumb security requirement for entry level pages).
B77: A crumb may come with other Yahoo Finance pages. A crumb may even accompany some of the secured pages as well. I have not checked.
B79: Entry level pages are the top level pages of the various Yahoo Finance dialogs and include: Quote Lookup, Stock Summary Quote, and any of the pages
B80: with links in the horizontal row with the "Summary" link on the quote summary page such as Options, Historical Data, and the rest.
B82: To date I have found no way to get at this crumb value using any native EXCEL capabilities.
B84: So this crumb requirement effectively shuts out any solution that attempts to exclusively use built-in facilities of EXCEL, which is to say a purely Querytables solution.
B86: The approach built for this Traders Tip spreadsheet uses WINHTTP calls to Load the InputPriceData worksheet.
B88: First I call to get the HTML text for the Yahoo Summary Quote page using the requested symbol. From this HTML text I extract the full company name,
B89: the market it trades, the market status and time stamp, and finally the associated crumb string. There is a bunch of other useful bits buried in this HTML
B90: text that do not necessarily appear on the web page your browser presents. Perhaps some day I will go after and build a worksheet with these other bits.
B92: Next I add the freshly extracted crumb string to the URLs I use in three separate WINHTTP calls to retrieve Price history, Split history, and Dividend history respectively.
B94: From there VBA code proceeds as in the past to fill in the cell formulas and formatting that make the "prettied up" InputPriceData sheet.
A96: Why this approach works for Windows:
B97: WINHTTP maintains a temporary computer memory cache where cookies are maintained for as long as the WINHTTP object is instantiated.
B98: WINHTTP updates this cache any time a "set cookie" header accompanies a web response.
B99: Subsequent WINHTTP calls automatically search this cache for cookies and add any "appropriate" cookies to the headers
B100: of any web requests that get sent out.
B101: This cookie handling automation means that even if the response to our WINHTTP call for the Summary web page includes a new version of
B102: the Yahoo Finance cookie, the imbedded Crumb value will always match the cookie newly installed in the cache!
A105: Why this approach does not work for Macintosh:
B106: For what it is worth, the Macintosh version of the MS Office suite of products do in fact maintain a special, shared amongst themselves only, cookie cache.
B107: They automate cookie handling into and from this cache JUST for the Office products and any Querytable activity they might originate.
B109: This cache is not tied to, nor shared with, any browser that might be installed on the MAC. And I have not found anything with HTTP capabilities similar to
B110: MSXML that can work with that Office product cookie cache.
B112: When working in the MAC EXCEL environment, I have have not yet become conversant with a Mac based WINHTTP like capability.
B113: So l currently have no mechanism to replicate the non-Querytable data retrieval process I am using in Windows environments.
B114: A software product called CURL has been suggested as providing this capability in the MAC environment.
B115: A version of CURL is availble for the Windows So some day I may explore its capbilities and how to access those capabilities from VBA.
A117: Calculation and Chart Worksheet Usage Comments:
C118: In General, Items in Bolded BLUE are items you may freely change to play what-if games.
C119: Be sure to have a backup copy of the spreadsheet before you alter anything else.
A121: Features carried forward from the June 2016 version of my T-Tips Template
A122: Added a pair of buttons near cell F12 that will allow the user to step the charting window forward or backward one bar for each click.
A123: I find this to be a good way to test my understanding of the author's ideas as I step through the evolution of the price behavior and the indicators.
B125: First: In the "Help! I would like to plot data" area.
B126: Added button to resolve #NA problems by locating the bar in the input data with a slightly more recent date than what the user actually requested.
B127: I find this particularly useful when I have a general idea of where I want to be date wise. Now I can pick a set of dates "out of the air".
B128: If either (or both) of my date specifications fall between dates that are available in the price history,
B129: this button will resolve them to the dates of the nearest, slightly more recent input bars.
B130: I can then refine my data interval search as necessary from there.
B131: Really great when working with Weekly or Monthly studies!
C132: 2016Jun11 - added logic to the "I would like to chart.." button to detect #N/A values and terminate
C133: gracefully with a message instead of blowing up in the charting logic.
B135: Second: In the "Price Chart Windowing Controls" area. (A11 and A12)
B136: When retrieving data for a new symbol or when changing from daily to weekly or monthly data, there was the possibility that the
B137: residual settings in A11 and A12 would fall outside of the number bars available on the input data tab after the new data retrieval.
B138: In certain combinations, this could create a serious error in the chart sizing logic and crash the spreadsheet.
B139: I have taken this opportunity to update the validity checking logic used in the chart sizing macros
B140: to adjust these values as necessary so that they fall within the boundaries of the newly retrieved input data.
A141: Features carried forward from the October 2015 Traders Tips Template
B142: Improved automation: changes to any of the following will automatically initiate calculations appropriate to reflect a change.
C143: Changing either of cells A11 (pan) or A12 (zoom) will automatically initiate the same chart sizing macros that the manual
C144: "Set Chart" button uses.

Sheet InputPriceData
A1: Lockheed Martin Corporation (LMT) -NYSE (Daily)
IJ2: 241.79
A3: Request Online Yahoo History for: | F3: Market State == > | G3: At close: | H3: 16:05:00 | I3: EST
A4: Symbol | B4: LMT | D4: Valid | I4: =OFFSET(I4,-2,0,1,1) -> 0
A5: From | B5: 1950-01-01 | D5: Data | AD5: Trailing 12 Div return (Cur Close)
A6: To | B6: =NOW() -> 2020-02-15T17:27:52.440 | D6: Types | E6: =VLOOKUP(B7,D7:E10,2,FALSE) -> d
A7: Data Type | B7: Daily | D7: Daily | E7: d
A8: Crumb | B8: J7njWNrnD1R | D8: Weekly | E8: w
A9: Available Data | D9: Monthly | E9: m
A10: Bar Count: | B10: 10875 | AD10: =OFFSET(AC15,1,0,1,1)/OFFSET(N15,1,0,1,1) -> 0.02055498458
A11: From: | B11: =IF(B10<=0,"",OFFSET(B15,B10,IF(HistReqDataType="v",1,0),1,1)) -> 1977-01-03 | W11: Trailing 12 Month Dividend Returns
A12: To: | B12: =IF(B10<=0,"",IF(HistReqDataType="v",OFFSET(B15,2,1,1,1),OFFSET(B15,1,0,1,1))) -> 2020-02-14 | W12: Raw Close price on Dividend date | X12: Div Year and Month | Y12: Looking for year ago Div Year and Month | Z12: Year ago Div Date we found | AA12: row offset to year ago div Date | AB12: Same month flag | AC12: Trailing 12 Div Total | AD12: Trailing 12 Div return
Q13: Split History | S13: 3 | T13: Running | U13: Dividend History
B14: Raw Data Values | H14: Adjusted | I14: Price Adjust | J14: Vol Adjust | K14: Adjusted Values | P14: Last | Q14: Effective | R14: Shares | T14: Vol Adjust | V14: 146
A15: RelRow | B15: Date | C15: Open | D15: High | E15: Low | F15: Close | G15: Volume | H15: Close | I15: Factor | J15: Factor | K15: Open | L15: High | M15: Low | N15: Close | O15: Volume | P15: Trade | Q15: 43877 | R15: New | S15: Old | T15: 1 | U15: Date | V15: $ / Share
A16: 1 | B16: 2020-02-14 | C16: 434.980011 | D16: 438.470001 | E16: 434.309998 | F16: 437.850006 | G16: 948600 | H16: 437.850006 | I16: =IF(F16=0,1,H16/F16) -> 1 | J16: =INDEX(OFFSET($T$15,0,0,$S$13+1,1),MATCH(B16,OFFSET($Q$15,0,0,$S$13+1,1),-1)) -> 1 | K16: =ROUND($I16*C16,2) -> 434.98 | L16: =ROUND($I16*D16,2) -> 438.47 | M16: 434.31 | N16: 437.85 | O16: =G16*J16 -> 948600 | Q16: 1999-01-04 | R16: 2 | S16: 1 | T16: 2 | U16: 2019-11-29 | V16: 2.4 | W16: =(INDEX(OFFSET($F$15,1,0,$B$10,1),MATCH(U16,OFFSET($B$15,1,0,$B$10,1),-1))) -> 391.029999 | X16: =YEAR(U16)&RIGHT("0"&MONTH(U16),2) -> 201911 | Y16: =YEAR(U16)-1&RIGHT("0"&MONTH(U16),2) -> 201811 | Z16: =OFFSET(U15,AA16,0,1,1) -> 2018-11-30 | AA16: =MATCH(Y16,OFFSET($X$15,A16,0,$V$14+1-A16,1),-1) -> 5 | AB16: =IF(OR(AND(YEAR(U16)=YEAR(Z16),MONTH(U16)=MONTH(Z16)),MONTH(U16)=MONTH(Z16)),1,0) -> 1 | AC16: =(V16+IF(AA16-AB16=0,0,IFERROR(SUM(OFFSET(V16,1,0,AA16-AB16-1,1)),0))) -> 9 | AD16: =AC16/(INDEX(OFFSET($F$15,1,0,$B$10,1),MATCH(U16,OFFSET($B$15,1,0,$B$10,1),-1))) -> 0.02301613693
A17: 2 | B17: 2020-02-13 | C17: 435.799988 | D17: 439.290009 | E17: 434.299988 | F17: 434.700012 | G17: 800200 | H17: 434.700012 | I17: =IF(F17=0,1,H17/F17) -> 1 | J17: =INDEX(OFFSET($T$15,0,0,$S$13+1,1),MATCH(B17,OFFSET($Q$15,0,0,$S$13+1,1),-1)) -> 1 | K17: =ROUND($I17*C17,2) -> 435.8 | L17: =ROUND($I17*D17,2) -> 439.29 | M17: =ROUND($I17*E17,2) -> 434.3 | N17: =ROUND($I17*F17,2) -> 434.7 | O17: =G17*J17 -> 800200 | Q17: 1995-03-16 | R17: 163 | S17: 100 | T17: 3.26 | U17: 2019-08-30 | V17: 2.2 | W17: =(INDEX(OFFSET($F$15,1,0,$B$10,1),MATCH(U17,OFFSET($B$15,1,0,$B$10,1),-1))) -> 384.109985 | X17: =YEAR(U17)&RIGHT("0"&MONTH(U17),2) -> 201908 | Y17: =YEAR(U17)-1&RIGHT("0"&MONTH(U17),2) -> 201808 | Z17: =OFFSET(U16,AA17,0,1,1) -> 2018-08-31 | AA17: =MATCH(Y17,OFFSET($X$15,A17,0,$V$14+1-A17,1),-1) -> 5 | AB17: =IF(OR(AND(YEAR(U17)=YEAR(Z17),MONTH(U17)=MONTH(Z17)),MONTH(U17)=MONTH(Z17)),1,0) -> 1 | AC17: =(V17+IF(AA17-AB17=0,0,IFERROR(SUM(OFFSET(V17,1,0,AA17-AB17-1,1)),0))) -> 8.8 | AD17: =AC17/(INDEX(OFFSET($F$15,1,0,$B$10,1),MATCH(U17,OFFSET($B$15,1,0,$B$10,1),-1))) -> 0.02291010477
A18: 3 | B18: 2020-02-12 | C18: 439.01001 | D18: 439.690002 | E18: 434.600006 | F18: 436.600006 | G18: 1419200 | H18: 436.600006 | I18: 1 | J18: 1 | K18: 439.01 | L18: 439.69 | M18: 434.6 | N18: 436.6 | O18: 1419200 | Q18: 1983-09-09 | R18: 3 | S18: 1 | T18: 9.78 | U18: 2019-05-31 | V18: 2.2 | W18: 338.540009 | X18: 201905 | Y18: 201805 | Z18: 2018-05-31 | AA18: 5 | AB18: 1 | AC18: 8.6 | AD18: 0.02540320131
A19: 4 | B19: 2020-02-11 | C19: 441.359985 | D19: 442.529999 | E19: 437.470001 | F19: 439.850006 | G19: 744600 | H19: 439.850006 | I19: 1 | J19: 1 | K19: 441.36 | L19: 442.53 | M19: 437.47 | N19: 439.85 | O19: 744600 | U19: 2019-02-28 | V19: 2.2 | W19: 309.410004 | X19: 201902 | Y19: 201802 | Z19: 2018-02-28 | AA19: 5 | AB19: 1 | AC19: 8.4 | AD19: 0.02714844346
A20: 5 | B20: 2020-02-10 | C20: 439 | D20: 441.519989 | E20: 437.820007 | F20: 439.76001 | G20: 870400 | H20: 439.76001 | I20: 1 | J20: 1 | K20: 439 | L20: 441.52 | M20: 437.82 | N20: 439.76 | O20: 870400 | U20: 2018-11-30 | V20: 2.2 | W20: 300.429993 | X20: 201811 | Y20: 201711 | Z20: 2017-11-30 | AA20: 5 | AB20: 1 | AC20: 8.2 | AD20: 0.02729421227
A21: 6 | B21: 2020-02-07 | C21: 438.140015 | D21: 441.209991 | E21: 437.290009 | F21: 439.170013 | G21: 883800 | H21: 439.170013 | I21: 1 | J21: 1 | K21: 438.14 | L21: 441.21 | M21: 437.29 | N21: 439.17 | O21: 883800 | U21: 2018-08-31 | V21: 2 | W21: 320.410004 | X21: 201808 | Y21: 201708 | Z21: 2017-08-30 | AA21: 5 | AB21: 1 | AC21: 8 | AD21: 0.02496800943
A22: 7 | B22: 2020-02-06 | C22: 435.559998 | D22: 439.859985 | E22: 434.910004 | F22: 438.970001 | G22: 833500 | H22: 438.970001 | I22: 1 | J22: 1 | K22: 435.56 | L22: 439.86 | M22: 434.91 | N22: 438.97 | O22: 833500 | U22: 2018-05-31 | V22: 2 | W22: 314.540009 | X22: 201805 | Y22: 201705 | Z22: 2017-05-30 | AA22: 5 | AB22: 1 | AC22: 7.82 | AD22: 0.02486170209
A23: 8 | B23: 2020-02-05 | C23: 433.320007 | D23: 435.920013 | E23: 429.019989 | F23: 435.190002 | G23: 1251800 | H23: 435.190002 | I23: 1 | J23: 1 | K23: 433.32 | L23: 435.92 | M23: 429.02 | N23: 435.19 | O23: 1251800 | U23: 2018-02-28 | V23: 2 | W23: 352.440002 | X23: 201802 | Y23: 201702 | Z23: 2017-02-27 | AA23: 5 | AB23: 1 | AC23: 7.64 | AD23: 0.02167744852
A24: 9 | B24: 2020-02-04 | C24: 425.459991 | D24: 431.98999 | E24: 425.459991 | F24: 430.779999 | G24: 1216300 | H24: 430.779999 | I24: 1 | J24: 1 | K24: 425.46 | L24: 431.99 | M24: 425.46 | N24: 430.78 | O24: 1216300 | U24: 2017-11-30 | V24: 2 | W24: 319.119995 | X24: 201711 | Y24: 201611 | Z24: 2016-11-29 | AA24: 5 | AB24: 1 | AC24: 7.46 | AD24: 0.02337678653
A25: 10 | B25: 2020-02-03 | C25: 429.519989 | D25: 430 | E25: 422.040009 | F25: 423.859985 | G25: 1795800 | H25: 423.859985 | I25: 1 | J25: 1 | K25: 429.52 | L25: 430 | M25: 422.04 | N25: 423.86 | O25: 1795800 | U25: 2017-08-30 | V25: 1.82 | W25: 306.299988 | X25: 201708 | Y25: 201608 | Z25: 2016-08-30 | AA25: 5 | AB25: 1 | AC25: 7.28 | AD25: 0.02376754909
A26: 11 | B26: 2020-01-31 | C26: 434.929993 | D26: 435.570007 | E26: 426.100006 | F26: 428.119995 | G26: 1650100 | H26: 428.119995 | I26: 1 | J26: 1 | K26: 434.93 | L26: 435.57 | M26: 426.1 | N26: 428.12 | O26: 1650100 | U26: 2017-05-30 | V26: 1.82 | W26: 280.089996 | X26: 201705 | Y26: 201605 | Z26: 2016-05-27 | AA26: 5 | AB26: 1 | AC26: 7.11 | AD26: 0.02538469814
A27: 12 | B27: 2020-01-30 | C27: 430.339996 | D27: 437 | E27: 430.339996 | F27: 435.899994 | G27: 1210200 | H27: 435.899994 | I27: 1 | J27: 1 | K27: 430.34 | L27: 437 | M27: 430.34 | N27: 435.9 | O27: 1210200 | U27: 2017-02-27 | V27: 1.82 | W27: 269.359985 | X27: 201702 | Y27: 201602 | Z27: 2016-02-26 | AA27: 5 | AB27: 1 | AC27: 6.94 | AD27: 0.0257647772
A28: 13 | B28: 2020-01-29 | C28: 437.720001 | D28: 437.98999 | E28: 431.019989 | F28: 433.839996 | G28: 1268500 | H28: 433.839996 | I28: 1 | J28: 1 | K28: 437.72 | L28: 437.99 | M28: 431.02 | N28: 433.84 | O28: 1268500 | U28: 2016-11-29 | V28: 1.82 | W28: 266.579987 | X28: 201611 | Y28: 201511 | Z28: 2015-11-27 | AA28: 5 | AB28: 1 | AC28: 6.77 | AD28: 0.02539575486
A29: 14 | B29: 2020-01-28 | C29: 434.769989 | D29: 438.98999 | E29: 426.269989 | F29: 437.170013 | G29: 2063200 | H29: 437.170013 | I29: 1 | J29: 1 | K29: 434.77 | L29: 438.99 | M29: 426.27 | N29: 437.17 | O29: 2063200 | U29: 2016-08-30 | V29: 1.65 | W29: 239.449997 | X29: 201608 | Y29: 201508 | Z29: 2015-08-28 | AA29: 5 | AB29: 1 | AC29: 6.6 | AD29: 0.02756316593
A30: 15 | B30: 2020-01-27 | C30: 425.859985 | D30: 434.450012 | E30: 425.859985 | F30: 432.380005 | G30: 1737900 | H30: 432.380005 | I30: 1 | J30: 1 | K30: 425.86 | L30: 434.45 | M30: 425.86 | N30: 432.38 | O30: 1737900 | U30: 2016-05-27 | V30: 1.65 | W30: 240.089996 | X30: 201605 | Y30: 201505 | Z30: 2015-05-28 | AA30: 5 | AB30: 1 | AC30: 6.45 | AD30: 0.0268649261
A31: 16 | B31: 2020-01-24 | C31: 429.899994 | D31: 433.519989 | E31: 429.690002 | F31: 432.5 | G31: 1086700 | H31: 432.5 | I31: 1 | J31: 1 | K31: 429.9 | L31: 433.52 | M31: 429.69 | N31: 432.5 | O31: 1086700 | U31: 2016-02-26 | V31: 1.65 | W31: 217.240005 | X31: 201602 | Y31: 201502 | Z31: 2015-02-26 | AA31: 5 | AB31: 1 | AC31: 6.3 | AD31: 0.02900018346
A32: 17 | B32: 2020-01-23 | C32: 424.059998 | D32: 429.559998 | E32: 424 | F32: 428.779999 | G32: 978400 | H32: 428.779999 | I32: 1 | J32: 1 | K32: 424.06 | L32: 429.56 | M32: 424 | N32: 428.78 | O32: 978400 | U32: 2015-11-27 | V32: 1.65 | W32: 225.910004 | X32: 201511 | Y32: 201411 | Z32: 2014-11-26 | AA32: 5 | AB32: 1 | AC32: 6.15 | AD32: 0.02722323001
A33: 18 | B33: 2020-01-22 | C33: 427.5 | D33: 428.5 | E33: 424.359985 | F33: 424.420013 | G33: 918700 | H33: 424.420013 | I33: 1 | J33: 1 | K33: 427.5 | L33: 428.5 | M33: 424.36 | N33: 424.42 | O33: 918700 | U33: 2015-08-28 | V33: 1.5 | W33: 203.899994 | X33: 201508 | Y33: 201408 | Z33: 2014-08-29 | AA33: 5 | AB33: 1 | AC33: 6 | AD33: 0.02942619017
A34: 19 | B34: 2020-01-21 | C34: 424.420013 | D34: 427.779999 | E34: 423.01001 | F34: 426.149994 | G34: 1071400 | H34: 426.149994 | I34: 1 | J34: 1 | K34: 424.42 | L34: 427.78 | M34: 423.01 | N34: 426.15 | O34: 1071400 | U34: 2015-05-28 | V34: 1.5 | W34: 190.119995 | X34: 201505 | Y34: 201405 | Z34: 2014-05-29 | AA34: 6 | AB34: 1 | AC34: 7.16 | AD34: 0.03766042599
A35: 20 | B35: 2020-01-17 | C35: 426.609985 | D35: 427.540009 | E35: 424.5 | F35: 425.660004 | G35: 1195600 | H35: 425.660004 | I35: 1 | J35: 1 | K35: 426.61 | L35: 427.54 | M35: 424.5 | N35: 425.66 | O35: 1195600 | U35: 2015-02-26 | V35: 1.5 | W35: 201.330002 | X35: 201502 | Y35: 201402 | Z35: 2014-02-27 | AA35: 6 | AB35: 1 | AC35: 6.99 | AD35: 0.03471911752
A36: 21 | B36: 2020-01-16 | C36: 423.130005 | D36: 425.73999 | E36: 420.670013 | F36: 425.700012 | G36: 1085200 | H36: 425.700012 | I36: 1 | J36: 1 | K36: 423.13 | L36: 425.74 | M36: 420.67 | N36: 425.7 | O36: 1085200 | U36: 2014-11-26 | V36: 1.5 | W36: 189.149994 | X36: 201411 | Y36: 201311 | Z36: 2013-11-27 | AA36: 6 | AB36: 1 | AC36: 6.82 | AD36: 0.03605604132
A37: 22 | B37: 2020-01-15 | C37: 416.420013 | D37: 421.480011 | E37: 416.140015 | F37: 420.950012 | G37: 833000 | H37: 420.950012 | I37: 1 | J37: 1 | K37: 416.42 | L37: 421.48 | M37: 416.14 | N37: 420.95 | O37: 833000 | U37: 2014-08-29 | V37: 1.33 | W37: 174 | X37: 201408 | Y37: 201308 | Z37: 2013-08-29 | AA37: 6 | AB37: 1 | AC37: 6.65 | AD37: 0.0382183908
A38: 23 | B38: 2020-01-14 | C38: 417.589996 | D38: 418.269989 | E38: 415.070007 | F38: 416.140015 | G38: 967200 | H38: 416.140015 | I38: 1 | J38: 1 | K38: 417.59 | L38: 418.27 | M38: 415.07 | N38: 416.14 | O38: 967200 | U38: 2014-08-28 | V38: 1.33 | W38: 174.100006 | X38: 201408 | Y38: 201308 | Z38: 2013-08-29 | AA38: 5 | AB38: 1 | AC38: 5.32 | AD38: 0.03055715001
A39: 24 | B39: 2020-01-13 | C39: 414.940002 | D39: 420.959991 | E39: 414.660004 | F39: 419.019989 | G39: 986800 | H39: 419.019989 | I39: 1 | J39: 1 | K39: 414.94 | L39: 420.96 | M39: 414.66 | N39: 419.02 | O39: 986800 | U39: 2014-05-29 | V39: 1.33 | W39: 163.149994 | X39: 201405 | Y39: 201305 | Z39: 2013-05-30 | AA39: 5 | AB39: 1 | AC39: 5.14 | AD39: 0.03150475139
A40: 25 | B40: 2020-01-10 | C40: 415 | D40: 415.600006 | E40: 412.480011 | F40: 413.829987 | G40: 987800 | H40: 413.829987 | I40: 1 | J40: 1 | K40: 415 | L40: 415.6 | M40: 412.48 | N40: 413.83 | O40: 987800 | U40: 2014-02-27 | V40: 1.33 | W40: 161.440002 | X40: 201402 | Y40: 201302 | Z40: 2013-02-27 | AA40: 5 | AB40: 1 | AC40: 4.96 | AD40: 0.03072348822
A41: 26 | B41: 2020-01-09 | C41: 410.48999 | D41: 416 | E41: 410 | F41: 414.929993 | G41: 1064300 | H41: 414.929993 | I41: 1 | J41: 1 | K41: 410.49 | L41: 416 | M41: 410 | N41: 414.93 | O41: 1064300 | U41: 2013-11-27 | V41: 1.33 | W41: 143.940002 | X41: 201311 | Y41: 201211 | Z41: 2012-11-29 | AA41: 5 | AB41: 1 | AC41: 4.78 | AD41: 0.03320828077
A42: 27 | B42: 2020-01-08 | C42: 417.059998 | D42: 418.179993 | E42: 409.720001 | F42: 411.029999 | G42: 1708100 | H42: 411.029999 | I42: 1 | J42: 1 | K42: 417.06 | L42: 418.18 | M42: 409.72 | N42: 411.03 | O42: 1708100 | U42: 2013-08-29 | V42: 1.15 | W42: 122.339996 | X42: 201308 | Y42: 201208 | Z42: 2012-08-30 | AA42: 5 | AB42: 1 | AC42: 4.6 | AD42: 0.03760013201
A43: 28 | B43: 2020-01-07 | C43: 411.25 | D43: 416.119995 | E43: 408.290009 | F43: 414.5 | G43: 1059900 | H43: 414.5 | I43: 1 | J43: 1 | K43: 411.25 | L43: 416.12 | M43: 408.29 | N43: 414.5 | O43: 1059900 | U43: 2013-05-30 | V43: 1.15 | W43: 107.029999 | X43: 201305 | Y43: 201205 | Z43: 2012-05-30 | AA43: 5 | AB43: 1 | AC43: 4.45 | AD43: 0.0415771283
A44: 29 | B44: 2020-01-06 | C44: 417.98999 | D44: 417.98999 | E44: 407.690002 | F44: 413.109985 | G44: 2477800 | H44: 413.109985 | I44: 1 | J44: 1 | K44: 417.99 | L44: 417.99 | M44: 407.69 | N44: 413.11 | O44: 2477800 | U44: 2013-02-27 | V44: 1.15 | W44: 88.330002 | X44: 201302 | Y44: 201202 | Z44: 2012-02-28 | AA44: 5 | AB44: 1 | AC44: 4.3 | AD44: 0.0486810812
A45: 30 | B45: 2020-01-03 | C45: 404.019989 | D45: 417.170013 | E45: 403 | F45: 413.73999 | G45: 2990100 | H45: 413.73999 | I45: 1 | J45: 1 | K45: 404.02 | L45: 417.17 | M45: 403 | N45: 413.74 | O45: 2990100 | U45: 2012-11-29 | V45: 1.15 | W45: 93.040001 | X45: 201211 | Y45: 201111 | Z45: 2011-11-29 | AA45: 5 | AB45: 1 | AC45: 4.15 | AD45: 0.04460447072
A46: 31 | B46: 2020-01-02 | C46: 392.859985 | D46: 399.369995 | E46: 390.950012 | F46: 399.369995 | G46: 1258400 | H46: 399.369995 | I46: 1 | J46: 1 | K46: 392.86 | L46: 399.37 | M46: 390.95 | N46: 399.37 | O46: 1258400 | U46: 2012-08-30 | V46: 1 | W46: 90.93 | X46: 201208 | Y46: 201108 | Z46: 2011-08-30 | AA46: 5 | AB46: 1 | AC46: 4 | AD46: 0.04398988233
A47: 32 | B47: 2019-12-31 | C47: 391.75 | D47: 391.980011 | E47: 387.070007 | F47: 389.380005 | G47: 775400 | H47: 389.380005 | I47: 1 | J47: 1 | K47: 391.75 | L47: 391.98 | M47: 387.07 | N47: 389.38 | O47: 775400 | U47: 2012-05-30 | V47: 1 | W47: 82.800003 | X47: 201205 | Y47: 201105 | Z47: 2011-05-27 | AA47: 5 | AB47: 1 | AC47: 3.75 | AD47: 0.04528985343
A48: 33 | B48: 2019-12-30 | C48: 393.649994 | D48: 393.76001 | E48: 390.869995 | F48: 391.899994 | G48: 776900 | H48: 391.899994 | I48: 1 | J48: 1 | K48: 393.65 | L48: 393.76 | M48: 390.87 | N48: 391.9 | O48: 776900 | U48: 2012-02-28 | V48: 1 | W48: 88.699997 | X48: 201202 | Y48: 201102 | Z48: 2011-02-25 | AA48: 5 | AB48: 1 | AC48: 3.5 | AD48: 0.03945885139
A49: 34 | B49: 2019-12-27 | C49: 393.98999 | D49: 394.5 | E49: 391.940002 | F49: 393.600006 | G49: 728800 | H49: 393.600006 | I49: 1 | J49: 1 | K49: 393.99 | L49: 394.5 | M49: 391.94 | N49: 393.6 | O49: 728800 | U49: 2011-11-29 | V49: 1 | W49: 76.510002 | X49: 201111 | Y49: 201011 | Z49: 2010-11-29 | AA49: 5 | AB49: 1 | AC49: 3.25 | AD49: 0.04247810633
A50: 35 | B50: 2019-12-26 | C50: 390.899994 | D50: 392.450012 | E50: 390.480011 | F50: 392.299988 | G50: 711600 | H50: 392.299988 | I50: 1 | J50: 1 | K50: 390.9 | L50: 392.45 | M50: 390.48 | N50: 392.3 | O50: 711600 | U50: 2011-08-30 | V50: 0.75 | W50: 74.099998 | X50: 201108 | Y50: 201008 | Z50: 2010-08-30 | AA50: 5 | AB50: 1 | AC50: 3 | AD50: 0.04048583105
A51: 36 | B51: 2019-12-24 | C51: 392.350006 | D51: 392.350006 | E51: 389.529999 | F51: 390.170013 | G51: 516300 | H51: 390.170013 | I51: 1 | J51: 1 | K51: 392.35 | L51: 392.35 | M51: 389.53 | N51: 390.17 | O51: 516300 | U51: 2011-05-27 | V51: 0.75 | W51: 77.260002 | X51: 201105 | Y51: 201005 | Z51: 2010-05-27 | AA51: 5 | AB51: 1 | AC51: 2.88 | AD51: 0.03727672697
A52: 37 | B52: 2019-12-23 | C52: 387.660004 | D52: 394.690002 | E52: 387.589996 | F52: 391.899994 | G52: 1050400 | H52: 391.899994 | I52: 1 | J52: 1 | K52: 387.66 | L52: 394.69 | M52: 387.59 | N52: 391.9 | O52: 1050400 | U52: 2011-02-25 | V52: 0.75 | W52: 80.110001 | X52: 201102 | Y52: 201002 | Z52: 2010-02-25 | AA52: 5 | AB52: 1 | AC52: 2.76 | AD52: 0.03445262721
A53: 38 | B53: 2019-12-20 | C53: 385.029999 | D53: 386.640015 | E53: 383 | F53: 386.470001 | G53: 1599600 | H53: 386.470001 | I53: 1 | J53: 1 | K53: 385.03 | L53: 386.64 | M53: 383 | N53: 386.47 | O53: 1599600 | U53: 2010-11-29 | V53: 0.75 | W53: 68.199997 | X53: 201011 | Y53: 200911 | Z53: 2009-11-27 | AA53: 5 | AB53: 1 | AC53: 2.64 | AD53: 0.03870967912
A54: 39 | B54: 2019-12-19 | C54: 380.98999 | D54: 384.679993 | E54: 380.230011 | F54: 383.149994 | G54: 766300 | H54: 383.149994 | I54: 1 | J54: 1 | K54: 380.99 | L54: 384.68 | M54: 380.23 | N54: 383.15 | O54: 766300 | U54: 2010-08-30 | V54: 0.63 | W54: 70.220001 | X54: 201008 | Y54: 200908 | Z54: 2009-08-28 | AA54: 5 | AB54: 1 | AC54: 2.52 | AD54: 0.03588721111
A55: 40 | B55: 2019-12-18 | C55: 387.399994 | D55: 387.640015 | E55: 379.660004 | F55: 380.570007 | G55: 1526000 | H55: 380.570007 | I55: 1 | J55: 1 | K55: 387.4 | L55: 387.64 | M55: 379.66 | N55: 380.57 | O55: 1526000 | U55: 2010-05-27 | V55: 0.63 | W55: 80.559998 | X55: 201005 | Y55: 200905 | Z55: 2009-05-28 | AA55: 5 | AB55: 1 | AC55: 2.46 | AD55: 0.03053624703
A56: 41 | B56: 2019-12-17 | C56: 385 | D56: 388 | E56: 385 | F56: 386.890015 | G56: 730000 | H56: 386.890015 | I56: 1 | J56: 1 | K56: 385 | L56: 388 | M56: 385 | N56: 386.89 | O56: 730000 | U56: 2010-02-25 | V56: 0.63 | W56: 76.989998 | X56: 201002 | Y56: 200902 | Z56: 2009-02-26 | AA56: 5 | AB56: 1 | AC56: 2.4 | AD56: 0.0311728804
A57: 42 | B57: 2019-12-16 | C57: 387.899994 | D57: 388.350006 | E57: 384.049988 | F57: 385.950012 | G57: 847500 | H57: 385.950012 | I57: 1 | J57: 1 | K57: 387.9 | L57: 388.35 | M57: 384.05 | N57: 385.95 | O57: 847500 | U57: 2009-11-27 | V57: 0.63 | W57: 77.099998 | X57: 200911 | Y57: 200811 | Z57: 2008-11-26 | AA57: 5 | AB57: 1 | AC57: 2.34 | AD57: 0.03035019534
A58: 43 | B58: 2019-12-13 | C58: 384 | D58: 387.779999 | E58: 384 | F58: 386.470001 | G58: 658000 | H58: 386.470001 | I58: 1 | J58: 1 | K58: 384 | L58: 387.78 | M58: 384 | N58: 386.47 | O58: 658000 | U58: 2009-08-28 | V58: 0.57 | W58: 74.949997 | X58: 200908 | Y58: 200808 | Z58: 2008-08-28 | AA58: 5 | AB58: 1 | AC58: 2.28 | AD58: 0.0304202814
A59: 44 | B59: 2019-12-12 | C59: 386 | D59: 387.790009 | E59: 383.450012 | F59: 384.049988 | G59: 736100 | H59: 384.049988 | I59: 1 | J59: 1 | K59: 386 | L59: 387.79 | M59: 383.45 | N59: 384.05 | O59: 736100 | U59: 2009-05-28 | V59: 0.57 | W59: 82.989998 | X59: 200905 | Y59: 200805 | Z59: 2008-05-29 | AA59: 5 | AB59: 1 | AC59: 2.13 | AD59: 0.02566574348
A60: 45 | B60: 2019-12-11 | C60: 385.51001 | D60: 386.609985 | E60: 384.029999 | F60: 386.23999 | G60: 578900 | H60: 386.23999 | I60: 1 | J60: 1 | K60: 385.51 | L60: 386.61 | M60: 384.03 | N60: 386.24 | O60: 578900 | U60: 2009-02-26 | V60: 0.57 | W60: 68.93 | X60: 200902 | Y60: 200802 | Z60: 2008-02-28 | AA60: 5 | AB60: 1 | AC60: 1.98 | AD60: 0.02872479327
A61: 46 | B61: 2019-12-10 | C61: 383.5 | D61: 386.769989 | E61: 383.25 | F61: 384.440002 | G61: 862100 | H61: 384.440002 | I61: 1 | J61: 1 | K61: 383.5 | L61: 386.77 | M61: 383.25 | N61: 384.44 | O61: 862100 | U61: 2008-11-26 | V61: 0.57 | W61: 73.529999 | X61: 200811 | Y61: 200711 | Z61: 2007-11-29 | AA61: 5 | AB61: 1 | AC61: 1.83 | AD61: 0.02488780124
A62: 47 | B62: 2019-12-09 | C62: 386.220001 | D62: 387.420013 | E62: 383.230011 | F62: 383.339996 | G62: 821600 | H62: 383.339996 | I62: 1 | J62: 1 | K62: 386.22 | L62: 387.42 | M62: 383.23 | N62: 383.34 | O62: 821600 | U62: 2008-08-28 | V62: 0.42 | W62: 119.589996 | X62: 200808 | Y62: 200708 | Z62: 2007-08-30 | AA62: 5 | AB62: 1 | AC62: 1.68 | AD62: 0.01404799779
A63: 48 | B63: 2019-12-06 | C63: 387.170013 | D63: 388.899994 | E63: 385.100006 | F63: 386.859985 | G63: 709600 | H63: 386.859985 | I63: 1 | J63: 1 | K63: 387.17 | L63: 388.9 | M63: 385.1 | N63: 386.86 | O63: 709600 | U63: 2008-05-29 | V63: 0.42 | W63: 108.610001 | X63: 200805 | Y63: 200705 | Z63: 2007-05-30 | AA63: 5 | AB63: 1 | AC63: 1.61 | AD63: 0.01482368092
A64: 49 | B64: 2019-12-05 | C64: 386.059998 | D64: 386.5 | E64: 383.01001 | F64: 385.940002 | G64: 1203700 | H64: 385.940002 | I64: 1 | J64: 1 | K64: 386.06 | L64: 386.5 | M64: 383.01 | N64: 385.94 | O64: 1203700 | U64: 2008-02-28 | V64: 0.42 | W64: 105.160004 | X64: 200802 | Y64: 200702 | Z64: 2007-02-27 | AA64: 5 | AB64: 1 | AC64: 1.54 | AD64: 0.01464435091
A65: 50 | B65: 2019-12-04 | C65: 383.529999 | D65: 387.950012 | E65: 382.279999 | F65: 384.579987 | G65: 1081100 | H65: 384.579987 | I65: 1 | J65: 1 | K65: 383.53 | L65: 387.95 | M65: 382.28 | N65: 384.58 | O65: 1081100 | U65: 2007-11-29 | V65: 0.42 | W65: 112 | X65: 200711 | Y65: 200611 | Z65: 2006-11-29 | AA65: 5 | AB65: 1 | AC65: 1.47 | AD65: 0.013125
A66: 51 | B66: 2019-12-03 | C66: 381.429993 | D66: 384.640015 | E66: 380.140015 | F66: 381.619995 | G66: 1384300 | H66: 381.619995 | I66: 1 | J66: 1 | K66: 381.43 | L66: 384.64 | M66: 380.14 | N66: 381.62 | O66: 1384300 | U66: 2007-08-30 | V66: 0.35 | W66: 98.650002 | X66: 200708 | Y66: 200608 | Z66: 2006-08-30 | AA66: 5 | AB66: 1 | AC66: 1.4 | AD66: 0.01419158613
A67: 52 | B67: 2019-12-02 | C67: 390.709991 | D67: 391.529999 | E67: 383.440002 | F67: 383.619995 | G67: 1283400 | H67: 383.619995 | I67: 1 | J67: 1 | K67: 390.71 | L67: 391.53 | M67: 383.44 | N67: 383.62 | O67: 1283400 | U67: 2007-05-30 | V67: 0.35 | W67: 98.220001 | X67: 200705 | Y67: 200605 | Z67: 2006-05-30 | AA67: 5 | AB67: 1 | AC67: 1.35 | AD67: 0.01374465472
A68: 53 | B68: 2019-11-29 | C68: 392 | D68: 392.200012 | E68: 390.040009 | F68: 391.029999 | G68: 401500 | H68: 391.029999 | I68: 1 | J68: 1 | K68: 392 | L68: 392.2 | M68: 390.04 | N68: 391.03 | O68: 401500 | U68: 2007-02-27 | V68: 0.35 | W68: 97.57 | X68: 200702 | Y68: 200602 | Z68: 2006-02-27 | AA68: 5 | AB68: 1 | AC68: 1.3 | AD68: 0.01332376755
A69: 54 | B69: 2019-11-27 | C69: 393.630005 | D69: 394.480011 | E69: 391.619995 | F69: 394.23999 | G69: 770300 | H69: 391.839996 | I69: 0.9939123527 | J69: 1 | K69: 391.23 | L69: 392.08 | M69: 389.24 | N69: 391.84 | O69: 770300 | U69: 2006-11-29 | V69: 0.35 | W69: 90.620003 | X69: 200611 | Y69: 200511 | Z69: 2005-11-29 | AA69: 5 | AB69: 1 | AC69: 1.25 | AD69: 0.01379386403
A70: 55 | B70: 2019-11-26 | C70: 390.600006 | D70: 395.950012 | E70: 389.980011 | F70: 392.5 | G70: 1206600 | H70: 390.110596 | I70: 0.9939123465 | J70: 1 | K70: 388.22 | L70: 393.54 | M70: 387.61 | N70: 390.11 | O70: 1206600 | U70: 2006-08-30 | V70: 0.3 | W70: 82.260002 | X70: 200608 | Y70: 200508 | Z70: 2005-08-30 | AA70: 5 | AB70: 1 | AC70: 1.2 | AD70: 0.01458789169
A71: 56 | B71: 2019-11-25 | C71: 391.600006 | D71: 393.100006 | E71: 387.48999 | F71: 389.980011 | G71: 801400 | H71: 387.605957 | I71: 0.99391237 | J71: 1 | K71: 389.22 | L71: 390.71 | M71: 385.13 | N71: 387.61 | O71: 801400 | U71: 2006-05-30 | V71: 0.3 | W71: 72.620003 | X71: 200605 | Y71: 200505 | Z71: 2005-05-27 | AA71: 5 | AB71: 1 | AC71: 1.15 | AD71: 0.01583585724
A72: 57 | B72: 2019-11-22 | C72: 390.190002 | D72: 391.390015 | E72: 387.820007 | F72: 390.73999 | G72: 758600 | H72: 388.361298 | I72: 0.9939123405 | J72: 1 | K72: 387.81 | L72: 389.01 | M72: 385.46 | N72: 388.36 | O72: 758600 | U72: 2006-02-27 | V72: 0.3 | W72: 74.059998 | X72: 200602 | Y72: 200502 | Z72: 2005-02-25 | AA72: 5 | AB72: 1 | AC72: 1.1 | AD72: 0.01485282244
A73: 58 | B73: 2019-11-21 | C73: 390.859985 | D73: 392.25 | E73: 389.320007 | F73: 390.26001 | G73: 1416900 | H73: 387.884247 | I73: 0.9939123586 | J73: 1 | K73: 388.48 | L73: 389.86 | M73: 386.95 | N73: 387.88 | O73: 1416900 | U73: 2005-11-29 | V73: 0.3 | W73: 60.900002 | X73: 200511 | Y73: 200411 | Z73: 2004-11-29 | AA73: 5 | AB73: 1 | AC73: 1.05 | AD73: 0.01724137874
A74: 59 | B74: 2019-11-20 | C74: 391.059998 | D74: 393.540009 | E74: 390.25 | F74: 392.700012 | G74: 907700 | H74: 390.309387 | I74: 0.9939123378 | J74: 1 | K74: 388.68 | L74: 391.14 | M74: 387.87 | N74: 390.31 | O74: 907700 | U74: 2005-08-30 | V74: 0.25 | W74: 62.259998 | X74: 200508 | Y74: 200408 | Z74: 2004-08-30 | AA74: 5 | AB74: 1 | AC74: 1 | AD74: 0.01606167736
A75: 60 | B75: 2019-11-19 | C75: 394 | D75: 395.820007 | E75: 390.529999 | F75: 390.809998 | G75: 800300 | H75: 388.430878 | I75: 0.9939123359 | J75: 1 | K75: 391.6 | L75: 393.41 | M75: 388.15 | N75: 388.43 | O75: 800300 | U75: 2005-05-27 | V75: 0.25 | W75: 65.400002 | X75: 200505 | Y75: 200405 | Z75: 2004-05-27 | AA75: 5 | AB75: 1 | AC75: 0.97 | AD75: 0.01483180383
A76: 61 | B76: 2019-11-18 | C76: 393 | D76: 395.679993 | E76: 391.950012 | F76: 392.76001 | G76: 827700 | H76: 390.369019 | I76: 0.9939123359 | J76: 1 | K76: 390.61 | L76: 393.27 | M76: 389.56 | N76: 390.37 | O76: 827700 | U76: 2005-02-25 | V76: 0.25 | W76: 59.810001 | X76: 200502 | Y76: 200402 | Z76: 2004-02-26 | AA76: 5 | AB76: 1 | AC76: 0.94 | AD76: 0.01571643512
A77: 62 | B77: 2019-11-15 | C77: 392.269989 | D77: 394.48999 | E77: 390.279999 | F77: 393.549988 | G77: 1533600 | H77: 391.154175 | I77: 0.9939123032 | J77: 1 | K77: 389.88 | L77: 392.09 | M77: 387.9 | N77: 391.15 | O77: 1533600 | U77: 2004-11-29 | V77: 0.25 | W77: 60.049999 | X77: 200411 | Y77: 200311 | Z77: 2003-11-26 | AA77: 5 | AB77: 1 | AC77: 0.91 | AD77: 0.01515403855
A78: 63 | B78: 2019-11-14 | C78: 387.279999 | D78: 392.299988 | E78: 387.279999 | F78: 390.160004 | G78: 915600 | H78: 387.784851 | I78: 0.9939123617 | J78: 1 | K78: 384.92 | L78: 389.91 | M78: 384.92 | N78: 387.78 | O78: 915600 | U78: 2004-08-30 | V78: 0.22 | W78: 53.720001 | X78: 200408 | Y78: 200308 | Z78: 2003-08-28 | AA78: 5 | AB78: 1 | AC78: 0.88 | AD78: 0.01638123573
A79: 64 | B79: 2019-11-13 | C79: 385.940002 | D79: 390.519989 | E79: 385.089996 | F79: 387.690002 | G79: 956100 | H79: 385.329865 | I79: 0.9939123088 | J79: 1 | K79: 383.59 | L79: 388.14 | M79: 382.75 | N79: 385.33 | O79: 956100 | U79: 2004-05-27 | V79: 0.22 | W79: 49.880001 | X79: 200405 | Y79: 200305 | Z79: 2003-05-29 | AA79: 5 | AB79: 1 | AC79: 0.78 | AD79: 0.01563752976
A80: 65 | B80: 2019-11-12 | C80: 381.559998 | D80: 387.5 | E80: 381.559998 | F80: 386.299988 | G80: 910700 | H80: 383.948334 | I80: 0.9939123633 | J80: 1 | K80: 379.24 | L80: 385.14 | M80: 379.24 | N80: 383.95 | O80: 910700 | U80: 2004-02-26 | V80: 0.22 | W80: 46.540001 | X80: 200402 | Y80: 200302 | Z80: 2003-02-27 | AA80: 5 | AB80: 1 | AC80: 0.68 | AD80: 0.01461108692
A81: 66 | B81: 2019-11-11 | C81: 379.51001 | D81: 383.410004 | E81: 379.309998 | F81: 381.380005 | G81: 580500 | H81: 379.058289 | I81: =IF(F81=0,1,H81/F81) -> 0.993912329 | J81: =INDEX(OFFSET($T$15,0,0,$S$13+1,1),MATCH(B81,OFFSET($Q$15,0,0,$S$13+1,1),-1)) -> 1 | K81: =ROUND($I81*C81,2) -> 377.2 | L81: =ROUND($I81*D81,2) -> 381.08 | M81: =ROUND($I81*E81,2) -> 377 | N81: =ROUND($I81*F81,2) -> 379.06 | O81: =G81*J81 -> 580500 | U81: 2003-11-26 | V81: 0.22 | W81: =(INDEX(OFFSET($F$15,1,0,$B$10,1),MATCH(U81,OFFSET($B$15,1,0,$B$10,1),-1))) -> 45.950001 | X81: =YEAR(U81)&RIGHT("0"&MONTH(U81),2) -> 200311 | Y81: =YEAR(U81)-1&RIGHT("0"&MONTH(U81),2) -> 200211 | Z81: =OFFSET(U80,AA81,0,1,1) -> 2002-11-27 | AA81: =MATCH(Y81,OFFSET($X$15,A81,0,$V$14+1-A81,1),-1) -> 5 | AB81: =IF(OR(AND(YEAR(U81)=YEAR(Z81),MONTH(U81)=MONTH(Z81)),MONTH(U81)=MONTH(Z81)),1,0) -> 1 | AC81: =(V81+IF(AA81-AB81=0,0,IFERROR(SUM(OFFSET(V81,1,0,AA81-AB81-1,1)),0))) -> 0.58 | AD81: =AC81/(INDEX(OFFSET($F$15,1,0,$B$10,1),MATCH(U81,OFFSET($B$15,1,0,$B$10,1),-1))) -> 0.01262241539
A82: 67 | B82: 2019-11-08 | C82: 377.600006 | D82: 382.880005 | E82: 377.600006 | F82: 381.859985 | G82: 783500 | H82: 379.535339 | I82: 0.9939123079 | J82: 1 | K82: 375.3 | L82: 380.55 | M82: 375.3 | N82: 379.54 | O82: 783500 | U82: 2003-08-28 | V82: 0.12 | W82: 51.400002 | X82: 200308 | Y82: 200208 | Z82: 2002-08-29 | AA82: 5 | AB82: 1 | AC82: 0.47 | AD82: 0.009143968516
A83: 68 | B83: 2019-11-07 | C83: 380.339996 | D83: 382.73999 | E83: 377.910004 | F83: 378.75 | G83: 1157200 | H83: 376.444305 | I83: 0.9939123564 | J83: 1 | K83: 378.02 | L83: 380.41 | M83: 375.61 | N83: 376.44 | O83: 1157200 | U83: 2003-05-29 | V83: 0.12 | W83: 46.560001 | X83: 200305 | Y83: 200205 | Z83: 2002-05-30 | AA83: 5 | AB83: 1 | AC83: 0.46 | AD83: 0.009879724874
A84: 69 | B84: 2019-11-06 | C84: 374.48999 | D84: 379.929993 | E84: 374.029999 | F84: 379.790009 | G84: 1505700 | H84: 377.477966 | I84: 0.9939123122 | J84: 1 | K84: 372.21 | L84: 377.62 | M84: 371.75 | N84: 377.48 | O84: 1505700 | U84: 2003-02-27 | V84: 0.12 | W84: 45.810001 | X84: 200302 | Y84: 200202 | Z84: 2002-02-28 | AA84: 5 | AB84: 1 | AC84: 0.45 | AD84: 0.009823182497
A85: 70 | B85: 2019-11-05 | C85: 374.059998 | D85: 375.769989 | E85: 371.309998 | F85: 373.630005 | G85: 1364200 | H85: 371.355469 | I85: 0.9939123305 | J85: 1 | K85: 371.78 | L85: 373.48 | M85: 369.05 | N85: 371.36 | O85: 1364200 | U85: 2002-11-27 | V85: 0.11 | W85: 53.189999 | X85: 200211 | Y85: 200111 | Z85: 2001-11-29 | AA85: 5 | AB85: 1 | AC85: 0.44 | AD85: 0.008272231778
A86: 71 | B86: 2019-11-04 | C86: 379.929993 | D86: 380.779999 | E86: 372.179993 | F86: 374.480011 | G86: 1117500 | H86: 372.200317 | I86: 0.9939123747 | J86: 1 | K86: 377.62 | L86: 378.46 | M86: 369.91 | N86: 372.2 | O86: 1117500 | U86: 2002-08-29 | V86: 0.11 | W86: 62.5 | X86: 200208 | Y86: 200108 | Z86: 2001-08-30 | AA86: 5 | AB86: 1 | AC86: 0.44 | AD86: 0.00704
A87: 72 | B87: 2019-11-01 | C87: 378.109985 | D87: 380.950012 | E87: 376.940002 | F87: 379.170013 | G87: 915600 | H87: 376.861755 | I87: 0.9939123403 | J87: 1 | K87: 375.81 | L87: 378.63 | M87: 374.65 | N87: 376.86 | O87: 915600 | U87: 2002-05-30 | V87: 0.11 | W87: 63.139999 | X87: 200205 | Y87: 200105 | Z87: 2001-05-30 | AA87: 5 | AB87: 1 | AC87: 0.44 | AD87: 0.006968641225
A88: 73 | B88: 2019-10-31 | C88: 377.920013 | D88: 380.179993 | E88: 375.26001 | F88: 376.679993 | G88: 911600 | H88: 374.386902 | I88: 0.9939123632 | J88: 1 | K88: 375.62 | L88: 377.87 | M88: 372.98 | N88: 374.39 | O88: 911600 | U88: 2002-02-28 | V88: 0.11 | W88: 56.41 | X88: 200202 | Y88: 200102 | Z88: 2001-03-01 | AA88: 5 | AB88: 0 | AC88: 0.55 | AD88: 0.009750044318
A89: 74 | B89: 2019-10-30 | C89: 373.220001 | D89: 378.98999 | E89: 371.470001 | F89: 378.640015 | G89: 1064900 | H89: 376.334991 | I89: 0.9939123603 | J89: 1 | K89: 370.95 | L89: 376.68 | M89: 369.21 | N89: 376.33 | O89: 1064900 | U89: 2001-11-29 | V89: 0.11 | W89: 46.25 | X89: 200111 | Y89: 200011 | Z89: 2000-11-29 | AA89: 5 | AB89: 1 | AC89: 0.44 | AD89: 0.009513513514
A90: 75 | B90: 2019-10-29 | C90: 371.649994 | D90: 375.25 | E90: 370.040009 | F90: 371.100006 | G90: 1298400 | H90: 368.840881 | I90: 0.9939123553 | J90: 1 | K90: 369.39 | L90: 372.97 | M90: 367.79 | N90: 368.84 | O90: 1298400 | U90: 2001-08-30 | V90: 0.11 | W90: 39.369999 | X90: 200108 | Y90: 200008 | Z90: 2000-08-30 | AA90: 5 | AB90: 1 | AC90: 0.44 | AD90: 0.01117602264
A91: 76 | B91: 2019-10-28 | C91: 371.390015 | D91: 375.450012 | E91: 370.119995 | F91: 371.839996 | G91: 1321700 | H91: 369.576355 | I91: 0.9939123251 | J91: 1 | K91: 369.13 | L91: 373.16 | M91: 367.87 | N91: 369.58 | O91: 1321700 | U91: 2001-05-30 | V91: 0.11 | W91: 39.349998 | X91: 200105 | Y91: 200005 | Z91: 2000-05-30 | AA91: 5 | AB91: 1 | AC91: 0.44 | AD91: 0.01118170324
A92: 77 | B92: 2019-10-25 | C92: 374.380005 | D92: 374.890015 | E92: 369.540009 | F92: 370.730011 | G92: 1173500 | H92: 368.473145 | I92: 0.9939123731 | J92: 1 | K92: 372.1 | L92: 372.61 | M92: 367.29 | N92: 368.47 | O92: 1173500 | U92: 2001-03-01 | V92: 0.11 | W92: 36.73 | X92: 200103 | Y92: 200003 | Z92: 2000-03-02 | AA92: 5 | AB92: 1 | AC92: 0.44 | AD92: 0.01197930847
A93: 78 | B93: 2019-10-24 | C93: 373.76001 | D93: 377.459991 | E93: 372 | F93: 374.73999 | G93: 1126900 | H93: 372.45871 | I93: 0.9939123657 | J93: 1 | K93: 371.48 | L93: 375.16 | M93: 369.74 | N93: 372.46 | O93: 1126900 | U93: 2000-11-29 | V93: 0.11 | W93: 34.900002 | X93: 200011 | Y93: 199911 | Z93: 1999-11-29 | AA93: 5 | AB93: 1 | AC93: 0.44 | AD93: 0.01260744913
A94: 79 | B94: 2019-10-23 | C94: 373.779999 | D94: 374.98999 | E94: 368.730011 | F94: 373.089996 | G94: 1279700 | H94: 370.818756 | I94: 0.9939123535 | J94: 1 | K94: 371.5 | L94: 372.71 | M94: 366.49 | N94: 370.82 | O94: 1279700 | U94: 2000-08-30 | V94: 0.11 | W94: 27.8125 | X94: 200008 | Y94: 199908 | Z94: 1999-08-30 | AA94: 5 | AB94: 1 | AC94: 0.55 | AD94: 0.0197752809
A95: 80 | B95: 2019-10-22 | C95: 363 | D95: 377.5 | E95: 363 | F95: 373.679993 | G95: 2567200 | H95: 371.405151 | I95: 0.9939123259 | J95: 1 | K95: 360.79 | L95: 375.2 | M95: 360.79 | N95: 371.41 | O95: 2567200 | U95: 2000-05-30 | V95: 0.11 | W95: 24.75 | X95: 200005 | Y95: 199905 | Z95: 1999-05-27 | AA95: 5 | AB95: 1 | AC95: 0.66 | AD95: 0.02666666667
A96: 81 | B96: 2019-10-21 | C96: 374.01001 | D96: 375.890015 | E96: 372.730011 | F96: 374.049988 | G96: 1160000 | H96: 371.772888 | I96: 0.993912311 | J96: 1 | K96: 371.73 | L96: 373.6 | M96: 370.46 | N96: 371.77 | O96: 1160000 | U96: 2000-03-02 | V96: 0.11 | W96: 17.125 | X96: 200003 | Y96: 199903 | Z96: 1999-03-04 | AA96: 5 | AB96: 1 | AC96: 0.77 | AD96: 0.04496350365
A97: 82 | B97: 2019-10-18 | C97: 376.720001 | D97: 377.709991 | E97: 368 | F97: 372.480011 | G97: 1935600 | H97: 370.212494 | I97: 0.9939123794 | J97: 1 | K97: 374.43 | L97: 375.41 | M97: 365.76 | N97: 370.21 | O97: 1935600 | U97: 1999-11-29 | V97: 0.22 | W97: 20.375 | X97: 199911 | Y97: 199811 | Z97: 1998-11-27 | AA97: 5 | AB97: 1 | AC97: 0.88 | AD97: 0.04319018405
A98: 83 | B98: 2019-10-17 | C98: 383.549988 | D98: 384.209991 | E98: 376.290009 | F98: 377.059998 | G98: 1004600 | H98: 374.764587 | I98: 0.9939123455 | J98: 1 | K98: 381.22 | L98: 381.87 | M98: 374 | N98: 374.76 | O98: 1004600 | U98: 1999-08-30 | V98: 0.22 | W98: 37.4375 | X98: 199908 | Y98: 199808 | Z98: 1998-08-28 | AA98: 5 | AB98: 1 | AC98: 1.1 | AD98: 0.02938230384
A99: 84 | B99: 2019-10-16 | C99: 382.390015 | D99: 384.390015 | E99: 380.230011 | F99: 382.839996 | G99: 851300 | H99: 380.509399 | I99: 0.9939123471 | J99: 1 | K99: 380.06 | L99: 382.05 | M99: 377.92 | N99: 380.51 | O99: 851300 | U99: 1999-05-27 | V99: 0.22 | W99: 39.625 | X99: 199905 | Y99: 199805 | Z99: 1998-05-28 | AA99: 5 | AB99: 1 | AC99: 1.28 | AD99: 0.03230283912
A100: 85 | B100: 2019-10-15 | C100: 383.690002 | D100: 385.700012 | E100: 382.070007 | F100: 382.75 | G100: 835300 | H100: 380.419952 | I100: 0.9939123501 | J100: 1 | K100: 381.35 | L100: 383.35 | M100: 379.74 | N100: 380.42 | O100: 835300 | U100: 1999-03-04 | V100: 0.22 | W100: 36.8125 | X100: 199903 | Y100: 199803 | Z100: 1998-03-05 | AA100: 5 | AB100: 1 | AC100: 1.46 | AD100: 0.03966044143
A101: 86 | B101: 2019-10-14 | C101: 382.769989 | D101: 385.369995 | E101: 381.390015 | F101: 382.609985 | G101: 622300 | H101: 380.280792 | I101: 0.993912357 | J101: 1 | K101: 380.44 | L101: 383.02 | M101: 379.07 | N101: 380.28 | O101: 622300 | U101: 1998-11-27 | V101: 0.44 | W101: 53.09375 | X101: 199811 | Y101: 199711 | Z101: 1997-11-26 | AA101: 5 | AB101: 1 | AC101: 1.64 | AD101: 0.03088875809
A102: 87 | B102: 2019-10-11 | C102: 389.790009 | D102: 390.730011 | E102: 381.25 | F102: 381.470001 | G102: 1327000 | H102: 379.147736 | I102: 0.993912326 | J102: 1 | K102: 387.42 | L102: 388.35 | M102: 378.93 | N102: 379.15 | O102: 1327000 | U102: 1998-08-28 | V102: 0.4 | W102: 44.90625 | X102: 199808 | Y102: 199708 | Z102: 1997-08-28 | AA102: 5 | AB102: 1 | AC102: 1.6 | AD102: 0.03562978427
A103: 88 | B103: 2019-10-10 | C103: 383.98999 | D103: 388.51001 | E103: 383.200012 | F103: 386.880005 | G103: 690200 | H103: 384.524811 | I103: 0.9939123398 | J103: 1 | K103: 381.65 | L103: 386.14 | M103: 380.87 | N103: 384.52 | O103: 690200 | U103: 1998-05-28 | V103: 0.4 | W103: 55.625 | X103: 199805 | Y103: 199705 | Z103: 1997-05-29 | AA103: 5 | AB103: 1 | AC103: 1.6 | AD103: 0.02876404494
A104: 89 | B104: 2019-10-09 | C104: 384.829987 | D104: 386.329987 | E104: 382.5 | F104: 384.609985 | G104: 712000 | H104: 382.268616 | I104: 0.9939123551 | J104: 1 | K104: 382.49 | L104: 383.98 | M104: 380.17 | N104: 382.27 | O104: 712000 | U104: 1998-03-05 | V104: 0.4 | W104: 56.96875 | X104: 199803 | Y104: 199703 | Z104: 1997-03-06 | AA104: 5 | AB104: 1 | AC104: 1.6 | AD104: 0.02808557323
A105: 90 | B105: 2019-10-08 | C105: 381.059998 | D105: 385.799988 | E105: 379.290009 | F105: 382.119995 | G105: 1001300 | H105: 379.793793 | I105: 0.9939123782 | J105: 1 | K105: 378.74 | L105: 383.45 | M105: 376.98 | N105: 379.79 | O105: 1001300 | U105: 1997-11-26 | V105: 0.4 | W105: 47.96875 | X105: 199711 | Y105: 199611 | Z105: 1996-11-28 | AA105: 5 | AB105: 1 | AC105: 1.6 | AD105: 0.03335504886
A106: 91 | B106: 2019-10-07 | C106: 385.01001 | D106: 386.679993 | E106: 382.690002 | F106: 383.779999 | G106: 850100 | H106: 381.443665 | I106: 0.9939123091 | J106: 1 | K106: 382.67 | L106: 384.33 | M106: 380.36 | N106: 381.44 | O106: 850100 | U106: 1997-08-28 | V106: 0.4 | W106: 52.46875 | X106: 199708 | Y106: 199608 | Z106: 1996-08-29 | AA106: 6 | AB106: 1 | AC106: 2 | AD106: 0.03811792734
A107: 92 | B107: 2019-10-04 | C107: 380.209991 | D107: 385.23999 | E107: 379.48999 | F107: 384.950012 | G107: 762200 | H107: 382.606567 | I107: 0.9939123395 | J107: 1 | K107: 377.9 | L107: 382.89 | M107: 377.18 | N107: 382.61 | O107: 762200 | U107: 1997-05-29 | V107: 0.4 | W107: 46.5 | X107: 199705 | Y107: 199605 | Z107: 1996-05-30 | AA107: 6 | AB107: 1 | AC107: 2 | AD107: 0.04301075269
A108: 93 | B108: 2019-10-03 | C108: 378.869995 | D108: 381.190002 | E108: 374.329987 | F108: 380.059998 | G108: 849800 | H108: 377.746307 | I108: 0.9939123007 | J108: 1 | K108: 376.56 | L108: 378.87 | M108: 372.05 | N108: 377.75 | O108: 849800 | U108: 1997-03-06 | V108: 0.4 | W108: 43.625 | X108: 199703 | Y108: 199603 | Z108: 1996-05-30 | AA108: 5 | AB108: 0 | AC108: 2 | AD108: 0.04584527221
A109: 94 | B109: 2019-10-02 | C109: 382.73999 | D109: 383.059998 | E109: 374.070007 | F109: 378.160004 | G109: 1759000 | H109: 375.85788 | I109: 0.9939123017 | J109: 1 | K109: 380.41 | L109: 380.73 | M109: 371.79 | N109: 375.86 | O109: 1759000 | U109: 1996-11-28 | V109: 0.4 | W109: 45.3125 | X109: 199611 | Y109: 199511 | Z109: 1995-11-29 | AA109: 6 | AB109: 1 | AC109: 1.95 | AD109: 0.04303448276
A110: 95 | B110: 2019-10-01 | C110: 391.429993 | D110: 392.480011 | E110: 383.890015 | F110: 384.190002 | G110: 1240000 | H110: 381.851196 | I110: 0.9939123715 | J110: 1 | K110: 389.05 | L110: 390.09 | M110: 381.55 | N110: 381.85 | O110: 1240000 | U110: 1996-11-27 | V110: 0.4 | W110: 45.1875 | X110: 199611 | Y110: 199511 | Z110: 1995-11-29 | AA110: 5 | AB110: 1 | AC110: 1.55 | AD110: 0.03430152144
A111: 96 | B111: 2019-09-30 | C111: 388.559998 | D111: 393.820007 | E111: 388.420013 | F111: 390.059998 | G111: 1293200 | H111: 387.685455 | I111: 0.9939123647 | J111: 1 | K111: 386.19 | L111: 391.42 | M111: 386.06 | N111: 387.69 | O111: 1293200 | U111: 1996-08-29 | V111: 0.4 | W111: 42.375 | X111: 199608 | Y111: 199508 | Z111: 1995-08-30 | AA111: 5 | AB111: 1 | AC111: 1.5 | AD111: 0.03539823009
A112: 97 | B112: 2019-09-27 | C112: 395.940002 | D112: 395.950012 | E112: 386.429993 | F112: 387.869995 | G112: 751800 | H112: 385.508789 | I112: 0.9939123778 | J112: 1 | K112: 393.53 | L112: 393.54 | M112: 384.08 | N112: 385.51 | O112: 751800 | U112: 1996-05-30 | V112: 0.4 | W112: 41.8125 | X112: 199605 | Y112: 199505 | Z112: 1995-05-25 | AA112: 6 | AB112: 1 | AC112: 1.625 | AD112: 0.03886397608
A113: 98 | B113: 2019-09-26 | C113: 391.25 | D113: 394.640015 | E113: 388.929993 | F113: 392.920013 | G113: 875400 | H113: 390.528046 | I113: 0.993912331 | J113: 1 | K113: 388.87 | L113: 392.24 | M113: 386.56 | N113: 390.53 | O113: 875400 | U113: 1996-02-29 | V113: 0.35 | W113: 38.125 | X113: 199602 | Y113: 199502 | Z113: 1995-02-13 | AA113: 6 | AB113: 1 | AC113: 1.575 | AD113: 0.04131147541
A114: 99 | B114: 2019-09-25 | C114: 390.579987 | D114: 390.899994 | E114: 387.709991 | F114: 390.429993 | G114: 1336400 | H114: 388.053192 | I114: 0.9939123504 | J114: 1 | K114: 388.2 | L114: 388.52 | M114: 385.35 | N114: 388.05 | O114: 1336400 | U114: 1995-11-29 | V114: 0.35 | W114: 36.75 | X114: 199511 | Y114: 199411 | Z114: 1994-11-15 | AA114: 6 | AB114: 1 | AC114: 1.39985 | AD114: 0.03809115646
A115: 100 | B115: 2019-09-24 | C115: 390 | D115: 392.98999 | E115: 387.209991 | F115: 389.170013 | G115: 1162400 | H115: 386.800873 | I115: 0.9939123264 | J115: 1 | K115: 387.63 | L115: 390.6 | M115: 384.85 | N115: 386.8 | O115: 1162400 | U115: 1995-08-30 | V115: 0.175 | W115: 30.3125 | X115: 199508 | Y115: 199408 | Z115: 1994-08-16 | AA115: 6 | AB115: 1 | AC115: 1.2247 | AD115: 0.04040247423
A116: 101 | B116: 2019-09-23 | C116: 388.070007 | D116: 390.059998 | E116: 386.109985 | F116: 387.670013 | G116: 1132200 | H116: 385.309998 | I116: 0.9939123096 | J116: 1 | K116: 385.71 | L116: 387.69 | M116: 383.76 | N116: 385.31 | O116: 1132200 | U116: 1995-08-24 | V116: 0.35 | W116: 30.6875 | X116: 199508 | Y116: 199408 | Z116: 1994-08-16 | AA116: 5 | AB116: 1 | AC116: 1.0497 | AD116: 0.03420610998
A117: 102 | B117: 2019-09-20 | C117: 394.48999 | D117: 395.440002 | E117: 388.049988 | F117: 388.25 | G117: 2106700 | H117: 385.886475 | I117: 0.9939123632 | J117: 1 | K117: 392.09 | L117: 393.03 | M117: 385.69 | N117: 385.89 | O117: 2106700 | U117: 1995-05-25 | V117: 0.35 | W117: 29.8125 | X117: 199505 | Y117: 199405 | Z117: 1994-05-17 | AA117: 5 | AB117: 1 | AC117: 0.87455 | AD117: 0.02933501048
A118: 103 | B118: 2019-09-19 | C118: 397.140015 | D118: 398.5 | E118: 393.029999 | F118: 393.429993 | G118: 1044400 | H118: 391.034912 | I118: 0.993912307 | J118: 1 | K118: 394.72 | L118: 396.07 | M118: 390.64 | N118: 391.03 | O118: 1044400 | U118: 1995-02-13 | V118: 0.17485 | W118: 23.312883 | X118: 199502 | Y118: 199402 | Z118: 1994-02-14 | AA118: 5 | AB118: 1 | AC118: 0.6994 | AD118: 0.03000057951
A119: 104 | B119: 2019-09-18 | C119: 394.779999 | D119: 397.230011 | E119: 391.549988 | F119: 397.040009 | G119: 780300 | H119: 394.622955 | I119: 0.9939123163 | J119: 1 | K119: 392.38 | L119: 394.81 | M119: 389.17 | N119: 394.62 | O119: 780300 | U119: 1994-11-15 | V119: 0.17485 | W119: 22.124233 | X119: 199411 | Y119: 199311 | Z119: 1993-11-16 | AA119: 5 | AB119: 1 | AC119: 0.68713 | AD119: 0.03105779983
A120: 105 | B120: 2019-09-17 | C120: 392.470001 | D120: 399.959991 | E120: 388.429993 | F120: 393.980011 | G120: 975800 | H120: 391.581604 | I120: 0.9939123637 | J120: 1 | K120: 390.08 | L120: 397.53 | M120: 386.07 | N120: 391.58 | O120: 975800 | U120: 1994-08-16 | V120: 0.17485 | W120: 19.785276 | X120: 199408 | Y120: 199308 | Z120: 1993-08-17 | AA120: 5 | AB120: 1 | AC120: 0.67486 | AD120: 0.03410920323
A121: 106 | B121: 2019-09-16 | C121: 388.899994 | D121: 394.600006 | E121: 386.890015 | F121: 392.660004 | G121: 1689900 | H121: 390.269623 | I121: 0.993912339 | J121: 1 | K121: 386.53 | L121: 392.2 | M121: 384.53 | N121: 390.27 | O121: 1689900 | U121: 1994-05-17 | V121: 0.17485 | W121: 18.86503 | X121: 199405 | Y121: 199305 | Z121: 1993-05-17 | AA121: 5 | AB121: 1 | AC121: 0.66259 | AD121: 0.03512265817
A122: 107 | B122: 2019-09-13 | C122: 387.769989 | D122: 387.769989 | E122: 383.600006 | F122: 384.859985 | G122: 898600 | H122: 382.51709 | I122: 0.9939123445 | J122: 1 | K122: 385.41 | L122: 385.41 | M122: 381.26 | N122: 382.52 | O122: 898600 | U122: 1994-02-14 | V122: 0.16258 | W122: 19.93865 | X122: 199402 | Y122: 199302 | Z122: 1993-02-08 | AA122: 5 | AB122: 1 | AC122: 0.65032 | AD122: 0.03261604973
A123: 108 | B123: 2019-09-12 | C123: 384.48999 | D123: 388.51001 | E123: 383.269989 | F123: 386.630005 | G123: 855100 | H123: 384.276337 | I123: 0.9939123504 | J123: 1 | K123: 382.15 | L123: 386.14 | M123: 380.94 | N123: 384.28 | O123: 855100 | U123: 1993-11-16 | V123: 0.16258 | W123: 21.510736 | X123: 199311 | Y123: 199211 | Z123: 1992-11-17 | AA123: 5 | AB123: 1 | AC123: 0.65032 | AD123: 0.03023234537
A124: 109 | B124: 2019-09-11 | C124: 381.200012 | D124: 385.799988 | E124: 380.059998 | F124: 381.549988 | G124: 1125300 | H124: 379.227234 | I124: 0.9939123206 | J124: 1 | K124: 378.88 | L124: 383.45 | M124: 377.75 | N124: 379.23 | O124: 1125300 | U124: 1993-08-17 | V124: 0.16258 | W124: 19.325153 | X124: 199308 | Y124: 199208 | Z124: 1992-08-18 | AA124: 5 | AB124: 1 | AC124: 0.65032 | AD124: 0.03365148002
A125: 110 | B125: 2019-09-10 | C125: 377.290009 | D125: 381.320007 | E125: 370.459991 | F125: 381.320007 | G125: 1297600 | H125: 378.998657 | I125: 0.993912331 | J125: 1 | K125: 374.99 | L125: 379 | M125: 368.2 | N125: 379 | O125: 1297600 | U125: 1993-05-17 | V125: 0.16258 | W125: 19.210123 | X125: 199305 | Y125: 199205 | Z125: 1992-05-12 | AA125: 5 | AB125: 1 | AC125: 0.65032 | AD125: 0.0338529847
A126: 111 | B126: 2019-09-09 | C126: 387.950012 | D126: 388.290009 | E126: 380.040009 | F126: 380.209991 | G126: 1146900 | H126: 377.895416 | I126: 0.9939123772 | J126: 1 | K126: 385.59 | L126: 385.93 | M126: 377.73 | N126: 377.9 | O126: 1146900 | U126: 1993-02-08 | V126: 0.16258 | W126: 17.79141 | X126: 199302 | Y126: 199202 | Z126: 1992-02-10 | AA126: 5 | AB126: 1 | AC126: 0.65032 | AD126: 0.03655247111
A127: 112 | B127: 2019-09-06 | C127: 387.279999 | D127: 388.450012 | E127: 385.809998 | F127: 386.559998 | G127: 701100 | H127: 384.206757 | I127: 0.9939123525 | J127: 1 | K127: 384.92 | L127: 386.09 | M127: 383.46 | N127: 384.21 | O127: 701100 | U127: 1992-11-17 | V127: 0.16258 | W127: 14.11043 | X127: 199211 | Y127: 199111 | Z127: 1991-11-12 | AA127: 5 | AB127: 1 | AC127: 0.64111 | AD127: 0.04543518518
A128: 113 | B128: 2019-09-05 | C128: 390.480011 | D128: 393.429993 | E128: 384.980011 | F128: 385.149994 | G128: 941500 | H128: 382.805328 | I128: 0.9939123302 | J128: 1 | K128: 388.1 | L128: 391.03 | M128: 382.64 | N128: 382.81 | O128: 941500 | U128: 1992-08-18 | V128: 0.16258 | W128: 14.76227 | X128: 199208 | Y128: 199108 | Z128: 1991-08-14 | AA128: 5 | AB128: 1 | AC128: 0.6319 | AD128: 0.04280506995
A129: 114 | B129: 2019-09-04 | C129: 387.309998 | D129: 389.700012 | E129: 385.899994 | F129: 389.079987 | G129: 792200 | H129: 386.711395 | I129: 0.9939123263 | J129: 1 | K129: 384.95 | L129: 387.33 | M129: 383.55 | N129: 386.71 | O129: 792200 | U129: 1992-05-12 | V129: 0.16258 | W129: 13.68865 | X129: 199205 | Y129: 199105 | Z129: 1991-05-15 | AA129: 5 | AB129: 1 | AC129: 0.62269 | AD129: 0.04548951138
A130: 115 | B130: 2019-09-03 | C130: 380.98999 | D130: 385.179993 | E130: 379.790009 | F130: 384.690002 | G130: 891700 | H130: 382.348145 | I130: 0.9939123528 | J130: 1 | K130: 378.67 | L130: 382.84 | M130: 377.48 | N130: 382.35 | O130: 891700 | U130: 1992-02-10 | V130: 0.15337 | W130: 13.535276 | X130: 199202 | Y130: 199102 | Z130: 1991-02-12 | AA130: 5 | AB130: 1 | AC130: 0.61348 | AD130: 0.04532452829
A131: 116 | B131: 2019-08-30 | C131: 383.25 | D131: 384.73999 | E131: 381.51001 | F131: 384.109985 | G131: 760700 | H131: 381.771667 | I131: 0.9939123738 | J131: 1 | K131: 380.92 | L131: 382.4 | M131: 379.19 | N131: 381.77 | O131: 760700 | U131: 1991-11-12 | V131: 0.15337 | W131: 14.148773 | X131: 199111 | Y131: 199011 | Z131: 1990-11-13 | AA131: 5 | AB131: 1 | AC131: 0.59815 | AD131: 0.0422757507
A132: 117 | B132: 2019-08-29 | C132: 384.529999 | D132: 385.779999 | E132: 380.799988 | F132: 384.429993 | G132: 1063500 | H132: 379.903107 | I132: 0.9882244204 | J132: 1 | K132: 380 | L132: 381.24 | M132: 376.32 | N132: 379.9 | O132: 1063500 | U132: 1991-08-14 | V132: 0.15337 | W132: 13.611963 | X132: 199108 | Y132: 199008 | Z132: 1990-08-14 | AA132: 5 | AB132: 1 | AC132: 0.58282 | AD132: 0.04281674877
A133: 118 | B133: 2019-08-28 | C133: 379.040009 | D133: 383 | E133: 376.769989 | F133: 380.970001 | G133: 820500 | H133: 376.483856 | I133: 0.988224414 | J133: 1 | K133: 374.58 | L133: 378.49 | M133: 372.33 | N133: 376.48 | O133: 820500 | U133: 1991-05-15 | V133: 0.15337 | W133: 12.576687 | X133: 199105 | Y133: 199005 | Z133: 1990-05-16 | AA133: 5 | AB133: 1 | AC133: 0.56749 | AD133: 0.04512237603
A134: 119 | B134: 2019-08-27 | C134: 381.75 | D134: 382.209991 | E134: 377.25 | F134: 379.98999 | G134: 760300 | H134: 375.515381 | I134: 0.988224403 | J134: 1 | K134: 377.25 | L134: 377.71 | M134: 372.81 | N134: 375.52 | O134: 760300 | U134: 1991-02-12 | V134: 0.13804 | W134: 12.423313 | X134: 199102 | Y134: 199002 | Z134: 1990-02-13 | AA134: 5 | AB134: 1 | AC134: 0.55216 | AD134: 0.04444547119
A135: 120 | B135: 2019-08-26 | C135: 380 | D135: 380.559998 | E135: 375.5 | F135: 380.320007 | G135: 688100 | H135: 375.841522 | I135: 0.9882244296 | J135: 1 | K135: 375.53 | L135: 376.08 | M135: 371.08 | N135: 375.84 | O135: 688100 | U135: 1990-11-13 | V135: 0.13804 | W135: 9.739264 | X135: 199011 | Y135: 198911 | Z135: 1989-11-14 | AA135: 5 | AB135: 1 | AC135: 0.55216 | AD135: 0.05669422248
A136: 121 | B136: 2019-08-23 | C136: 385.279999 | D136: 386.929993 | E136: 374.609985 | F136: 376.890015 | G136: 1392700 | H136: 372.451904 | I136: 0.9882243869 | J136: 1 | K136: 380.74 | L136: 382.37 | M136: 370.2 | N136: 372.45 | O136: 1392700 | U136: 1990-08-14 | V136: 0.13804 | W136: 8.857362 | X136: 199008 | Y136: 198908 | Z136: 1989-08-15 | AA136: 5 | AB136: 1 | AC136: 0.55216 | AD136: 0.06233910277
A137: 122 | B137: 2019-08-22 | C137: 383 | D137: 386.649994 | E137: 380.720001 | F137: 385.880005 | G137: 742600 | H137: 381.336029 | I137: 0.9882243808 | J137: 1 | K137: 378.49 | L137: 382.1 | M137: 376.24 | N137: 381.34 | O137: 742600 | U137: 1990-05-16 | V137: 0.13804 | W137: 10.467792 | X137: 199005 | Y137: 198905 | Z137: 1989-05-17 | AA137: 5 | AB137: 1 | AC137: 0.55216 | AD137: 0.05274846883
A138: 123 | B138: 2019-08-21 | C138: 384 | D138: 384.279999 | E138: 379.290009 | F138: 383 | G138: 791500 | H138: 378.48996 | I138: 0.9882244386 | J138: 1 | K138: 379.48 | L138: 379.75 | M138: 374.82 | N138: 378.49 | O138: 791500 | U138: 1990-02-13 | V138: 0.13804 | W138: 10.582822 | X138: 199002 | Y138: 198902 | Z138: 1989-02-14 | AA138: 5 | AB138: 1 | AC138: 0.55216 | AD138: 0.05217511926
A139: 124 | B139: 2019-08-20 | C139: 380.5 | D139: 384.100006 | E139: 379.5 | F139: 381.75 | G139: 920600 | H139: 377.254669 | I139: 0.9882244113 | J139: 1 | K139: 376.02 | L139: 379.58 | M139: 375.03 | N139: 377.25 | O139: 920600 | U139: 1989-11-14 | V139: 0.13804 | W139: 12.845092 | X139: 198911 | Y139: 198811 | Z139: 1988-11-15 | AA139: 5 | AB139: 1 | AC139: 0.53682 | AD139: 0.04179183769
A140: 125 | B140: 2019-08-19 | C140: 379.75 | D140: 381.679993 | E140: 378.519989 | F140: 380.470001 | G140: 799900 | H140: 375.989746 | I140: 0.9882244198 | J140: 1 | K140: 375.28 | L140: 377.19 | M140: 374.06 | N140: 375.99 | O140: 799900 | U140: 1989-08-15 | V140: 0.13804 | W140: 15.41411 | X140: 198908 | Y140: 198808 | Z140: 1988-08-11 | AA140: 5 | AB140: 1 | AC140: 0.52148 | AD140: 0.03383134025
A141: 126 | B141: 2019-08-16 | C141: 376.100006 | D141: 378.339996 | E141: 373.369995 | F141: 377 | G141: 821400 | H141: 372.560608 | I141: 0.9882244244 | J141: 1 | K141: 371.67 | L141: 373.88 | M141: 368.97 | N141: 372.56 | O141: 821400 | U141: 1989-05-17 | V141: 0.13804 | W141: 14.455522 | X141: 198905 | Y141: 198805 | Z141: 1988-05-18 | AA141: 5 | AB141: 1 | AC141: 0.50614 | AD141: 0.03501360933
A142: 127 | B142: 2019-08-15 | C142: 369.149994 | D142: 374.570007 | E142: 367.170013 | F142: 373.459991 | G142: 1063900 | H142: 369.062256 | I142: 0.9882243477 | J142: 1 | K142: 364.8 | L142: 370.16 | M142: 362.85 | N142: 369.06 | O142: 1063900 | U142: 1989-02-14 | V142: 0.1227 | W142: 14.22546 | X142: 198902 | Y142: 198802 | Z142: 1988-02-10 | AA142: 5 | AB142: 1 | AC142: 0.4908 | AD142: 0.03450152051
A143: 128 | B143: 2019-08-14 | C143: 376 | D143: 376 | E143: 367.359985 | F143: 368.940002 | G143: 1469100 | H143: 364.59552 | I143: 0.9882244214 | J143: 1 | K143: 371.57 | L143: 371.57 | M143: 363.03 | N143: 364.6 | O143: 1469100 | U143: 1988-11-15 | V143: 0.1227 | W143: 12.193252 | X143: 198811 | Y143: 198711 | Z143: 1987-11-12 | AA143: 5 | AB143: 1 | AC143: 0.47546 | AD143: 0.03899369914
A144: 129 | B144: 2019-08-13 | C144: 377.98999 | D144: 381.51001 | E144: 375.279999 | F144: 377.220001 | G144: 1054900 | H144: 372.778015 | I144: 0.9882244155 | J144: 1 | K144: 373.54 | L144: 377.02 | M144: 370.86 | N144: 372.78 | O144: 1054900 | U144: 1988-08-11 | V144: 0.1227 | W144: 12.998466 | X144: 198808 | Y144: 198708 | Z144: 1987-08-13 | AA144: 5 | AB144: 1 | AC144: 0.46012 | AD144: 0.03539802312
A145: 130 | B145: 2019-08-12 | C145: 375 | D145: 378.049988 | E145: 373.600006 | F145: 377 | G145: 646800 | H145: 372.560608 | I145: =IF(F145=0,1,H145/F145) -> 0.9882244244 | J145: =INDEX(OFFSET($T$15,0,0,$S$13+1,1),MATCH(B145,OFFSET($Q$15,0,0,$S$13+1,1),-1)) -> 1 | K145: =ROUND($I145*C145,2) -> 370.58 | L145: =ROUND($I145*D145,2) -> 373.6 | M145: =ROUND($I145*E145,2) -> 369.2 | N145: =ROUND($I145*F145,2) -> 372.56 | O145: =G145*J145 -> 646800 | U145: 1988-05-18 | V145: 0.1227 | W145: =(INDEX(OFFSET($F$15,1,0,$B$10,1),MATCH(U145,OFFSET($B$15,1,0,$B$10,1),-1))) -> 13.075153 | X145: =YEAR(U145)&RIGHT("0"&MONTH(U145),2) -> 198805 | Y145: =YEAR(U145)-1&RIGHT("0"&MONTH(U145),2) -> 198705 | Z145: =OFFSET(U144,AA145,0,1,1) -> 1987-05-19 | AA145: =MATCH(Y145,OFFSET($X$15,A145,0,$V$14+1-A145,1),-1) -> 5 | AB145: =IF(OR(AND(YEAR(U145)=YEAR(Z145),MONTH(U145)=MONTH(Z145)),MONTH(U145)=MONTH(Z145)),1,0) -> 1 | AC145: =(V145+IF(AA145-AB145=0,0,IFERROR(SUM(OFFSET(V145,1,0,AA145-AB145-1,1)),0))) -> 0.44478 | AD145: =AC145/(INDEX(OFFSET($F$15,1,0,$B$10,1),MATCH(U145,OFFSET($B$15,1,0,$B$10,1),-1))) -> 0.03401719276
A146: 131 | B146: 2019-08-09 | C146: 376.100006 | D146: 379.359985 | E146: 373.329987 | F146: 377.01001 | G146: 872000 | H146: 372.570496 | I146: 0.9882244135 | J146: 1 | K146: 371.67 | L146: 374.89 | M146: 368.93 | N146: 372.57 | O146: 872000 | U146: 1988-02-10 | V146: 0.10736 | W146: 12.116565 | X146: 198802 | Y146: 198702 | Z146: 1987-02-11 | AA146: 5 | AB146: 1 | AC146: 0.42944 | AD146: 0.03544238817
A147: 132 | B147: 2019-08-08 | C147: 370.01001 | D147: 378.399994 | E147: 370.01001 | F147: 377.170013 | G147: 1185800 | H147: 372.728638 | I147: 0.9882244748 | J147: 1 | K147: 365.65 | L147: 373.94 | M147: 365.65 | N147: 372.73 | O147: 1185800 | U147: 1987-11-12 | V147: 0.10736 | W147: 11.656442 | X147: 198711 | Y147: 198611 | Z147: 1986-11-13 | AA147: 5 | AB147: 1 | AC147: 0.39877 | AD147: 0.03421026759
A148: 133 | B148: 2019-08-07 | C148: 364.019989 | D148: 370.929993 | E148: 362.019989 | F148: 369.299988 | G148: 1243000 | H148: 364.951263 | I148: 0.9882244107 | J148: 1 | K148: 359.73 | L148: 366.56 | M148: 357.76 | N148: 364.95 | O148: 1243000 | U148: 1987-08-13 | V148: 0.10736 | W148: 16.832823 | X148: 198708 | Y148: 198608 | Z148: 1986-08-14 | AA148: 5 | AB148: 1 | AC148: 0.3681 | AD148: 0.0218679897
A149: 134 | B149: 2019-08-06 | C149: 361.279999 | D149: 366.890015 | E149: 358.839996 | F149: 366.779999 | G149: 1124900 | H149: 362.460938 | I149: 0.9882243824 | J149: 1 | K149: 357.03 | L149: 362.57 | M149: 354.61 | N149: 362.46 | O149: 1124900 | U149: 1987-05-19 | V149: 0.10736 | W149: 13.650307 | X149: 198705 | Y149: 198605 | Z149: 1986-05-20 | AA149: 5 | AB149: 1 | AC149: 0.33743 | AD149: 0.02471959056
A150: 135 | B150: 2019-08-05 | C150: 356.549988 | D150: 361.100006 | E150: 353.970001 | F150: 358.429993 | G150: 1464600 | H150: 354.209259 | I150: 0.9882243839 | J150: 1 | K150: 352.35 | L150: 356.85 | M150: 349.8 | N150: 354.21 | O150: 1464600 | U150: 1987-02-11 | V150: 0.07669 | W150: 16.679447 | X150: 198702 | Y150: 198602 | Z150: 1986-02-10 | AA150: 5 | AB150: 1 | AC150: 0.30676 | AD150: 0.01839149703
A151: 136 | B151: 2019-08-02 | C151: 364.130005 | D151: 364.309998 | E151: 359.48999 | F151: 361.910004 | G151: 836300 | H151: 357.648285 | I151: 0.9882243681 | J151: 1 | K151: 359.84 | L151: 360.02 | M151: 355.26 | N151: 357.65 | O151: 836300 | U151: 1986-11-13 | V151: 0.07669 | W151: 14.493865 | X151: 198611 | Y151: 198511 | Z151: 1985-11-13 | AA151: 5 | AB151: 1 | AC151: 0.29142 | AD151: 0.02010643814
A152: 137 | B152: 2019-08-01 | C152: 361.720001 | D152: 367.339996 | E152: 359.190002 | F152: 363.089996 | G152: 1220300 | H152: 358.814392 | I152: 0.988224396 | J152: 1 | K152: 357.46 | L152: 363.01 | M152: 354.96 | N152: 358.81 | O152: 1220300 | U152: 1986-08-14 | V152: 0.07669 | W152: 14.953988 | X152: 198608 | Y152: 198508 | Z152: 1985-08-14 | AA152: 5 | AB152: 1 | AC152: 0.27608 | AD152: 0.01846196479
A153: 138 | B153: 2019-07-31 | C153: 365.910004 | D153: 368.709991 | E153: 359.290009 | F153: 362.170013 | G153: 1037100 | H153: 357.905273 | I153: 0.9882244806 | J153: 1 | K153: 361.6 | L153: 364.37 | M153: 355.06 | N153: 357.91 | O153: 1037100 | U153: 1986-05-20 | V153: 0.07669 | W153: 16.641104 | X153: 198605 | Y153: 198505 | Z153: 1985-05-21 | AA153: 5 | AB153: 1 | AC153: 0.26074 | AD153: 0.01566843161
A154: 139 | B154: 2019-07-30 | C154: 368.630005 | D154: 370.670013 | E154: 365.329987 | F154: 365.98999 | G154: 699400 | H154: 361.680237 | I154: 0.9882243965 | J154: 1 | K154: 364.29 | L154: 366.31 | M154: 361.03 | N154: 361.68 | O154: 699400 | U154: 1986-02-10 | V154: 0.06135 | W154: 14.723927 | X154: 198602 | Y154: 198502 | Z154: 1985-02-08 | AA154: 5 | AB154: 1 | AC154: 0.2454 | AD154: 0.0166667493
A155: 140 | B155: 2019-07-29 | C155: 369.410004 | D155: 370.109985 | E155: 367.950012 | F155: 369.619995 | G155: 659200 | H155: 365.267517 | I155: 0.988224452 | J155: 1 | K155: 365.06 | L155: 365.75 | M155: 363.62 | N155: 365.27 | O155: 659200 | U155: 1985-11-13 | V155: 0.06135 | W155: 15.184049 | X155: 198511 | Y155: 198411 | Z155: 1984-11-13 | AA155: 5 | AB155: 1 | AC155: 0.23006 | AD155: 0.01515142634
A156: 141 | B156: 2019-07-26 | C156: 369.609985 | D156: 370.709991 | E156: 367.779999 | F156: 369.459991 | G156: 791300 | H156: 365.109406 | I156: 0.988224476 | J156: 1 | K156: 365.26 | L156: 366.34 | M156: 363.45 | N156: 365.11 | O156: 791300 | U156: 1985-08-14 | V156: 0.06135 | W156: 15.95092 | X156: 198508 | Y156: 198408 | Z156: 1984-08-14 | AA156: 5 | AB156: 1 | AC156: 0.21472 | AD156: 0.01346129251
A157: 142 | B157: 2019-07-25 | C157: 368.76001 | D157: 372.709991 | E157: 367.149994 | F157: 370.320007 | G157: 1143300 | H157: 365.959259 | I157: 0.9882243791 | J157: 1 | K157: 364.42 | L157: 368.32 | M157: 362.83 | N157: 365.96 | O157: 1143300 | U157: 1985-05-21 | V157: 0.06135 | W157: 15.337423 | X157: 198505 | Y157: 198405 | Z157: 1984-05-22 | AA157: 5 | AB157: 1 | AC157: 0.19938 | AD157: 0.01299957627
A158: 143 | B158: 2019-07-24 | C158: 358.200012 | D158: 368.98999 | E158: 358 | F158: 368.899994 | G158: 1900400 | H158: 364.556 | I158: 0.9882244671 | J158: 1 | K158: 353.98 | L158: 364.64 | M158: 353.78 | N158: 364.56 | O158: 1900400 | U158: 1985-02-08 | V158: 0.04601 | W158: 15.874233 | X158: 198502 | Y158: 198402 | Z158: 1984-05-22 | AA158: 4 | AB158: 0 | AC158: 0.18404 | AD158: 0.01159363101
A159: 144 | B159: 2019-07-23 | C159: 363 | D159: 363 | E159: 350.809998 | F159: 357.799988 | G159: 2343900 | H159: 353.58667 | I159: 0.9882243764 | J159: 1 | K159: 358.73 | L159: 358.73 | M159: 346.68 | N159: 353.59 | O159: 2343900 | U159: 1984-11-13 | V159: 0.04601 | W159: 13.765337 | X159: 198411 | Y159: 198311 | Z159: 1984-05-22 | AA159: 3 | AB159: 0 | AC159: 0.13803 | AD159: 0.01002736075
A160: 145 | B160: 2019-07-22 | C160: 357.440002 | D160: 358.470001 | E160: 355.559998 | F160: 357.630005 | G160: 1144700 | H160: 353.418701 | I160: 0.9882244109 | J160: 1 | K160: 353.23 | L160: 354.25 | M160: 351.37 | N160: 353.42 | O160: 1144700 | U160: 1984-08-14 | V160: 0.04601 | W160: 13.381902 | X160: 198408 | Y160: 198308 | Z160: 1984-05-22 | AA160: 2 | AB160: 0 | AC160: 0.09202 | AD160: 0.006876451494
A161: 146 | B161: 2019-07-19 | C161: 357.640015 | D161: 359.100006 | E161: 355.850006 | F161: 356.959991 | G161: 1463300 | H161: 352.756592 | I161: 0.9882244534 | J161: 1 | K161: 353.43 | L161: 354.87 | M161: 351.66 | N161: 352.76 | O161: 1463300 | U161: 1984-05-22 | V161: 0.04601 | W161: 10.736197 | X161: 198405 | Y161: 198305 | Z161: 1984-05-22 | AA161: 1 | AB161: 1 | AC161: 0.04601 | AD161: 0.004285502585
A162: 147 | B162: 2019-07-18 | C162: 358.290009 | D162: 358.380005 | E162: 352.790009 | F162: 356.209991 | G162: 1704900 | H162: 352.015411 | I162: 0.9882244179 | J162: 1 | K162: 354.07 | L162: 354.16 | M162: 348.64 | N162: 352.02 | O162: 1704900
A163: 148 | B163: 2019-07-17 | C163: 365.350006 | D163: 365.470001 | E163: 357.850006 | F163: 358.470001 | G163: 1867000 | H163: 354.248779 | I163: 0.9882243368 | J163: 1 | K163: 361.05 | L163: 361.17 | M163: 353.64 | N163: 354.25 | O163: 1867000
A164: 149 | B164: 2019-07-16 | C164: 368 | D164: 368.420013 | E164: 365.160004 | F164: 365.350006 | G164: 1027100 | H164: 361.047791 | I164: 0.9882244015 | J164: 1 | K164: 363.67 | L164: 364.08 | M164: 360.86 | N164: 361.05 | O164: 1027100
A165: 150 | B165: 2019-07-15 | C165: 369.839996 | D165: 370.01001 | E165: 366.899994 | F165: 367.690002 | G165: 1010700 | H165: 363.36026 | I165: 0.9882244772 | J165: 1 | K165: 365.48 | L165: 365.65 | M165: 362.58 | N165: 363.36 | O165: 1010700
A166: 151 | B166: 2019-07-12 | C166: 369.200012 | D166: 369.51001 | E166: 366.829987 | F166: 369.450012 | G166: 1148700 | H166: 365.099518 | I166: 0.9882244042 | J166: 1 | K166: 364.85 | L166: 365.16 | M166: 362.51 | N166: 365.1 | O166: 1148700
A167: 152 | B167: 2019-07-11 | C167: 368.160004 | D167: 369.380005 | E167: 366.209991 | F167: 368.230011 | G167: 1358000 | H167: 363.89389 | I167: 0.9882244226 | J167: 1 | K167: 363.82 | L167: 365.03 | M167: 361.9 | N167: 363.89 | O167: 1358000
A168: 153 | B168: 2019-07-10 | C168: 370 | D168: 373.369995 | E168: 367.839996 | F168: 368.160004 | G168: 818700 | H168: 363.824707 | I168: 0.9882244216 | J168: 1 | K168: 365.64 | L168: 368.97 | M168: 363.51 | N168: 363.82 | O168: 818700
A169: 154 | B169: 2019-07-09 | C169: 367.75 | D169: 370.25 | E169: 366.100006 | F169: 369.730011 | G169: 651000 | H169: 365.376221 | I169: 0.9882244074 | J169: 1 | K169: 363.42 | L169: 365.89 | M169: 361.79 | N169: 365.38 | O169: 651000
A170: 155 | B170: 2019-07-08 | C170: 368.540009 | D170: 369.920013 | E170: 366.779999 | F170: 369.179993 | G170: 646600 | H170: 364.832672 | I170: 0.9882243863 | J170: 1 | K170: 364.2 | L170: 365.56 | M170: 362.46 | N170: 364.83 | O170: 646600
A171: 156 | B171: 2019-07-05 | C171: 369.880005 | D171: 370.829987 | E171: 366.670013 | F171: 369.920013 | G171: 716900 | H171: 365.563965 | I171: 0.9882243516 | J171: 1 | K171: 365.52 | L171: 366.46 | M171: 362.35 | N171: 365.56 | O171: 716900
A172: 157 | B172: 2019-07-03 | C172: 367.940002 | D172: 370.470001 | E172: 365.350006 | F172: 370.380005 | G172: 742100 | H172: 366.018555 | I172: 0.9882243913 | J172: 1 | K172: 363.61 | L172: 366.11 | M172: 361.05 | N172: 366.02 | O172: 742100
A173: 158 | B173: 2019-07-02 | C173: 361.579987 | D173: 367.570007 | E173: 361.070007 | F173: 367.570007 | G173: 1052800 | H173: 363.241669 | I173: 0.9882244527 | J173: 1 | K173: 357.32 | L173: 363.24 | M173: 356.82 | N173: 363.24 | O173: 1052800
A174: 159 | B174: 2019-07-01 | C174: 365.410004 | D174: 366.769989 | E174: 361.049988 | F174: 361.470001 | G174: 1003900 | H174: 357.21347 | I174: 0.9882243866 | J174: 1 | K174: 361.11 | L174: 362.45 | M174: 356.8 | N174: 357.21 | O174: 1003900
A175: 160 | B175: 2019-06-28 | C175: 359.480011 | D175: 363.75 | E175: 357.670013 | F175: 363.540009 | G175: 1369600 | H175: 359.259125 | I175: 0.9882244488 | J175: 1 | K175: 355.25 | L175: 359.47 | M175: 353.46 | N175: 359.26 | O175: 1369600
A176: 161 | B176: 2019-06-27 | C176: 359.929993 | D176: 360.519989 | E176: 357.26001 | F176: 359.089996 | G176: 826500 | H176: 354.861481 | I176: 0.9882243587 | J176: 1 | K176: 355.69 | L176: 356.27 | M176: 353.05 | N176: 354.86 | O176: 826500
A177: 162 | B177: 2019-06-26 | C177: 361.640015 | D177: 362 | E177: 357 | F177: 359.5 | G177: 977700 | H177: 355.266663 | I177: 0.9882243755 | J177: 1 | K177: 357.38 | L177: 357.74 | M177: 352.8 | N177: 355.27 | O177: 977700
A178: 163 | B178: 2019-06-25 | C178: 360 | D178: 362.799988 | E178: 359.73999 | F178: 360.559998 | G178: 1168900 | H178: 356.314209 | I178: 0.9882244591 | J178: 1 | K178: 355.76 | L178: 358.53 | M178: 355.5 | N178: 356.31 | O178: 1168900
A179: 164 | B179: 2019-06-24 | C179: 360.440002 | D179: 362.880005 | E179: 359.73999 | F179: 359.980011 | G179: 1766700 | H179: 355.741028 | I179: 0.9882243934 | J179: 1 | K179: 356.2 | L179: 358.61 | M179: 355.5 | N179: 355.74 | O179: 1766700
A180: 165 | B180: 2019-06-21 | C180: 362.230011 | D180: 362.73999 | E180: 357.570007 | F180: 359.359985 | G180: 1544700 | H180: 355.128326 | I180: 0.9882244569 | J180: 1 | K180: 357.96 | L180: 358.47 | M180: 353.36 | N180: 355.13 | O180: 1544700
A181: 166 | B181: 2019-06-20 | C181: 357.769989 | D181: 363.329987 | E181: 357.709991 | F181: 362.799988 | G181: 1048800 | H181: 358.527802 | I181: 0.9882244042 | J181: 1 | K181: 353.56 | L181: 359.05 | M181: 353.5 | N181: 358.53 | O181: 1048800
A182: 167 | B182: 2019-06-19 | C182: 353.76001 | D182: 356.549988 | E182: 353.190002 | F182: 355.730011 | G182: 816500 | H182: 351.541077 | I182: 0.9882244009 | J182: 1 | K182: 349.59 | L182: 352.35 | M182: 349.03 | N182: 351.54 | O182: 816500
A183: 168 | B183: 2019-06-18 | C183: 349.48999 | D183: 354.279999 | E183: 348.390015 | F183: 353.519989 | G183: 826400 | H183: 349.357086 | I183: 0.9882244198 | J183: 1 | K183: 345.37 | L183: 350.11 | M183: 344.29 | N183: 349.36 | O183: 826400
A184: 169 | B184: 2019-06-17 | C184: 351.220001 | D184: 352.410004 | E184: 346.76001 | F184: 348.690002 | G184: 904200 | H184: 344.583954 | I184: 0.9882243598 | J184: 1 | K184: 347.08 | L184: 348.26 | M184: 342.68 | N184: 344.58 | O184: 904200
A185: 170 | B185: 2019-06-14 | C185: 349.079987 | D185: 352.459991 | E185: 348.440002 | F185: 350.140015 | G185: 1059400 | H185: 346.016937 | I185: 0.9882244879 | J185: 1 | K185: 344.97 | L185: 348.31 | M185: 344.34 | N185: 346.02 | O185: 1059400
A186: 171 | B186: 2019-06-13 | C186: 347.579987 | D186: 349.709991 | E186: 344.399994 | F186: 349.079987 | G186: 1203900 | H186: 344.96936 | I186: 0.988224398 | J186: 1 | K186: 343.49 | L186: 345.59 | M186: 340.34 | N186: 344.97 | O186: 1203900
A187: 172 | B187: 2019-06-12 | C187: 344.230011 | D187: 346.140015 | E187: 342.320007 | F187: 345.51001 | G187: 1131900 | H187: 341.441437 | I187: 0.9882244425 | J187: 1 | K187: 340.18 | L187: 342.06 | M187: 338.29 | N187: 341.44 | O187: 1131900
A188: 173 | B188: 2019-06-11 | C188: 352.01001 | D188: 352.549988 | E188: 340.869995 | F188: 344.040009 | G188: 1684300 | H188: 339.988708 | I188: 0.9882243318 | J188: 1 | K188: 347.86 | L188: 348.4 | M188: 336.86 | N188: 339.99 | O188: 1684300
A189: 174 | B189: 2019-06-10 | C189: 357.970001 | D189: 358.630005 | E189: 350.730011 | F189: 351.600006 | G189: 1356200 | H189: 347.459717 | I189: 0.9882244342 | J189: 1 | K189: 353.75 | L189: 354.41 | M189: 346.6 | N189: 347.46 | O189: 1356200
A190: 175 | B190: 2019-06-07 | C190: 353.450012 | D190: 356.149994 | E190: 352.399994 | F190: 355.230011 | G190: 1125800 | H190: 351.046967 | I190: 0.9882244071 | J190: 1 | K190: 349.29 | L190: 351.96 | M190: 348.25 | N190: 351.05 | O190: 1125800
A191: 176 | B191: 2019-06-06 | C191: 353.369995 | D191: 354.339996 | E191: 350.149994 | F191: 352.519989 | G191: 1149800 | H191: 348.368866 | I191: 0.9882244323 | J191: 1 | K191: 349.21 | L191: 350.17 | M191: 346.03 | N191: 348.37 | O191: 1149800
A192: 177 | B192: 2019-06-05 | C192: 349.98999 | D192: 352.859985 | E192: 348.51001 | F192: 352.700012 | G192: 1750500 | H192: 348.546753 | I192: 0.9882243866 | J192: 1 | K192: 345.87 | L192: 348.7 | M192: 344.41 | N192: 348.55 | O192: 1750500
A193: 178 | B193: 2019-06-04 | C193: 345.880005 | D193: 349.679993 | E193: 345.880005 | F193: 349.350006 | G193: 1573300 | H193: 345.236206 | I193: 0.988224417 | J193: 1 | K193: 341.81 | L193: 345.56 | M193: 341.81 | N193: 345.24 | O193: 1573300
A194: 179 | B194: 2019-06-03 | C194: 338.079987 | D194: 344.779999 | E194: 337.899994 | F194: 344.570007 | G194: 1345100 | H194: 340.512482 | I194: 0.9882243814 | J194: 1 | K194: 334.1 | L194: 340.72 | M194: 333.92 | N194: 340.51 | O194: 1345100
A195: 180 | B195: 2019-05-31 | C195: 337.589996 | D195: 341.140015 | E195: 337.48999 | F195: 338.540009 | G195: 1024000 | H195: 334.553497 | I195: 0.9882243992 | J195: 1 | K195: 333.61 | L195: 337.12 | M195: 333.52 | N195: 334.55 | O195: 1024000
A196: 181 | B196: 2019-05-30 | C196: 340 | D196: 343.480011 | E196: 339.75 | F196: 341.959991 | G196: 859100 | H196: 335.759125 | I196: 0.9818666915 | J196: 1 | K196: 333.83 | L196: 337.25 | M196: 333.59 | N196: 335.76 | O196: 859100
A197: 182 | B197: 2019-05-29 | C197: 336.779999 | D197: 340.359985 | E197: 335.279999 | F197: 339.339996 | G197: 1184400 | H197: 333.186646 | I197: 0.9818667116 | J197: 1 | K197: 330.67 | L197: 334.19 | M197: 329.2 | N197: 333.19 | O197: 1184400
A198: 183 | B198: 2019-05-28 | C198: 338.959991 | D198: 341.279999 | E198: 337.100006 | F198: 337.890015 | G198: 3559400 | H198: 331.762939 | I198: 0.9818666556 | J198: 1 | K198: 332.81 | L198: 335.09 | M198: 330.99 | N198: 331.76 | O198: 3559400
A199: 184 | B199: 2019-05-24 | C199: 340.670013 | D199: 341.619995 | E199: 337.269989 | F199: 338.779999 | G199: 1293100 | H199: 332.63681 | I199: 0.9818667306 | J199: 1 | K199: 334.49 | L199: 335.43 | M199: 331.15 | N199: 332.64 | O199: 1293100
A200: 185 | B200: 2019-05-23 | C200: 339.720001 | D200: 341.440002 | E200: 336.079987 | F200: 340.070007 | G200: 1461200 | H200: 333.903412 | I200: 0.9818666896 | J200: 1 | K200: 333.56 | L200: 335.25 | M200: 329.99 | N200: 333.9 | O200: 1461200
... 4300 more rows

Sheet CalculationsAndCharts
A1: On-Balance Volume Modified (OBVM) | R1: Clutter Control
A2: =InputPriceData!A1 -> Lockheed Martin Corporation (LMT) -NYSE (Daily) | R2: (Hover 4 help?)
A4: User Charting Controls | E4: Click to Shift Chart One Bar: | R4: 2
A5: Data Control | C5: TRUE
A6: =InputPriceData!$B$10 -> 10875 | B6: Available Input Data Rows | E6: Earliest: | F6: =OFFSET(InputPriceData!B15,CalculationsAndCharts!A6,0,1,1) -> 1977-01-03
A7: =MAX(A33:A60000) -> 1250 | B7: Available Calculation Rows | E7: Latest: | F7: =OFFSET(InputPriceData!B15,1,0,1,1) -> 2020-02-14
A8: =MIN(AvailableInputRows-DataPanRows,A7) -> 1250 | B8: Logically Available for Calc / Plot | E8: $ Change: | F8: =G33-G34 -> 3.15
R9: 3
A10: Historical Price Windowing Specifications | F10: Click to Shift
A11: 0 | B11: Input Data Offset (Pan) | F11: Points to Plot
A12: 340 | B12: Data Points to Plot (Zoom)
B13: First: | C13: =OFFSET(B32,A12,0,1,1) -> 2018-10-09 | R13: =IF(OR($R$9=1,$R$9=3),"Value @ Cursor:","") -> Value @ Cursor:
B14: ="Last: " & IF(OFFSET(InputPriceData!P15,1+A11,0,1,1)="","",TEXT(OFFSET(InputPriceData!P15,1+A11,0,1,1),"H:MM AM/PM")) -> Last: | C14: =B33 -> 2020-02-14 | R14: =IF(OR($R$9=1,$R$9=3),"Correl: "&TEXT(OFFSET(K32,$E$27,0,1,1),"#,##0.00"),"") -> Correl: 0.25
A15: User Controls | C15: Alpha | D15: 1-Alpha | R15: =IF(OR($R$9=1,$R$9=3),"OBV: "&TEXT(OFFSET(H32,$E$27,0,1,1),"#,##0.00,,""M"""),"") -> OBV: 86.69M
A16: 7 | B16: OBVM EMA Length | C16: =2/(A16+1) -> 0.25 | D16: =1-C16 -> 0.75
A17: 10 | B17: Signal EMA Length | C17: =2/(A17+1) -> 0.1818181818 | D17: =1-C17 -> 0.8181818182
A18: 20 | B18: Correlation Look Back | R18: =IF(OR($R$9=2,$R$9=3),"Value @ Cursor: (Million)","") -> Value @ Cursor: (Million)
R19: =IF(OR($R$9=2,$R$9=3),"OBVM: "&TEXT(OFFSET(I32,$E$27,0,1,1),"#,##0.00,,""M"""),"") -> OBVM: 88.11M
R20: =IF(OR($R$9=2,$R$9=3),"Signal: "&TEXT(OFFSET(J32,$E$27,0,1,1),"#,##0.00,,""M"""),"") -> Signal: 89.58M
A25: Help! I would like to plot data
A26: From | B26: 2004-05-17 | C26: =OFFSET(InputPriceData!$A$15,MATCH(B26,OFFSET(InputPriceData!B15,1,0,InputPriceData!$B$10,1),0),0,1,1)-C27 -> 1226 | E26: 161
A27: To | B27: 2009-03-30 | C27: =OFFSET(InputPriceData!$A$15,MATCH(B27,OFFSET(InputPriceData!$B$15,1,0,InputPriceData!$B$10,1),0),0,1,1)-1 -> 2739 | E27: =$A$12-$E$26+1 -> 180
H28: Value @ Cursor => | I28: =OFFSET(A32,$E$27,0,1,1)&"(RR)" -> 180(RR) | J28: =OFFSET($B$32,E27,0,1,1) -> 2019-05-31 | K28: =TEXT(OFFSET(D32,$E$27,0,1,1),"#,##0.00")&"(o)" -> 333.61(o) | L28: =TEXT(OFFSET(E32,$E$27,0,1,1),"#,##0.00")&"(h)" -> 337.12(h) | M28: =TEXT(OFFSET(F32,$E$27,0,1,1),"#,##0.00")&"(l)" -> 333.52(l) | N28: =TEXT(OFFSET(G32,$E$27,0,1,1),"#,##0.00")&"(c)" -> 334.55(c) | O28: =TEXT(OFFSET(C32,$E$27,0,1,1),"#,##0.00,,""M""")&"(v)" -> 1.02M(v)
E29: Cursor ==> | AU29: Work Area For Chart Cursors
A31: Rel Row | C31: ="Price Bars: " & InputPriceData!A1 -> Price Bars: Lockheed Martin Corporation (LMT) -NYSE (Daily) | I31: ="OBVM("&A16&","&A17&")" -> OBVM(7,10) | N31: OBVM v Signal | Z31: OBVM Color Bands | AD31: Price Color Bands | AP31: Used To Color Vol Bars
B32: Date | C32: Volume | D32: Open | E32: High | F32: Low | G32: Close | H32: OBV | I32: ="OBVM("&A16&")" -> OBVM(7) | J32: ="Signal("&A17&")" -> Signal(10) | K32: ="Correl("&A18&")" -> Correl(20) | L32: UpCross | M32: DnCross | N32: Above | O32: Below | Z32: =IF($R$4=3,"Long","X-Up") -> X-Up | AA32: X-Up(neg) | AB32: =IF($R$4=3,"Short","X-Dn") -> X-Dn | AC32: X-Dn(neg) | AD32: Long | AE32: Short | AP32: Up Vol | AQ32: Dn Vol | AU32: Volume Cursor | AV32: =MAX(OFFSET(C33,0,0,A12,1)) -> 4516500 | AW32: OBVM Cursor | AY32: Price Chart Cursor | BA32: Correl Cursor
A33: 1 | B33: =IF(A33>$A$8,"",OFFSET(InputPriceData!B$15,$A33+$A$11,0,1,1)) -> 2020-02-14 | C33: =IF($A33>$A$8,"",OFFSET(InputPriceData!G$15,CalculationsAndCharts!$A33+$A$11,IF($C$5,8,0),1,1)) -> 948600 | D33: =IF(A33>$A$8,"",OFFSET(InputPriceData!C$15,CalculationsAndCharts!$A33+$A$11,IF($C$5,8,0),1,1)) -> 434.98 | E33: =IF(A33>$A$8,"",OFFSET(InputPriceData!D$15,CalculationsAndCharts!$A33+$A$11,IF($C$5,8,0),1,1)) -> 438.47 | F33: =IF(A33>$A$8,"",OFFSET(InputPriceData!E$15,CalculationsAndCharts!$A33+$A$11,IF($C$5,8,0),1,1)) -> 434.31 | G33: =IF(A33>$A$8,"",OFFSET(InputPriceData!F$15,CalculationsAndCharts!$A33+$A$11,IF($C$5,8,0),1,1)) -> 437.85 | H33: =IF(G33>G34,C33,IF(G33<G34,-C33,0))+H34 -> 113199600 | I33: =H33*$C$16+I34*$D$16 -> 112741598.7 | J33: =I33*$C$17+J34*$D$17 -> 111883323.8 | K33: =CORREL(OFFSET(H33,0,0,$A$18,1),OFFSET(G33,0,0,$A$18,1)) -> 0.8848419873 | L33: =AND(I33>J33,I34<J34) -> FALSE | M33: =AND(I33<J33,I34>J34) -> FALSE | N33: =I33>J33 -> TRUE | O33: =I33<J33 -> FALSE | Z33: =IF(AND($R$9>1,OR(AND($R$4=3,$N33),AND($R$4=2,$L33))),IF($AX$34> 0,$AX$34,NA()),NA()) ->  | AA33: =IF(AND($R$9>1,OR(AND($R$4=3,$N33),AND($R$4=2,$L33))),IF($AX$33<0,$AX$33,NA()),NA()) ->  | AB33: =IF(AND($R$9>1,OR(AND($R$4=2,$M33),AND($R$4=3,$O33))),IF($AX$34>0,$AX$34,NA()),NA()) ->  | AC33: =IF(AND($R$9>1,OR(AND($R$4=2,$M33),AND($R$4=3,$O33))),IF($AX$33<0,$AX$33,NA()),NA()) ->  | AD33: =IF(AND($R$9>1,OR(AND($R$4=2,$L33),AND($R$4=3,$N33))),$AZ$34,NA()) ->  | AE33: =IF(AND($R$9>1,OR(AND($R$4=2,$M33),AND($R$4=3,$O33))),$AZ$34,NA()) ->  | AP33: =IF(G33>=D33,C33,NA()) -> 948600 | AQ33: =IF(G33<D33,C33,NA()) ->  | AU33: =$E$27 -> 180 | AV33: 0 | AW33: =$E$27 -> 180 | AX33: 62500000 | AY33: =$E$27 -> 180 | AZ33: 229.23225 | BA33: =$E$27 -> 180 | BB33: -0.25
A34: 2 | B34: =IF(A34>$A$8,"",OFFSET(InputPriceData!B$15,$A34+$A$11,0,1,1)) -> 2020-02-13 | C34: =IF(A34>$A$8,"",OFFSET(InputPriceData!G$15,CalculationsAndCharts!$A34+$A$11,IF($C$5,8,0),1,1)) -> 800200 | D34: =IF(A34>$A$8,"",OFFSET(InputPriceData!C$15,CalculationsAndCharts!$A34+$A$11,IF($C$5,8,0),1,1)) -> 435.8 | E34: =IF(A34>$A$8,"",OFFSET(InputPriceData!D$15,CalculationsAndCharts!$A34+$A$11,IF($C$5,8,0),1,1)) -> 439.29 | F34: =IF(A34>$A$8,"",OFFSET(InputPriceData!E$15,CalculationsAndCharts!$A34+$A$11,IF($C$5,8,0),1,1)) -> 434.3 | G34: =IF(A34>$A$8,"",OFFSET(InputPriceData!F$15,CalculationsAndCharts!$A34+$A$11,IF($C$5,8,0),1,1)) -> 434.7 | H34: =IF(G34>G35,C34,IF(G34<G35,-C34,0))+H35 -> 112251000 | I34: =H34*$C$16+I35*$D$16 -> 112588931.6 | J34: =I34*$C$17+J35*$D$17 -> 111692596 | K34: =CORREL(OFFSET(H34,0,0,$A$18,1),OFFSET(G34,0,0,$A$18,1)) -> 0.863170081 | L34: =AND(I34>J34,I35<J35) -> FALSE | M34: =AND(I34<J34,I35>J35) -> FALSE | N34: =I34>J34 -> TRUE | O34: =I34<J34 -> FALSE | Z34: =IF(AND($R$9>1,OR(AND($R$4=3,$N34),AND($R$4=2,$L34))),IF($AX$34> 0,$AX$34,NA()),NA()) ->  | AA34: =IF(AND($R$9>1,OR(AND($R$4=3,$N34),AND($R$4=2,$L34))),IF($AX$33<0,$AX$33,NA()),NA()) ->  | AB34: =IF(AND($R$9>1,OR(AND($R$4=2,$M34),AND($R$4=3,$O34))),IF($AX$34>0,$AX$34,NA()),NA()) ->  | AC34: =IF(AND($R$9>1,OR(AND($R$4=2,$M34),AND($R$4=3,$O34))),IF($AX$33<0,$AX$33,NA()),NA()) ->  | AD34: =IF(AND($R$9>1,OR(AND($R$4=2,$L34),AND($R$4=3,$N34))),$AZ$34,NA()) ->  | AE34: =IF(AND($R$9>1,OR(AND($R$4=2,$M34),AND($R$4=3,$O34))),$AZ$34,NA()) ->  | AP34: =IF(G34>=D34,C34,NA()) ->  | AQ34: =IF(G34<D34,C34,NA()) -> 800200 | AU34: =$E$27 -> 180 | AV34: =CEILING(AV32,10^INT(LOG10(AV32))/8) -> 4625000 | AW34: =$E$27 -> 180 | AX34: 125000000 | AY34: =$E$27 -> 180 | AZ34: 453.59325 | BA34: =$E$27 -> 180 | BB34: 1
A35: 3 | B35: =IF(A35>$A$8,"",OFFSET(InputPriceData!B$15,$A35+$A$11,0,1,1)) -> 2020-02-12 | C35: =IF(A35>$A$8,"",OFFSET(InputPriceData!G$15,CalculationsAndCharts!$A35+$A$11,IF($C$5,8,0),1,1)) -> 1419200 | D35: =IF(A35>$A$8,"",OFFSET(InputPriceData!C$15,CalculationsAndCharts!$A35+$A$11,IF($C$5,8,0),1,1)) -> 439.01 | E35: =IF(A35>$A$8,"",OFFSET(InputPriceData!D$15,CalculationsAndCharts!$A35+$A$11,IF($C$5,8,0),1,1)) -> 439.69 | F35: =IF(A35>$A$8,"",OFFSET(InputPriceData!E$15,CalculationsAndCharts!$A35+$A$11,IF($C$5,8,0),1,1)) -> 434.6 | G35: =IF(A35>$A$8,"",OFFSET(InputPriceData!F$15,CalculationsAndCharts!$A35+$A$11,IF($C$5,8,0),1,1)) -> 436.6 | H35: 113051200 | I35: 112701575.5 | J35: 111493410.3 | K35: 0.8583395028 | L35: FALSE | M35: FALSE | N35: TRUE | O35: FALSE | AP35: =IF(G35>=D35,C35,NA()) ->  | AQ35: =IF(G35<D35,C35,NA()) -> 1419200
A36: 4 | B36: =IF(A36>$A$8,"",OFFSET(InputPriceData!B$15,$A36+$A$11,0,1,1)) -> 2020-02-11 | C36: =IF(A36>$A$8,"",OFFSET(InputPriceData!G$15,CalculationsAndCharts!$A36+$A$11,IF($C$5,8,0),1,1)) -> 744600 | D36: =IF(A36>$A$8,"",OFFSET(InputPriceData!C$15,CalculationsAndCharts!$A36+$A$11,IF($C$5,8,0),1,1)) -> 441.36 | E36: =IF(A36>$A$8,"",OFFSET(InputPriceData!D$15,CalculationsAndCharts!$A36+$A$11,IF($C$5,8,0),1,1)) -> 442.53 | F36: =IF(A36>$A$8,"",OFFSET(InputPriceData!E$15,CalculationsAndCharts!$A36+$A$11,IF($C$5,8,0),1,1)) -> 437.47 | G36: =IF(A36>$A$8,"",OFFSET(InputPriceData!F$15,CalculationsAndCharts!$A36+$A$11,IF($C$5,8,0),1,1)) -> 439.85 | H36: 114470400 | I36: 112585034 | J36: 111224929.1 | K36: 0.8623658801 | L36: FALSE | M36: FALSE | N36: TRUE | O36: FALSE | AP36: =IF(G36>=D36,C36,NA()) ->  | AQ36: =IF(G36<D36,C36,NA()) -> 744600
A37: 5 | B37: =IF(A37>$A$8,"",OFFSET(InputPriceData!B$15,$A37+$A$11,0,1,1)) -> 2020-02-10 | C37: =IF(A37>$A$8,"",OFFSET(InputPriceData!G$15,CalculationsAndCharts!$A37+$A$11,IF($C$5,8,0),1,1)) -> 870400 | D37: =IF(A37>$A$8,"",OFFSET(InputPriceData!C$15,CalculationsAndCharts!$A37+$A$11,IF($C$5,8,0),1,1)) -> 439 | E37: =IF(A37>$A$8,"",OFFSET(InputPriceData!D$15,CalculationsAndCharts!$A37+$A$11,IF($C$5,8,0),1,1)) -> 441.52 | F37: =IF(A37>$A$8,"",OFFSET(InputPriceData!E$15,CalculationsAndCharts!$A37+$A$11,IF($C$5,8,0),1,1)) -> 437.82 | G37: =IF(A37>$A$8,"",OFFSET(InputPriceData!F$15,CalculationsAndCharts!$A37+$A$11,IF($C$5,8,0),1,1)) -> 439.76 | H37: 113725800 | I37: 111956578.7 | J37: 110922683.6 | K37: 0.8546764811 | L37: FALSE | M37: FALSE | N37: TRUE | O37: FALSE | AP37: 870400
A38: 6 | B38: =IF(A38>$A$8,"",OFFSET(InputPriceData!B$15,$A38+$A$11,0,1,1)) -> 2020-02-07 | C38: =IF(A38>$A$8,"",OFFSET(InputPriceData!G$15,CalculationsAndCharts!$A38+$A$11,IF($C$5,8,0),1,1)) -> 883800 | D38: =IF(A38>$A$8,"",OFFSET(InputPriceData!C$15,CalculationsAndCharts!$A38+$A$11,IF($C$5,8,0),1,1)) -> 438.14 | E38: =IF(A38>$A$8,"",OFFSET(InputPriceData!D$15,CalculationsAndCharts!$A38+$A$11,IF($C$5,8,0),1,1)) -> 441.21 | F38: =IF(A38>$A$8,"",OFFSET(InputPriceData!E$15,CalculationsAndCharts!$A38+$A$11,IF($C$5,8,0),1,1)) -> 437.29 | G38: =IF(A38>$A$8,"",OFFSET(InputPriceData!F$15,CalculationsAndCharts!$A38+$A$11,IF($C$5,8,0),1,1)) -> 439.17 | H38: 112855400 | I38: 111366838.2 | J38: 110692929.2 | K38: 0.8593916936 | L38: FALSE | M38: FALSE | N38: TRUE | O38: FALSE | AP38: 883800
A39: 7 | B39: =IF(A39>$A$8,"",OFFSET(InputPriceData!B$15,$A39+$A$11,0,1,1)) -> 2020-02-06 | C39: =IF(A39>$A$8,"",OFFSET(InputPriceData!G$15,CalculationsAndCharts!$A39+$A$11,IF($C$5,8,0),1,1)) -> 833500 | D39: =IF(A39>$A$8,"",OFFSET(InputPriceData!C$15,CalculationsAndCharts!$A39+$A$11,IF($C$5,8,0),1,1)) -> 435.56 | E39: =IF(A39>$A$8,"",OFFSET(InputPriceData!D$15,CalculationsAndCharts!$A39+$A$11,IF($C$5,8,0),1,1)) -> 439.86 | F39: =IF(A39>$A$8,"",OFFSET(InputPriceData!E$15,CalculationsAndCharts!$A39+$A$11,IF($C$5,8,0),1,1)) -> 434.91 | G39: =IF(A39>$A$8,"",OFFSET(InputPriceData!F$15,CalculationsAndCharts!$A39+$A$11,IF($C$5,8,0),1,1)) -> 438.97 | H39: 111971600 | I39: 110870651 | J39: 110543171.6 | K39: 0.8163486218 | L39: FALSE | M39: FALSE | N39: TRUE | O39: FALSE | AP39: 833500
A40: 8 | B40: =IF(A40>$A$8,"",OFFSET(InputPriceData!B$15,$A40+$A$11,0,1,1)) -> 2020-02-05 | C40: =IF(A40>$A$8,"",OFFSET(InputPriceData!G$15,CalculationsAndCharts!$A40+$A$11,IF($C$5,8,0),1,1)) -> 1251800 | D40: =IF(A40>$A$8,"",OFFSET(InputPriceData!C$15,CalculationsAndCharts!$A40+$A$11,IF($C$5,8,0),1,1)) -> 433.32 | E40: =IF(A40>$A$8,"",OFFSET(InputPriceData!D$15,CalculationsAndCharts!$A40+$A$11,IF($C$5,8,0),1,1)) -> 435.92 | F40: =IF(A40>$A$8,"",OFFSET(InputPriceData!E$15,CalculationsAndCharts!$A40+$A$11,IF($C$5,8,0),1,1)) -> 429.02 | G40: =IF(A40>$A$8,"",OFFSET(InputPriceData!F$15,CalculationsAndCharts!$A40+$A$11,IF($C$5,8,0),1,1)) -> 435.19 | H40: 111138100 | I40: 110503668 | J40: 110470398.4 | K40: 0.812930264 | L40: TRUE | M40: FALSE | N40: TRUE | O40: FALSE | Z40: 125000000 | AD40: 453.59325 | AP40: 1251800
A41: 9 | B41: =IF(A41>$A$8,"",OFFSET(InputPriceData!B$15,$A41+$A$11,0,1,1)) -> 2020-02-04 | C41: =IF(A41>$A$8,"",OFFSET(InputPriceData!G$15,CalculationsAndCharts!$A41+$A$11,IF($C$5,8,0),1,1)) -> 1216300 | D41: =IF(A41>$A$8,"",OFFSET(InputPriceData!C$15,CalculationsAndCharts!$A41+$A$11,IF($C$5,8,0),1,1)) -> 425.46 | E41: =IF(A41>$A$8,"",OFFSET(InputPriceData!D$15,CalculationsAndCharts!$A41+$A$11,IF($C$5,8,0),1,1)) -> 431.99 | F41: =IF(A41>$A$8,"",OFFSET(InputPriceData!E$15,CalculationsAndCharts!$A41+$A$11,IF($C$5,8,0),1,1)) -> 425.46 | G41: =IF(A41>$A$8,"",OFFSET(InputPriceData!F$15,CalculationsAndCharts!$A41+$A$11,IF($C$5,8,0),1,1)) -> 430.78 | H41: 109886300 | I41: 110292190.6 | J41: 110463005.1 | K41: 0.7441519515 | L41: FALSE | M41: FALSE | N41: FALSE | O41: TRUE | AP41: 1216300
A42: 10 | B42: =IF(A42>$A$8,"",OFFSET(InputPriceData!B$15,$A42+$A$11,0,1,1)) -> 2020-02-03 | C42: =IF(A42>$A$8,"",OFFSET(InputPriceData!G$15,CalculationsAndCharts!$A42+$A$11,IF($C$5,8,0),1,1)) -> 1795800 | D42: =IF(A42>$A$8,"",OFFSET(InputPriceData!C$15,CalculationsAndCharts!$A42+$A$11,IF($C$5,8,0),1,1)) -> 429.52 | E42: =IF(A42>$A$8,"",OFFSET(InputPriceData!D$15,CalculationsAndCharts!$A42+$A$11,IF($C$5,8,0),1,1)) -> 430 | F42: =IF(A42>$A$8,"",OFFSET(InputPriceData!E$15,CalculationsAndCharts!$A42+$A$11,IF($C$5,8,0),1,1)) -> 422.04 | G42: =IF(A42>$A$8,"",OFFSET(InputPriceData!F$15,CalculationsAndCharts!$A42+$A$11,IF($C$5,8,0),1,1)) -> 423.86 | H42: 108670000 | I42: 110427487.5 | J42: 110500963.9 | K42: 0.7757851512 | L42: FALSE | M42: TRUE | N42: FALSE | O42: TRUE | AB42: 125000000 | AE42: 453.59325 | AQ42: 1795800
A43: 11 | B43: =IF(A43>$A$8,"",OFFSET(InputPriceData!B$15,$A43+$A$11,0,1,1)) -> 2020-01-31 | C43: =IF(A43>$A$8,"",OFFSET(InputPriceData!G$15,CalculationsAndCharts!$A43+$A$11,IF($C$5,8,0),1,1)) -> 1650100 | D43: =IF(A43>$A$8,"",OFFSET(InputPriceData!C$15,CalculationsAndCharts!$A43+$A$11,IF($C$5,8,0),1,1)) -> 434.93 | E43: =IF(A43>$A$8,"",OFFSET(InputPriceData!D$15,CalculationsAndCharts!$A43+$A$11,IF($C$5,8,0),1,1)) -> 435.57 | F43: =IF(A43>$A$8,"",OFFSET(InputPriceData!E$15,CalculationsAndCharts!$A43+$A$11,IF($C$5,8,0),1,1)) -> 426.1 | G43: =IF(A43>$A$8,"",OFFSET(InputPriceData!F$15,CalculationsAndCharts!$A43+$A$11,IF($C$5,8,0),1,1)) -> 428.12 | H43: 110465800 | I43: 111013316.7 | J43: 110517292 | K43: 0.6507656602 | L43: FALSE | M43: FALSE | N43: TRUE | O43: FALSE | AQ43: 1650100
A44: 12 | B44: =IF(A44>$A$8,"",OFFSET(InputPriceData!B$15,$A44+$A$11,0,1,1)) -> 2020-01-30 | C44: =IF(A44>$A$8,"",OFFSET(InputPriceData!G$15,CalculationsAndCharts!$A44+$A$11,IF($C$5,8,0),1,1)) -> 1210200 | D44: =IF(A44>$A$8,"",OFFSET(InputPriceData!C$15,CalculationsAndCharts!$A44+$A$11,IF($C$5,8,0),1,1)) -> 430.34 | E44: =IF(A44>$A$8,"",OFFSET(InputPriceData!D$15,CalculationsAndCharts!$A44+$A$11,IF($C$5,8,0),1,1)) -> 437 | F44: =IF(A44>$A$8,"",OFFSET(InputPriceData!E$15,CalculationsAndCharts!$A44+$A$11,IF($C$5,8,0),1,1)) -> 430.34 | G44: =IF(A44>$A$8,"",OFFSET(InputPriceData!F$15,CalculationsAndCharts!$A44+$A$11,IF($C$5,8,0),1,1)) -> 435.9 | H44: 112115900 | I44: 111195822.2 | J44: 110407064.3 | K44: 0.6825992018 | L44: FALSE | M44: FALSE | N44: TRUE | O44: FALSE | AP44: 1210200
A45: 13 | B45: =IF(A45>$A$8,"",OFFSET(InputPriceData!B$15,$A45+$A$11,0,1,1)) -> 2020-01-29 | C45: =IF(A45>$A$8,"",OFFSET(InputPriceData!G$15,CalculationsAndCharts!$A45+$A$11,IF($C$5,8,0),1,1)) -> 1268500 | D45: =IF(A45>$A$8,"",OFFSET(InputPriceData!C$15,CalculationsAndCharts!$A45+$A$11,IF($C$5,8,0),1,1)) -> 437.72 | E45: =IF(A45>$A$8,"",OFFSET(InputPriceData!D$15,CalculationsAndCharts!$A45+$A$11,IF($C$5,8,0),1,1)) -> 437.99 | F45: =IF(A45>$A$8,"",OFFSET(InputPriceData!E$15,CalculationsAndCharts!$A45+$A$11,IF($C$5,8,0),1,1)) -> 431.02 | G45: =IF(A45>$A$8,"",OFFSET(InputPriceData!F$15,CalculationsAndCharts!$A45+$A$11,IF($C$5,8,0),1,1)) -> 433.84 | H45: 110905700 | I45: 110889129.7 | J45: 110231784.7 | K45: 0.7365871306 | L45: FALSE | M45: FALSE | N45: TRUE | O45: FALSE | AQ45: 1268500
A46: 14 | B46: =IF(A46>$A$8,"",OFFSET(InputPriceData!B$15,$A46+$A$11,0,1,1)) -> 2020-01-28 | C46: =IF(A46>$A$8,"",OFFSET(InputPriceData!G$15,CalculationsAndCharts!$A46+$A$11,IF($C$5,8,0),1,1)) -> 2063200 | D46: =IF(A46>$A$8,"",OFFSET(InputPriceData!C$15,CalculationsAndCharts!$A46+$A$11,IF($C$5,8,0),1,1)) -> 434.77 | E46: =IF(A46>$A$8,"",OFFSET(InputPriceData!D$15,CalculationsAndCharts!$A46+$A$11,IF($C$5,8,0),1,1)) -> 438.99 | F46: =IF(A46>$A$8,"",OFFSET(InputPriceData!E$15,CalculationsAndCharts!$A46+$A$11,IF($C$5,8,0),1,1)) -> 426.27 | G46: =IF(A46>$A$8,"",OFFSET(InputPriceData!F$15,CalculationsAndCharts!$A46+$A$11,IF($C$5,8,0),1,1)) -> 437.17 | H46: 112174200 | I46: 110883606.2 | J46: 110085708.1 | K46: 0.7522382809 | L46: FALSE | M46: FALSE | N46: TRUE | O46: FALSE | AP46: 2063200
A47: 15 | B47: =IF(A47>$A$8,"",OFFSET(InputPriceData!B$15,$A47+$A$11,0,1,1)) -> 2020-01-27 | C47: =IF(A47>$A$8,"",OFFSET(InputPriceData!G$15,CalculationsAndCharts!$A47+$A$11,IF($C$5,8,0),1,1)) -> 1737900 | D47: =IF(A47>$A$8,"",OFFSET(InputPriceData!C$15,CalculationsAndCharts!$A47+$A$11,IF($C$5,8,0),1,1)) -> 425.86 | E47: =IF(A47>$A$8,"",OFFSET(InputPriceData!D$15,CalculationsAndCharts!$A47+$A$11,IF($C$5,8,0),1,1)) -> 434.45 | F47: =IF(A47>$A$8,"",OFFSET(InputPriceData!E$15,CalculationsAndCharts!$A47+$A$11,IF($C$5,8,0),1,1)) -> 425.86 | G47: =IF(A47>$A$8,"",OFFSET(InputPriceData!F$15,CalculationsAndCharts!$A47+$A$11,IF($C$5,8,0),1,1)) -> 432.38 | H47: 110111000 | I47: 110453408.3 | J47: 109908397.4 | K47: 0.6943857359 | L47: FALSE | M47: FALSE | N47: TRUE | O47: FALSE | AP47: 1737900
A48: 16 | B48: =IF(A48>$A$8,"",OFFSET(InputPriceData!B$15,$A48+$A$11,0,1,1)) -> 2020-01-24 | C48: =IF(A48>$A$8,"",OFFSET(InputPriceData!G$15,CalculationsAndCharts!$A48+$A$11,IF($C$5,8,0),1,1)) -> 1086700 | D48: =IF(A48>$A$8,"",OFFSET(InputPriceData!C$15,CalculationsAndCharts!$A48+$A$11,IF($C$5,8,0),1,1)) -> 429.9 | E48: =IF(A48>$A$8,"",OFFSET(InputPriceData!D$15,CalculationsAndCharts!$A48+$A$11,IF($C$5,8,0),1,1)) -> 433.52 | F48: =IF(A48>$A$8,"",OFFSET(InputPriceData!E$15,CalculationsAndCharts!$A48+$A$11,IF($C$5,8,0),1,1)) -> 429.69 | G48: =IF(A48>$A$8,"",OFFSET(InputPriceData!F$15,CalculationsAndCharts!$A48+$A$11,IF($C$5,8,0),1,1)) -> 432.5 | H48: 111848900 | I48: 110567544.4 | J48: 109787283.9 | K48: 0.7319087528 | L48: FALSE | M48: FALSE | N48: TRUE | O48: FALSE | AP48: 1086700
A49: 17 | B49: =IF(A49>$A$8,"",OFFSET(InputPriceData!B$15,$A49+$A$11,0,1,1)) -> 2020-01-23 | C49: =IF(A49>$A$8,"",OFFSET(InputPriceData!G$15,CalculationsAndCharts!$A49+$A$11,IF($C$5,8,0),1,1)) -> 978400 | D49: =IF(A49>$A$8,"",OFFSET(InputPriceData!C$15,CalculationsAndCharts!$A49+$A$11,IF($C$5,8,0),1,1)) -> 424.06 | E49: =IF(A49>$A$8,"",OFFSET(InputPriceData!D$15,CalculationsAndCharts!$A49+$A$11,IF($C$5,8,0),1,1)) -> 429.56 | F49: =IF(A49>$A$8,"",OFFSET(InputPriceData!E$15,CalculationsAndCharts!$A49+$A$11,IF($C$5,8,0),1,1)) -> 424 | G49: =IF(A49>$A$8,"",OFFSET(InputPriceData!F$15,CalculationsAndCharts!$A49+$A$11,IF($C$5,8,0),1,1)) -> 428.78 | H49: 110762200 | I49: 110140425.8 | J49: 109613892.7 | K49: 0.7326053124 | L49: FALSE | M49: FALSE | N49: TRUE | O49: FALSE | AP49: 978400
A50: 18 | B50: =IF(A50>$A$8,"",OFFSET(InputPriceData!B$15,$A50+$A$11,0,1,1)) -> 2020-01-22 | C50: =IF(A50>$A$8,"",OFFSET(InputPriceData!G$15,CalculationsAndCharts!$A50+$A$11,IF($C$5,8,0),1,1)) -> 918700 | D50: =IF(A50>$A$8,"",OFFSET(InputPriceData!C$15,CalculationsAndCharts!$A50+$A$11,IF($C$5,8,0),1,1)) -> 427.5 | E50: =IF(A50>$A$8,"",OFFSET(InputPriceData!D$15,CalculationsAndCharts!$A50+$A$11,IF($C$5,8,0),1,1)) -> 428.5 | F50: =IF(A50>$A$8,"",OFFSET(InputPriceData!E$15,CalculationsAndCharts!$A50+$A$11,IF($C$5,8,0),1,1)) -> 424.36 | G50: =IF(A50>$A$8,"",OFFSET(InputPriceData!F$15,CalculationsAndCharts!$A50+$A$11,IF($C$5,8,0),1,1)) -> 424.42 | H50: 109783800 | I50: 109933167.8 | J50: 109496885.3 | K50: 0.7282704184 | L50: =AND(I50>J50,I51<J51) -> FALSE | M50: =AND(I50<J50,I51>J51) -> FALSE | N50: TRUE | O50: FALSE | AQ50: 918700
A51: 19 | B51: =IF(A51>$A$8,"",OFFSET(InputPriceData!B$15,$A51+$A$11,0,1,1)) -> 2020-01-21 | C51: =IF(A51>$A$8,"",OFFSET(InputPriceData!G$15,CalculationsAndCharts!$A51+$A$11,IF($C$5,8,0),1,1)) -> 1071400 | D51: =IF(A51>$A$8,"",OFFSET(InputPriceData!C$15,CalculationsAndCharts!$A51+$A$11,IF($C$5,8,0),1,1)) -> 424.42 | E51: =IF(A51>$A$8,"",OFFSET(InputPriceData!D$15,CalculationsAndCharts!$A51+$A$11,IF($C$5,8,0),1,1)) -> 427.78 | F51: =IF(A51>$A$8,"",OFFSET(InputPriceData!E$15,CalculationsAndCharts!$A51+$A$11,IF($C$5,8,0),1,1)) -> 423.01 | G51: =IF(A51>$A$8,"",OFFSET(InputPriceData!F$15,CalculationsAndCharts!$A51+$A$11,IF($C$5,8,0),1,1)) -> 426.15 | H51: 110702500 | I51: 109982957 | J51: 109399933.6 | K51: 0.7715488632 | L51: FALSE | M51: FALSE | N51: TRUE | O51: FALSE | AP51: 1071400
A52: 20 | B52: =IF(A52>$A$8,"",OFFSET(InputPriceData!B$15,$A52+$A$11,0,1,1)) -> 2020-01-17 | C52: =IF(A52>$A$8,"",OFFSET(InputPriceData!G$15,CalculationsAndCharts!$A52+$A$11,IF($C$5,8,0),1,1)) -> 1195600 | D52: =IF(A52>$A$8,"",OFFSET(InputPriceData!C$15,CalculationsAndCharts!$A52+$A$11,IF($C$5,8,0),1,1)) -> 426.61 | E52: =IF(A52>$A$8,"",OFFSET(InputPriceData!D$15,CalculationsAndCharts!$A52+$A$11,IF($C$5,8,0),1,1)) -> 427.54 | F52: =IF(A52>$A$8,"",OFFSET(InputPriceData!E$15,CalculationsAndCharts!$A52+$A$11,IF($C$5,8,0),1,1)) -> 424.5 | G52: =IF(A52>$A$8,"",OFFSET(InputPriceData!F$15,CalculationsAndCharts!$A52+$A$11,IF($C$5,8,0),1,1)) -> 425.66 | H52: 109631100 | I52: 109743109.4 | J52: 109270372.9 | K52: 0.7808950338 | L52: FALSE | M52: FALSE | N52: TRUE | O52: FALSE | AQ52: 1195600
A53: 21 | B53: =IF(A53>$A$8,"",OFFSET(InputPriceData!B$15,$A53+$A$11,0,1,1)) -> 2020-01-16 | C53: =IF(A53>$A$8,"",OFFSET(InputPriceData!G$15,CalculationsAndCharts!$A53+$A$11,IF($C$5,8,0),1,1)) -> 1085200 | D53: =IF(A53>$A$8,"",OFFSET(InputPriceData!C$15,CalculationsAndCharts!$A53+$A$11,IF($C$5,8,0),1,1)) -> 423.13 | E53: =IF(A53>$A$8,"",OFFSET(InputPriceData!D$15,CalculationsAndCharts!$A53+$A$11,IF($C$5,8,0),1,1)) -> 425.74 | F53: =IF(A53>$A$8,"",OFFSET(InputPriceData!E$15,CalculationsAndCharts!$A53+$A$11,IF($C$5,8,0),1,1)) -> 420.67 | G53: =IF(A53>$A$8,"",OFFSET(InputPriceData!F$15,CalculationsAndCharts!$A53+$A$11,IF($C$5,8,0),1,1)) -> 425.7 | H53: 110826700 | I53: 109780445.8 | J53: 109165320.3 | K53: 0.8197720362 | L53: FALSE | M53: FALSE | N53: TRUE | O53: FALSE | AP53: 1085200
A54: 22 | B54: =IF(A54>$A$8,"",OFFSET(InputPriceData!B$15,$A54+$A$11,0,1,1)) -> 2020-01-15 | C54: =IF(A54>$A$8,"",OFFSET(InputPriceData!G$15,CalculationsAndCharts!$A54+$A$11,IF($C$5,8,0),1,1)) -> 833000 | D54: =IF(A54>$A$8,"",OFFSET(InputPriceData!C$15,CalculationsAndCharts!$A54+$A$11,IF($C$5,8,0),1,1)) -> 416.42 | E54: =IF(A54>$A$8,"",OFFSET(InputPriceData!D$15,CalculationsAndCharts!$A54+$A$11,IF($C$5,8,0),1,1)) -> 421.48 | F54: =IF(A54>$A$8,"",OFFSET(InputPriceData!E$15,CalculationsAndCharts!$A54+$A$11,IF($C$5,8,0),1,1)) -> 416.14 | G54: =IF(A54>$A$8,"",OFFSET(InputPriceData!F$15,CalculationsAndCharts!$A54+$A$11,IF($C$5,8,0),1,1)) -> 420.95 | H54: 109741500 | I54: 109431694.5 | J54: 109028625.7 | K54: 0.8138674485 | L54: FALSE | M54: FALSE | N54: TRUE | O54: FALSE | AP54: 833000
A55: 23 | B55: =IF(A55>$A$8,"",OFFSET(InputPriceData!B$15,$A55+$A$11,0,1,1)) -> 2020-01-14 | C55: =IF(A55>$A$8,"",OFFSET(InputPriceData!G$15,CalculationsAndCharts!$A55+$A$11,IF($C$5,8,0),1,1)) -> 967200 | D55: =IF(A55>$A$8,"",OFFSET(InputPriceData!C$15,CalculationsAndCharts!$A55+$A$11,IF($C$5,8,0),1,1)) -> 417.59 | E55: =IF(A55>$A$8,"",OFFSET(InputPriceData!D$15,CalculationsAndCharts!$A55+$A$11,IF($C$5,8,0),1,1)) -> 418.27 | F55: =IF(A55>$A$8,"",OFFSET(InputPriceData!E$15,CalculationsAndCharts!$A55+$A$11,IF($C$5,8,0),1,1)) -> 415.07 | G55: =IF(A55>$A$8,"",OFFSET(InputPriceData!F$15,CalculationsAndCharts!$A55+$A$11,IF($C$5,8,0),1,1)) -> 416.14 | H55: 108908500 | I55: 109328425.9 | J55: 108939054.9 | K55: 0.8248184226 | L55: FALSE | M55: FALSE | N55: TRUE | O55: FALSE | AQ55: 967200
A56: 24 | B56: =IF(A56>$A$8,"",OFFSET(InputPriceData!B$15,$A56+$A$11,0,1,1)) -> 2020-01-13 | C56: =IF(A56>$A$8,"",OFFSET(InputPriceData!G$15,CalculationsAndCharts!$A56+$A$11,IF($C$5,8,0),1,1)) -> 986800 | D56: =IF(A56>$A$8,"",OFFSET(InputPriceData!C$15,CalculationsAndCharts!$A56+$A$11,IF($C$5,8,0),1,1)) -> 414.94 | E56: =IF(A56>$A$8,"",OFFSET(InputPriceData!D$15,CalculationsAndCharts!$A56+$A$11,IF($C$5,8,0),1,1)) -> 420.96 | F56: =IF(A56>$A$8,"",OFFSET(InputPriceData!E$15,CalculationsAndCharts!$A56+$A$11,IF($C$5,8,0),1,1)) -> 414.66 | G56: =IF(A56>$A$8,"",OFFSET(InputPriceData!F$15,CalculationsAndCharts!$A56+$A$11,IF($C$5,8,0),1,1)) -> 419.02 | H56: 109875700 | I56: 109468401.2 | J56: 108852528 | K56: 0.8499328515 | L56: FALSE | M56: FALSE | N56: TRUE | O56: FALSE | AP56: 986800
A57: 25 | B57: =IF(A57>$A$8,"",OFFSET(InputPriceData!B$15,$A57+$A$11,0,1,1)) -> 2020-01-10 | C57: =IF(A57>$A$8,"",OFFSET(InputPriceData!G$15,CalculationsAndCharts!$A57+$A$11,IF($C$5,8,0),1,1)) -> 987800 | D57: =IF(A57>$A$8,"",OFFSET(InputPriceData!C$15,CalculationsAndCharts!$A57+$A$11,IF($C$5,8,0),1,1)) -> 415 | E57: =IF(A57>$A$8,"",OFFSET(InputPriceData!D$15,CalculationsAndCharts!$A57+$A$11,IF($C$5,8,0),1,1)) -> 415.6 | F57: =IF(A57>$A$8,"",OFFSET(InputPriceData!E$15,CalculationsAndCharts!$A57+$A$11,IF($C$5,8,0),1,1)) -> 412.48 | G57: =IF(A57>$A$8,"",OFFSET(InputPriceData!F$15,CalculationsAndCharts!$A57+$A$11,IF($C$5,8,0),1,1)) -> 413.83 | H57: 108888900 | I57: 109332635 | J57: 108715667.3 | K57: 0.8588773431 | L57: FALSE | M57: FALSE | N57: TRUE | O57: FALSE | AQ57: 987800
A58: 26 | B58: =IF(A58>$A$8,"",OFFSET(InputPriceData!B$15,$A58+$A$11,0,1,1)) -> 2020-01-09 | C58: =IF(A58>$A$8,"",OFFSET(InputPriceData!G$15,CalculationsAndCharts!$A58+$A$11,IF($C$5,8,0),1,1)) -> 1064300 | D58: =IF(A58>$A$8,"",OFFSET(InputPriceData!C$15,CalculationsAndCharts!$A58+$A$11,IF($C$5,8,0),1,1)) -> 410.49 | E58: =IF(A58>$A$8,"",OFFSET(InputPriceData!D$15,CalculationsAndCharts!$A58+$A$11,IF($C$5,8,0),1,1)) -> 416 | F58: =IF(A58>$A$8,"",OFFSET(InputPriceData!E$15,CalculationsAndCharts!$A58+$A$11,IF($C$5,8,0),1,1)) -> 410 | G58: =IF(A58>$A$8,"",OFFSET(InputPriceData!F$15,CalculationsAndCharts!$A58+$A$11,IF($C$5,8,0),1,1)) -> 414.93 | H58: 109876700 | I58: 109480546.7 | J58: 108578563.4 | K58: 0.881503882 | L58: FALSE | M58: FALSE | N58: TRUE | O58: FALSE | AP58: 1064300
A59: 27 | B59: =IF(A59>$A$8,"",OFFSET(InputPriceData!B$15,$A59+$A$11,0,1,1)) -> 2020-01-08 | C59: =IF(A59>$A$8,"",OFFSET(InputPriceData!G$15,CalculationsAndCharts!$A59+$A$11,IF($C$5,8,0),1,1)) -> 1708100 | D59: =IF(A59>$A$8,"",OFFSET(InputPriceData!C$15,CalculationsAndCharts!$A59+$A$11,IF($C$5,8,0),1,1)) -> 417.06 | E59: =IF(A59>$A$8,"",OFFSET(InputPriceData!D$15,CalculationsAndCharts!$A59+$A$11,IF($C$5,8,0),1,1)) -> 418.18 | F59: =IF(A59>$A$8,"",OFFSET(InputPriceData!E$15,CalculationsAndCharts!$A59+$A$11,IF($C$5,8,0),1,1)) -> 409.72 | G59: =IF(A59>$A$8,"",OFFSET(InputPriceData!F$15,CalculationsAndCharts!$A59+$A$11,IF($C$5,8,0),1,1)) -> 411.03 | H59: 108812400 | I59: 109348495.6 | J59: 108378122.6 | K59: 0.8849922351 | L59: FALSE | M59: FALSE | N59: TRUE | O59: FALSE | AQ59: 1708100
A60: 28 | B60: =IF(A60>$A$8,"",OFFSET(InputPriceData!B$15,$A60+$A$11,0,1,1)) -> 2020-01-07 | C60: =IF(A60>$A$8,"",OFFSET(InputPriceData!G$15,CalculationsAndCharts!$A60+$A$11,IF($C$5,8,0),1,1)) -> 1059900 | D60: =IF(A60>$A$8,"",OFFSET(InputPriceData!C$15,CalculationsAndCharts!$A60+$A$11,IF($C$5,8,0),1,1)) -> 411.25 | E60: =IF(A60>$A$8,"",OFFSET(InputPriceData!D$15,CalculationsAndCharts!$A60+$A$11,IF($C$5,8,0),1,1)) -> 416.12 | F60: =IF(A60>$A$8,"",OFFSET(InputPriceData!E$15,CalculationsAndCharts!$A60+$A$11,IF($C$5,8,0),1,1)) -> 408.29 | G60: =IF(A60>$A$8,"",OFFSET(InputPriceData!F$15,CalculationsAndCharts!$A60+$A$11,IF($C$5,8,0),1,1)) -> 414.5 | H60: 110520500 | I60: 109527194.1 | J60: 108162484.2 | K60: 0.9081004866 | L60: FALSE | M60: FALSE | N60: TRUE | O60: FALSE | AP60: 1059900
A61: 29 | B61: =IF(A61>$A$8,"",OFFSET(InputPriceData!B$15,$A61+$A$11,0,1,1)) -> 2020-01-06 | C61: =IF(A61>$A$8,"",OFFSET(InputPriceData!G$15,CalculationsAndCharts!$A61+$A$11,IF($C$5,8,0),1,1)) -> 2477800 | D61: =IF(A61>$A$8,"",OFFSET(InputPriceData!C$15,CalculationsAndCharts!$A61+$A$11,IF($C$5,8,0),1,1)) -> 417.99 | E61: =IF(A61>$A$8,"",OFFSET(InputPriceData!D$15,CalculationsAndCharts!$A61+$A$11,IF($C$5,8,0),1,1)) -> 417.99 | F61: =IF(A61>$A$8,"",OFFSET(InputPriceData!E$15,CalculationsAndCharts!$A61+$A$11,IF($C$5,8,0),1,1)) -> 407.69 | G61: =IF(A61>$A$8,"",OFFSET(InputPriceData!F$15,CalculationsAndCharts!$A61+$A$11,IF($C$5,8,0),1,1)) -> 413.11 | H61: 109460600 | I61: 109196092.1 | J61: 107859215.3 | K61: 0.8987598583 | L61: FALSE | M61: FALSE | N61: TRUE | O61: FALSE | AQ61: 2477800
A62: 30 | B62: =IF(A62>$A$8,"",OFFSET(InputPriceData!B$15,$A62+$A$11,0,1,1)) -> 2020-01-03 | C62: =IF(A62>$A$8,"",OFFSET(InputPriceData!G$15,CalculationsAndCharts!$A62+$A$11,IF($C$5,8,0),1,1)) -> 2990100 | D62: =IF(A62>$A$8,"",OFFSET(InputPriceData!C$15,CalculationsAndCharts!$A62+$A$11,IF($C$5,8,0),1,1)) -> 404.02 | E62: =IF(A62>$A$8,"",OFFSET(InputPriceData!D$15,CalculationsAndCharts!$A62+$A$11,IF($C$5,8,0),1,1)) -> 417.17 | F62: =IF(A62>$A$8,"",OFFSET(InputPriceData!E$15,CalculationsAndCharts!$A62+$A$11,IF($C$5,8,0),1,1)) -> 403 | G62: =IF(A62>$A$8,"",OFFSET(InputPriceData!F$15,CalculationsAndCharts!$A62+$A$11,IF($C$5,8,0),1,1)) -> 413.74 | H62: 111938400 | I62: 109107922.8 | J62: 107562131.6 | K62: 0.9380545162 | L62: FALSE | M62: FALSE | N62: TRUE | O62: FALSE | AP62: 2990100
A63: 31 | B63: =IF(A63>$A$8,"",OFFSET(InputPriceData!B$15,$A63+$A$11,0,1,1)) -> 2020-01-02 | C63: =IF(A63>$A$8,"",OFFSET(InputPriceData!G$15,CalculationsAndCharts!$A63+$A$11,IF($C$5,8,0),1,1)) -> 1258400 | D63: =IF(A63>$A$8,"",OFFSET(InputPriceData!C$15,CalculationsAndCharts!$A63+$A$11,IF($C$5,8,0),1,1)) -> 392.86 | E63: =IF(A63>$A$8,"",OFFSET(InputPriceData!D$15,CalculationsAndCharts!$A63+$A$11,IF($C$5,8,0),1,1)) -> 399.37 | F63: =IF(A63>$A$8,"",OFFSET(InputPriceData!E$15,CalculationsAndCharts!$A63+$A$11,IF($C$5,8,0),1,1)) -> 390.95 | G63: =IF(A63>$A$8,"",OFFSET(InputPriceData!F$15,CalculationsAndCharts!$A63+$A$11,IF($C$5,8,0),1,1)) -> 399.37 | H63: 108948300 | I63: 108164430.4 | J63: 107218622.5 | K63: 0.8896499224 | L63: FALSE | M63: FALSE | N63: TRUE | O63: FALSE | AP63: 1258400
A64: 32 | B64: =IF(A64>$A$8,"",OFFSET(InputPriceData!B$15,$A64+$A$11,0,1,1)) -> 2019-12-31 | C64: =IF(A64>$A$8,"",OFFSET(InputPriceData!G$15,CalculationsAndCharts!$A64+$A$11,IF($C$5,8,0),1,1)) -> 775400 | D64: =IF(A64>$A$8,"",OFFSET(InputPriceData!C$15,CalculationsAndCharts!$A64+$A$11,IF($C$5,8,0),1,1)) -> 391.75 | E64: =IF(A64>$A$8,"",OFFSET(InputPriceData!D$15,CalculationsAndCharts!$A64+$A$11,IF($C$5,8,0),1,1)) -> 391.98 | F64: =IF(A64>$A$8,"",OFFSET(InputPriceData!E$15,CalculationsAndCharts!$A64+$A$11,IF($C$5,8,0),1,1)) -> 387.07 | G64: =IF(A64>$A$8,"",OFFSET(InputPriceData!F$15,CalculationsAndCharts!$A64+$A$11,IF($C$5,8,0),1,1)) -> 389.38 | H64: 107689900 | I64: 107903140.5 | J64: 107008442.9 | K64: 0.9107705102 | L64: FALSE | M64: FALSE | N64: TRUE | O64: FALSE | AQ64: 775400
A65: 33 | B65: =IF(A65>$A$8,"",OFFSET(InputPriceData!B$15,$A65+$A$11,0,1,1)) -> 2019-12-30 | C65: =IF(A65>$A$8,"",OFFSET(InputPriceData!G$15,CalculationsAndCharts!$A65+$A$11,IF($C$5,8,0),1,1)) -> 776900 | D65: =IF(A65>$A$8,"",OFFSET(InputPriceData!C$15,CalculationsAndCharts!$A65+$A$11,IF($C$5,8,0),1,1)) -> 393.65 | E65: =IF(A65>$A$8,"",OFFSET(InputPriceData!D$15,CalculationsAndCharts!$A65+$A$11,IF($C$5,8,0),1,1)) -> 393.76 | F65: =IF(A65>$A$8,"",OFFSET(InputPriceData!E$15,CalculationsAndCharts!$A65+$A$11,IF($C$5,8,0),1,1)) -> 390.87 | G65: =IF(A65>$A$8,"",OFFSET(InputPriceData!F$15,CalculationsAndCharts!$A65+$A$11,IF($C$5,8,0),1,1)) -> 391.9 | H65: 108465300 | I65: 107974220.7 | J65: 106809621.2 | K65: 0.9090473253 | L65: FALSE | M65: FALSE | N65: TRUE | O65: FALSE | AQ65: 776900
A66: 34 | B66: =IF(A66>$A$8,"",OFFSET(InputPriceData!B$15,$A66+$A$11,0,1,1)) -> 2019-12-27 | C66: =IF(A66>$A$8,"",OFFSET(InputPriceData!G$15,CalculationsAndCharts!$A66+$A$11,IF($C$5,8,0),1,1)) -> 728800 | D66: =IF(A66>$A$8,"",OFFSET(InputPriceData!C$15,CalculationsAndCharts!$A66+$A$11,IF($C$5,8,0),1,1)) -> 393.99 | E66: =IF(A66>$A$8,"",OFFSET(InputPriceData!D$15,CalculationsAndCharts!$A66+$A$11,IF($C$5,8,0),1,1)) -> 394.5 | F66: =IF(A66>$A$8,"",OFFSET(InputPriceData!E$15,CalculationsAndCharts!$A66+$A$11,IF($C$5,8,0),1,1)) -> 391.94 | G66: =IF(A66>$A$8,"",OFFSET(InputPriceData!F$15,CalculationsAndCharts!$A66+$A$11,IF($C$5,8,0),1,1)) -> 393.6 | H66: 109242200 | I66: 107810527.6 | J66: 106550821.4 | K66: 0.8355322806 | L66: FALSE | M66: FALSE | N66: TRUE | O66: FALSE | AQ66: 728800
A67: 35 | B67: =IF(A67>$A$8,"",OFFSET(InputPriceData!B$15,$A67+$A$11,0,1,1)) -> 2019-12-26 | C67: =IF(A67>$A$8,"",OFFSET(InputPriceData!G$15,CalculationsAndCharts!$A67+$A$11,IF($C$5,8,0),1,1)) -> 711600 | D67: =IF(A67>$A$8,"",OFFSET(InputPriceData!C$15,CalculationsAndCharts!$A67+$A$11,IF($C$5,8,0),1,1)) -> 390.9 | E67: =IF(A67>$A$8,"",OFFSET(InputPriceData!D$15,CalculationsAndCharts!$A67+$A$11,IF($C$5,8,0),1,1)) -> 392.45 | F67: =IF(A67>$A$8,"",OFFSET(InputPriceData!E$15,CalculationsAndCharts!$A67+$A$11,IF($C$5,8,0),1,1)) -> 390.48 | G67: =IF(A67>$A$8,"",OFFSET(InputPriceData!F$15,CalculationsAndCharts!$A67+$A$11,IF($C$5,8,0),1,1)) -> 392.3 | H67: 108513400 | I67: 107333303.4 | J67: 106270886.6 | K67: 0.7397615117 | L67: FALSE | M67: FALSE | N67: TRUE | O67: FALSE | AP67: 711600
A68: 36 | B68: =IF(A68>$A$8,"",OFFSET(InputPriceData!B$15,$A68+$A$11,0,1,1)) -> 2019-12-24 | C68: =IF(A68>$A$8,"",OFFSET(InputPriceData!G$15,CalculationsAndCharts!$A68+$A$11,IF($C$5,8,0),1,1)) -> 516300 | D68: =IF(A68>$A$8,"",OFFSET(InputPriceData!C$15,CalculationsAndCharts!$A68+$A$11,IF($C$5,8,0),1,1)) -> 392.35 | E68: =IF(A68>$A$8,"",OFFSET(InputPriceData!D$15,CalculationsAndCharts!$A68+$A$11,IF($C$5,8,0),1,1)) -> 392.35 | F68: =IF(A68>$A$8,"",OFFSET(InputPriceData!E$15,CalculationsAndCharts!$A68+$A$11,IF($C$5,8,0),1,1)) -> 389.53 | G68: =IF(A68>$A$8,"",OFFSET(InputPriceData!F$15,CalculationsAndCharts!$A68+$A$11,IF($C$5,8,0),1,1)) -> 390.17 | H68: 107801800 | I68: 106939937.9 | J68: 106034794 | K68: 0.6288136243 | L68: FALSE | M68: FALSE | N68: TRUE | O68: FALSE | AQ68: 516300
A69: 37 | B69: =IF(A69>$A$8,"",OFFSET(InputPriceData!B$15,$A69+$A$11,0,1,1)) -> 2019-12-23 | C69: =IF(A69>$A$8,"",OFFSET(InputPriceData!G$15,CalculationsAndCharts!$A69+$A$11,IF($C$5,8,0),1,1)) -> 1050400 | D69: =IF(A69>$A$8,"",OFFSET(InputPriceData!C$15,CalculationsAndCharts!$A69+$A$11,IF($C$5,8,0),1,1)) -> 387.66 | E69: =IF(A69>$A$8,"",OFFSET(InputPriceData!D$15,CalculationsAndCharts!$A69+$A$11,IF($C$5,8,0),1,1)) -> 394.69 | F69: =IF(A69>$A$8,"",OFFSET(InputPriceData!E$15,CalculationsAndCharts!$A69+$A$11,IF($C$5,8,0),1,1)) -> 387.59 | G69: =IF(A69>$A$8,"",OFFSET(InputPriceData!F$15,CalculationsAndCharts!$A69+$A$11,IF($C$5,8,0),1,1)) -> 391.9 | H69: 108318100 | I69: 106652650.6 | J69: 105833650.9 | K69: 0.5251568877 | L69: FALSE | M69: FALSE | N69: TRUE | O69: FALSE | AP69: 1050400
A70: 38 | B70: =IF(A70>$A$8,"",OFFSET(InputPriceData!B$15,$A70+$A$11,0,1,1)) -> 2019-12-20 | C70: =IF(A70>$A$8,"",OFFSET(InputPriceData!G$15,CalculationsAndCharts!$A70+$A$11,IF($C$5,8,0),1,1)) -> 1599600 | D70: =IF(A70>$A$8,"",OFFSET(InputPriceData!C$15,CalculationsAndCharts!$A70+$A$11,IF($C$5,8,0),1,1)) -> 385.03 | E70: =IF(A70>$A$8,"",OFFSET(InputPriceData!D$15,CalculationsAndCharts!$A70+$A$11,IF($C$5,8,0),1,1)) -> 386.64 | F70: =IF(A70>$A$8,"",OFFSET(InputPriceData!E$15,CalculationsAndCharts!$A70+$A$11,IF($C$5,8,0),1,1)) -> 383 | G70: =IF(A70>$A$8,"",OFFSET(InputPriceData!F$15,CalculationsAndCharts!$A70+$A$11,IF($C$5,8,0),1,1)) -> 386.47 | H70: 107267700 | I70: 106097500.8 | J70: 105651651 | K70: 0.3550193325 | L70: FALSE | M70: FALSE | N70: TRUE | O70: FALSE | AP70: 1599600
A71: 39 | B71: =IF(A71>$A$8,"",OFFSET(InputPriceData!B$15,$A71+$A$11,0,1,1)) -> 2019-12-19 | C71: =IF(A71>$A$8,"",OFFSET(InputPriceData!G$15,CalculationsAndCharts!$A71+$A$11,IF($C$5,8,0),1,1)) -> 766300 | D71: =IF(A71>$A$8,"",OFFSET(InputPriceData!C$15,CalculationsAndCharts!$A71+$A$11,IF($C$5,8,0),1,1)) -> 380.99 | E71: =IF(A71>$A$8,"",OFFSET(InputPriceData!D$15,CalculationsAndCharts!$A71+$A$11,IF($C$5,8,0),1,1)) -> 384.68 | F71: =IF(A71>$A$8,"",OFFSET(InputPriceData!E$15,CalculationsAndCharts!$A71+$A$11,IF($C$5,8,0),1,1)) -> 380.23 | G71: =IF(A71>$A$8,"",OFFSET(InputPriceData!F$15,CalculationsAndCharts!$A71+$A$11,IF($C$5,8,0),1,1)) -> 383.15 | H71: 105668100 | I71: 105707434.3 | J71: 105552573.3 | K71: 0.3119597671 | L71: FALSE | M71: FALSE | N71: TRUE | O71: FALSE | AP71: 766300
A72: 40 | B72: =IF(A72>$A$8,"",OFFSET(InputPriceData!B$15,$A72+$A$11,0,1,1)) -> 2019-12-18 | C72: =IF(A72>$A$8,"",OFFSET(InputPriceData!G$15,CalculationsAndCharts!$A72+$A$11,IF($C$5,8,0),1,1)) -> 1526000 | D72: =IF(A72>$A$8,"",OFFSET(InputPriceData!C$15,CalculationsAndCharts!$A72+$A$11,IF($C$5,8,0),1,1)) -> 387.4 | E72: =IF(A72>$A$8,"",OFFSET(InputPriceData!D$15,CalculationsAndCharts!$A72+$A$11,IF($C$5,8,0),1,1)) -> 387.64 | F72: =IF(A72>$A$8,"",OFFSET(InputPriceData!E$15,CalculationsAndCharts!$A72+$A$11,IF($C$5,8,0),1,1)) -> 379.66 | G72: =IF(A72>$A$8,"",OFFSET(InputPriceData!F$15,CalculationsAndCharts!$A72+$A$11,IF($C$5,8,0),1,1)) -> 380.57 | H72: 104901800 | I72: 105720545.8 | J72: 105518159.7 | K72: 0.345870355 | L72: FALSE | M72: FALSE | N72: TRUE | O72: FALSE | AQ72: 1526000
A73: 41 | B73: =IF(A73>$A$8,"",OFFSET(InputPriceData!B$15,$A73+$A$11,0,1,1)) -> 2019-12-17 | C73: =IF(A73>$A$8,"",OFFSET(InputPriceData!G$15,CalculationsAndCharts!$A73+$A$11,IF($C$5,8,0),1,1)) -> 730000 | D73: =IF(A73>$A$8,"",OFFSET(InputPriceData!C$15,CalculationsAndCharts!$A73+$A$11,IF($C$5,8,0),1,1)) -> 385 | E73: =IF(A73>$A$8,"",OFFSET(InputPriceData!D$15,CalculationsAndCharts!$A73+$A$11,IF($C$5,8,0),1,1)) -> 388 | F73: =IF(A73>$A$8,"",OFFSET(InputPriceData!E$15,CalculationsAndCharts!$A73+$A$11,IF($C$5,8,0),1,1)) -> 385 | G73: =IF(A73>$A$8,"",OFFSET(InputPriceData!F$15,CalculationsAndCharts!$A73+$A$11,IF($C$5,8,0),1,1)) -> 386.89 | H73: 106427800 | I73: 105993461 | J73: 105473185 | K73: 0.3115306875 | L73: FALSE | M73: FALSE | N73: TRUE | O73: FALSE | AP73: 730000
A74: 42 | B74: =IF(A74>$A$8,"",OFFSET(InputPriceData!B$15,$A74+$A$11,0,1,1)) -> 2019-12-16 | C74: =IF(A74>$A$8,"",OFFSET(InputPriceData!G$15,CalculationsAndCharts!$A74+$A$11,IF($C$5,8,0),1,1)) -> 847500 | D74: =IF(A74>$A$8,"",OFFSET(InputPriceData!C$15,CalculationsAndCharts!$A74+$A$11,IF($C$5,8,0),1,1)) -> 387.9 | E74: =IF(A74>$A$8,"",OFFSET(InputPriceData!D$15,CalculationsAndCharts!$A74+$A$11,IF($C$5,8,0),1,1)) -> 388.35 | F74: =IF(A74>$A$8,"",OFFSET(InputPriceData!E$15,CalculationsAndCharts!$A74+$A$11,IF($C$5,8,0),1,1)) -> 384.05 | G74: =IF(A74>$A$8,"",OFFSET(InputPriceData!F$15,CalculationsAndCharts!$A74+$A$11,IF($C$5,8,0),1,1)) -> 385.95 | H74: 105697800 | I74: 105848681.4 | J74: 105357568.2 | K74: 0.3238349071 | L74: FALSE | M74: FALSE | N74: TRUE | O74: FALSE | AQ74: 847500
A75: 43 | B75: =IF(A75>$A$8,"",OFFSET(InputPriceData!B$15,$A75+$A$11,0,1,1)) -> 2019-12-13 | C75: =IF(A75>$A$8,"",OFFSET(InputPriceData!G$15,CalculationsAndCharts!$A75+$A$11,IF($C$5,8,0),1,1)) -> 658000 | D75: =IF(A75>$A$8,"",OFFSET(InputPriceData!C$15,CalculationsAndCharts!$A75+$A$11,IF($C$5,8,0),1,1)) -> 384 | E75: =IF(A75>$A$8,"",OFFSET(InputPriceData!D$15,CalculationsAndCharts!$A75+$A$11,IF($C$5,8,0),1,1)) -> 387.78 | F75: =IF(A75>$A$8,"",OFFSET(InputPriceData!E$15,CalculationsAndCharts!$A75+$A$11,IF($C$5,8,0),1,1)) -> 384 | G75: =IF(A75>$A$8,"",OFFSET(InputPriceData!F$15,CalculationsAndCharts!$A75+$A$11,IF($C$5,8,0),1,1)) -> 386.47 | H75: 106545300 | I75: 105898975.2 | J75: 105248431.9 | K75: 0.3879942554 | L75: FALSE | M75: FALSE | N75: TRUE | O75: FALSE | AP75: 658000
A76: 44 | B76: =IF(A76>$A$8,"",OFFSET(InputPriceData!B$15,$A76+$A$11,0,1,1)) -> 2019-12-12 | C76: =IF(A76>$A$8,"",OFFSET(InputPriceData!G$15,CalculationsAndCharts!$A76+$A$11,IF($C$5,8,0),1,1)) -> 736100 | D76: =IF(A76>$A$8,"",OFFSET(InputPriceData!C$15,CalculationsAndCharts!$A76+$A$11,IF($C$5,8,0),1,1)) -> 386 | E76: =IF(A76>$A$8,"",OFFSET(InputPriceData!D$15,CalculationsAndCharts!$A76+$A$11,IF($C$5,8,0),1,1)) -> 387.79 | F76: =IF(A76>$A$8,"",OFFSET(InputPriceData!E$15,CalculationsAndCharts!$A76+$A$11,IF($C$5,8,0),1,1)) -> 383.45 | G76: =IF(A76>$A$8,"",OFFSET(InputPriceData!F$15,CalculationsAndCharts!$A76+$A$11,IF($C$5,8,0),1,1)) -> 384.05 | H76: 105887300 | I76: 105683533.6 | J76: 105103866.7 | K76: 0.4219090295 | L76: FALSE | M76: FALSE | N76: TRUE | O76: FALSE | AQ76: 736100
A77: 45 | B77: =IF(A77>$A$8,"",OFFSET(InputPriceData!B$15,$A77+$A$11,0,1,1)) -> 2019-12-11 | C77: =IF(A77>$A$8,"",OFFSET(InputPriceData!G$15,CalculationsAndCharts!$A77+$A$11,IF($C$5,8,0),1,1)) -> 578900 | D77: =IF(A77>$A$8,"",OFFSET(InputPriceData!C$15,CalculationsAndCharts!$A77+$A$11,IF($C$5,8,0),1,1)) -> 385.51 | E77: =IF(A77>$A$8,"",OFFSET(InputPriceData!D$15,CalculationsAndCharts!$A77+$A$11,IF($C$5,8,0),1,1)) -> 386.61 | F77: =IF(A77>$A$8,"",OFFSET(InputPriceData!E$15,CalculationsAndCharts!$A77+$A$11,IF($C$5,8,0),1,1)) -> 384.03 | G77: =IF(A77>$A$8,"",OFFSET(InputPriceData!F$15,CalculationsAndCharts!$A77+$A$11,IF($C$5,8,0),1,1)) -> 386.24 | H77: 106623400 | I77: 105615611.5 | J77: 104975051.8 | K77: 0.5128931122 | L77: FALSE | M77: FALSE | N77: TRUE | O77: FALSE | AP77: 578900
A78: 46 | B78: =IF(A78>$A$8,"",OFFSET(InputPriceData!B$15,$A78+$A$11,0,1,1)) -> 2019-12-10 | C78: =IF(A78>$A$8,"",OFFSET(InputPriceData!G$15,CalculationsAndCharts!$A78+$A$11,IF($C$5,8,0),1,1)) -> 862100 | D78: =IF(A78>$A$8,"",OFFSET(InputPriceData!C$15,CalculationsAndCharts!$A78+$A$11,IF($C$5,8,0),1,1)) -> 383.5 | E78: =IF(A78>$A$8,"",OFFSET(InputPriceData!D$15,CalculationsAndCharts!$A78+$A$11,IF($C$5,8,0),1,1)) -> 386.77 | F78: =IF(A78>$A$8,"",OFFSET(InputPriceData!E$15,CalculationsAndCharts!$A78+$A$11,IF($C$5,8,0),1,1)) -> 383.25 | G78: =IF(A78>$A$8,"",OFFSET(InputPriceData!F$15,CalculationsAndCharts!$A78+$A$11,IF($C$5,8,0),1,1)) -> 384.44 | H78: 106044500 | I78: 105279681.9 | J78: 104832705.2 | K78: 0.6284602477 | L78: FALSE | M78: FALSE | N78: TRUE | O78: FALSE | AP78: 862100
A79: 47 | B79: =IF(A79>$A$8,"",OFFSET(InputPriceData!B$15,$A79+$A$11,0,1,1)) -> 2019-12-09 | C79: =IF(A79>$A$8,"",OFFSET(InputPriceData!G$15,CalculationsAndCharts!$A79+$A$11,IF($C$5,8,0),1,1)) -> 821600 | D79: =IF(A79>$A$8,"",OFFSET(InputPriceData!C$15,CalculationsAndCharts!$A79+$A$11,IF($C$5,8,0),1,1)) -> 386.22 | E79: =IF(A79>$A$8,"",OFFSET(InputPriceData!D$15,CalculationsAndCharts!$A79+$A$11,IF($C$5,8,0),1,1)) -> 387.42 | F79: =IF(A79>$A$8,"",OFFSET(InputPriceData!E$15,CalculationsAndCharts!$A79+$A$11,IF($C$5,8,0),1,1)) -> 383.23 | G79: =IF(A79>$A$8,"",OFFSET(InputPriceData!F$15,CalculationsAndCharts!$A79+$A$11,IF($C$5,8,0),1,1)) -> 383.34 | H79: 105182400 | I79: 105024742.6 | J79: 104733377.1 | K79: 0.8130206422 | L79: FALSE | M79: FALSE | N79: TRUE | O79: FALSE | AQ79: 821600
A80: 48 | B80: =IF(A80>$A$8,"",OFFSET(InputPriceData!B$15,$A80+$A$11,0,1,1)) -> 2019-12-06 | C80: =IF(A80>$A$8,"",OFFSET(InputPriceData!G$15,CalculationsAndCharts!$A80+$A$11,IF($C$5,8,0),1,1)) -> 709600 | D80: =IF(A80>$A$8,"",OFFSET(InputPriceData!C$15,CalculationsAndCharts!$A80+$A$11,IF($C$5,8,0),1,1)) -> 387.17 | E80: =IF(A80>$A$8,"",OFFSET(InputPriceData!D$15,CalculationsAndCharts!$A80+$A$11,IF($C$5,8,0),1,1)) -> 388.9 | F80: =IF(A80>$A$8,"",OFFSET(InputPriceData!E$15,CalculationsAndCharts!$A80+$A$11,IF($C$5,8,0),1,1)) -> 385.1 | G80: =IF(A80>$A$8,"",OFFSET(InputPriceData!F$15,CalculationsAndCharts!$A80+$A$11,IF($C$5,8,0),1,1)) -> 386.86 | H80: 106004000 | I80: 104972190.1 | J80: 104668629.2 | K80: 0.8893577183 | L80: FALSE | M80: FALSE | N80: TRUE | O80: FALSE | AQ80: 709600
A81: 49 | B81: =IF(A81>$A$8,"",OFFSET(InputPriceData!B$15,$A81+$A$11,0,1,1)) -> 2019-12-05 | C81: =IF(A81>$A$8,"",OFFSET(InputPriceData!G$15,CalculationsAndCharts!$A81+$A$11,IF($C$5,8,0),1,1)) -> 1203700 | D81: =IF(A81>$A$8,"",OFFSET(InputPriceData!C$15,CalculationsAndCharts!$A81+$A$11,IF($C$5,8,0),1,1)) -> 386.06 | E81: =IF(A81>$A$8,"",OFFSET(InputPriceData!D$15,CalculationsAndCharts!$A81+$A$11,IF($C$5,8,0),1,1)) -> 386.5 | F81: =IF(A81>$A$8,"",OFFSET(InputPriceData!E$15,CalculationsAndCharts!$A81+$A$11,IF($C$5,8,0),1,1)) -> 383.01 | G81: =IF(A81>$A$8,"",OFFSET(InputPriceData!F$15,CalculationsAndCharts!$A81+$A$11,IF($C$5,8,0),1,1)) -> 385.94 | H81: 105294400 | I81: 104628253.5 | J81: 104601171.2 | K81: 0.9396657737 | L81: TRUE | M81: FALSE | N81: TRUE | O81: FALSE | Z81: 125000000 | AD81: 453.59325 | AQ81: 1203700
A82: 50 | B82: =IF(A82>$A$8,"",OFFSET(InputPriceData!B$15,$A82+$A$11,0,1,1)) -> 2019-12-04 | C82: =IF(A82>$A$8,"",OFFSET(InputPriceData!G$15,CalculationsAndCharts!$A82+$A$11,IF($C$5,8,0),1,1)) -> 1081100 | D82: =IF(A82>$A$8,"",OFFSET(InputPriceData!C$15,CalculationsAndCharts!$A82+$A$11,IF($C$5,8,0),1,1)) -> 383.53 | E82: =IF(A82>$A$8,"",OFFSET(InputPriceData!D$15,CalculationsAndCharts!$A82+$A$11,IF($C$5,8,0),1,1)) -> 387.95 | F82: =IF(A82>$A$8,"",OFFSET(InputPriceData!E$15,CalculationsAndCharts!$A82+$A$11,IF($C$5,8,0),1,1)) -> 382.28 | G82: =IF(A82>$A$8,"",OFFSET(InputPriceData!F$15,CalculationsAndCharts!$A82+$A$11,IF($C$5,8,0),1,1)) -> 384.58 | H82: 104090700 | I82: 104406204.7 | J82: 104595152.9 | K82: 0.9435192299 | L82: FALSE | M82: FALSE | N82: FALSE | O82: TRUE | AP82: =IF(G82>=D82,C82,NA()) -> 1081100 | AQ82: =IF(G82<D82,C82,NA()) -> 
A83: 51 | B83: =IF(A83>$A$8,"",OFFSET(InputPriceData!B$15,$A83+$A$11,0,1,1)) -> 2019-12-03 | C83: =IF(A83>$A$8,"",OFFSET(InputPriceData!G$15,CalculationsAndCharts!$A83+$A$11,IF($C$5,8,0),1,1)) -> 1384300 | D83: =IF(A83>$A$8,"",OFFSET(InputPriceData!C$15,CalculationsAndCharts!$A83+$A$11,IF($C$5,8,0),1,1)) -> 381.43 | E83: =IF(A83>$A$8,"",OFFSET(InputPriceData!D$15,CalculationsAndCharts!$A83+$A$11,IF($C$5,8,0),1,1)) -> 384.64 | F83: =IF(A83>$A$8,"",OFFSET(InputPriceData!E$15,CalculationsAndCharts!$A83+$A$11,IF($C$5,8,0),1,1)) -> 380.14 | G83: =IF(A83>$A$8,"",OFFSET(InputPriceData!F$15,CalculationsAndCharts!$A83+$A$11,IF($C$5,8,0),1,1)) -> 381.62 | H83: 103009600 | I83: 104511372.9 | J83: 104637141.4 | K83: 0.9460529989 | L83: FALSE | M83: TRUE | N83: FALSE | O83: TRUE | AB83: 125000000 | AE83: 453.59325 | AP83: 1384300
A84: 52 | B84: =IF(A84>$A$8,"",OFFSET(InputPriceData!B$15,$A84+$A$11,0,1,1)) -> 2019-12-02 | C84: =IF(A84>$A$8,"",OFFSET(InputPriceData!G$15,CalculationsAndCharts!$A84+$A$11,IF($C$5,8,0),1,1)) -> 1283400 | D84: =IF(A84>$A$8,"",OFFSET(InputPriceData!C$15,CalculationsAndCharts!$A84+$A$11,IF($C$5,8,0),1,1)) -> 390.71 | E84: =IF(A84>$A$8,"",OFFSET(InputPriceData!D$15,CalculationsAndCharts!$A84+$A$11,IF($C$5,8,0),1,1)) -> 391.53 | F84: =IF(A84>$A$8,"",OFFSET(InputPriceData!E$15,CalculationsAndCharts!$A84+$A$11,IF($C$5,8,0),1,1)) -> 383.44 | G84: =IF(A84>$A$8,"",OFFSET(InputPriceData!F$15,CalculationsAndCharts!$A84+$A$11,IF($C$5,8,0),1,1)) -> 383.62 | H84: 104393900 | I84: 105011963.8 | J84: 104665090 | K84: 0.9167659889 | L84: FALSE | M84: FALSE | N84: TRUE | O84: FALSE | AQ84: 1283400
A85: 53 | B85: =IF(A85>$A$8,"",OFFSET(InputPriceData!B$15,$A85+$A$11,0,1,1)) -> 2019-11-29 | C85: =IF(A85>$A$8,"",OFFSET(InputPriceData!G$15,CalculationsAndCharts!$A85+$A$11,IF($C$5,8,0),1,1)) -> 401500 | D85: =IF(A85>$A$8,"",OFFSET(InputPriceData!C$15,CalculationsAndCharts!$A85+$A$11,IF($C$5,8,0),1,1)) -> 392 | E85: =IF(A85>$A$8,"",OFFSET(InputPriceData!D$15,CalculationsAndCharts!$A85+$A$11,IF($C$5,8,0),1,1)) -> 392.2 | F85: =IF(A85>$A$8,"",OFFSET(InputPriceData!E$15,CalculationsAndCharts!$A85+$A$11,IF($C$5,8,0),1,1)) -> 390.04 | G85: =IF(A85>$A$8,"",OFFSET(InputPriceData!F$15,CalculationsAndCharts!$A85+$A$11,IF($C$5,8,0),1,1)) -> 391.03 | H85: 105677300 | I85: 105217985.1 | J85: 104588006.9 | K85: 0.8941606898 | L85: FALSE | M85: FALSE | N85: TRUE | O85: FALSE | AQ85: 401500
A86: 54 | B86: =IF(A86>$A$8,"",OFFSET(InputPriceData!B$15,$A86+$A$11,0,1,1)) -> 2019-11-27 | C86: =IF(A86>$A$8,"",OFFSET(InputPriceData!G$15,CalculationsAndCharts!$A86+$A$11,IF($C$5,8,0),1,1)) -> 770300 | D86: =IF(A86>$A$8,"",OFFSET(InputPriceData!C$15,CalculationsAndCharts!$A86+$A$11,IF($C$5,8,0),1,1)) -> 391.23 | E86: =IF(A86>$A$8,"",OFFSET(InputPriceData!D$15,CalculationsAndCharts!$A86+$A$11,IF($C$5,8,0),1,1)) -> 392.08 | F86: =IF(A86>$A$8,"",OFFSET(InputPriceData!E$15,CalculationsAndCharts!$A86+$A$11,IF($C$5,8,0),1,1)) -> 389.24 | G86: =IF(A86>$A$8,"",OFFSET(InputPriceData!F$15,CalculationsAndCharts!$A86+$A$11,IF($C$5,8,0),1,1)) -> 391.84 | H86: 106078800 | I86: 105064880.2 | J86: 104448011.7 | K86: 0.8804331314 | L86: FALSE | M86: FALSE | N86: TRUE | O86: FALSE | AP86: 770300
A87: 55 | B87: =IF(A87>$A$8,"",OFFSET(InputPriceData!B$15,$A87+$A$11,0,1,1)) -> 2019-11-26 | C87: =IF(A87>$A$8,"",OFFSET(InputPriceData!G$15,CalculationsAndCharts!$A87+$A$11,IF($C$5,8,0),1,1)) -> 1206600 | D87: =IF(A87>$A$8,"",OFFSET(InputPriceData!C$15,CalculationsAndCharts!$A87+$A$11,IF($C$5,8,0),1,1)) -> 388.22 | E87: =IF(A87>$A$8,"",OFFSET(InputPriceData!D$15,CalculationsAndCharts!$A87+$A$11,IF($C$5,8,0),1,1)) -> 393.54 | F87: =IF(A87>$A$8,"",OFFSET(InputPriceData!E$15,CalculationsAndCharts!$A87+$A$11,IF($C$5,8,0),1,1)) -> 387.61 | G87: =IF(A87>$A$8,"",OFFSET(InputPriceData!F$15,CalculationsAndCharts!$A87+$A$11,IF($C$5,8,0),1,1)) -> 390.11 | H87: 105308500 | I87: 104726906.9 | J87: 104310929.9 | K87: 0.8437586542 | L87: FALSE | M87: FALSE | N87: TRUE | O87: FALSE | AP87: 1206600
A88: 56 | B88: =IF(A88>$A$8,"",OFFSET(InputPriceData!B$15,$A88+$A$11,0,1,1)) -> 2019-11-25 | C88: =IF(A88>$A$8,"",OFFSET(InputPriceData!G$15,CalculationsAndCharts!$A88+$A$11,IF($C$5,8,0),1,1)) -> 801400 | D88: =IF(A88>$A$8,"",OFFSET(InputPriceData!C$15,CalculationsAndCharts!$A88+$A$11,IF($C$5,8,0),1,1)) -> 389.22 | E88: =IF(A88>$A$8,"",OFFSET(InputPriceData!D$15,CalculationsAndCharts!$A88+$A$11,IF($C$5,8,0),1,1)) -> 390.71 | F88: =IF(A88>$A$8,"",OFFSET(InputPriceData!E$15,CalculationsAndCharts!$A88+$A$11,IF($C$5,8,0),1,1)) -> 385.13 | G88: =IF(A88>$A$8,"",OFFSET(InputPriceData!F$15,CalculationsAndCharts!$A88+$A$11,IF($C$5,8,0),1,1)) -> 387.61 | H88: 104101900 | I88: 104533042.5 | J88: 104218490.5 | K88: 0.8099103947 | L88: FALSE | M88: FALSE | N88: TRUE | O88: FALSE | AQ88: 801400
A89: 57 | B89: =IF(A89>$A$8,"",OFFSET(InputPriceData!B$15,$A89+$A$11,0,1,1)) -> 2019-11-22 | C89: =IF(A89>$A$8,"",OFFSET(InputPriceData!G$15,CalculationsAndCharts!$A89+$A$11,IF($C$5,8,0),1,1)) -> 758600 | D89: =IF(A89>$A$8,"",OFFSET(InputPriceData!C$15,CalculationsAndCharts!$A89+$A$11,IF($C$5,8,0),1,1)) -> 387.81 | E89: =IF(A89>$A$8,"",OFFSET(InputPriceData!D$15,CalculationsAndCharts!$A89+$A$11,IF($C$5,8,0),1,1)) -> 389.01 | F89: =IF(A89>$A$8,"",OFFSET(InputPriceData!E$15,CalculationsAndCharts!$A89+$A$11,IF($C$5,8,0),1,1)) -> 385.46 | G89: =IF(A89>$A$8,"",OFFSET(InputPriceData!F$15,CalculationsAndCharts!$A89+$A$11,IF($C$5,8,0),1,1)) -> 388.36 | H89: 104903300 | I89: 104676756.7 | J89: 104148590.1 | K89: 0.7315921702 | L89: FALSE | M89: FALSE | N89: TRUE | O89: FALSE | AP89: 758600
A90: 58 | B90: =IF(A90>$A$8,"",OFFSET(InputPriceData!B$15,$A90+$A$11,0,1,1)) -> 2019-11-21 | C90: =IF(A90>$A$8,"",OFFSET(InputPriceData!G$15,CalculationsAndCharts!$A90+$A$11,IF($C$5,8,0),1,1)) -> 1416900 | D90: =IF(A90>$A$8,"",OFFSET(InputPriceData!C$15,CalculationsAndCharts!$A90+$A$11,IF($C$5,8,0),1,1)) -> 388.48 | E90: =IF(A90>$A$8,"",OFFSET(InputPriceData!D$15,CalculationsAndCharts!$A90+$A$11,IF($C$5,8,0),1,1)) -> 389.86 | F90: =IF(A90>$A$8,"",OFFSET(InputPriceData!E$15,CalculationsAndCharts!$A90+$A$11,IF($C$5,8,0),1,1)) -> 386.95 | G90: =IF(A90>$A$8,"",OFFSET(InputPriceData!F$15,CalculationsAndCharts!$A90+$A$11,IF($C$5,8,0),1,1)) -> 387.88 | H90: 104144700 | I90: 104601242.3 | J90: 104031219.7 | K90: 0.7146721318 | L90: FALSE | M90: FALSE | N90: TRUE | O90: FALSE | AQ90: 1416900
A91: 59 | B91: =IF(A91>$A$8,"",OFFSET(InputPriceData!B$15,$A91+$A$11,0,1,1)) -> 2019-11-20 | C91: =IF(A91>$A$8,"",OFFSET(InputPriceData!G$15,CalculationsAndCharts!$A91+$A$11,IF($C$5,8,0),1,1)) -> 907700 | D91: =IF(A91>$A$8,"",OFFSET(InputPriceData!C$15,CalculationsAndCharts!$A91+$A$11,IF($C$5,8,0),1,1)) -> 388.68 | E91: =IF(A91>$A$8,"",OFFSET(InputPriceData!D$15,CalculationsAndCharts!$A91+$A$11,IF($C$5,8,0),1,1)) -> 391.14 | F91: =IF(A91>$A$8,"",OFFSET(InputPriceData!E$15,CalculationsAndCharts!$A91+$A$11,IF($C$5,8,0),1,1)) -> 387.87 | G91: =IF(A91>$A$8,"",OFFSET(InputPriceData!F$15,CalculationsAndCharts!$A91+$A$11,IF($C$5,8,0),1,1)) -> 390.31 | H91: 105561600 | I91: 104753423 | J91: 103904548.1 | K91: 0.6838092433 | L91: FALSE | M91: FALSE | N91: TRUE | O91: FALSE | AP91: 907700
A92: 60 | B92: =IF(A92>$A$8,"",OFFSET(InputPriceData!B$15,$A92+$A$11,0,1,1)) -> 2019-11-19 | C92: =IF(A92>$A$8,"",OFFSET(InputPriceData!G$15,CalculationsAndCharts!$A92+$A$11,IF($C$5,8,0),1,1)) -> 800300 | D92: =IF(A92>$A$8,"",OFFSET(InputPriceData!C$15,CalculationsAndCharts!$A92+$A$11,IF($C$5,8,0),1,1)) -> 391.6 | E92: =IF(A92>$A$8,"",OFFSET(InputPriceData!D$15,CalculationsAndCharts!$A92+$A$11,IF($C$5,8,0),1,1)) -> 393.41 | F92: =IF(A92>$A$8,"",OFFSET(InputPriceData!E$15,CalculationsAndCharts!$A92+$A$11,IF($C$5,8,0),1,1)) -> 388.15 | G92: =IF(A92>$A$8,"",OFFSET(InputPriceData!F$15,CalculationsAndCharts!$A92+$A$11,IF($C$5,8,0),1,1)) -> 388.43 | H92: 104653900 | I92: 104484030.7 | J92: 103715909.2 | K92: 0.6438271477 | L92: FALSE | M92: FALSE | N92: TRUE | O92: FALSE | AQ92: 800300
A93: 61 | B93: =IF(A93>$A$8,"",OFFSET(InputPriceData!B$15,$A93+$A$11,0,1,1)) -> 2019-11-18 | C93: =IF(A93>$A$8,"",OFFSET(InputPriceData!G$15,CalculationsAndCharts!$A93+$A$11,IF($C$5,8,0),1,1)) -> 827700 | D93: =IF(A93>$A$8,"",OFFSET(InputPriceData!C$15,CalculationsAndCharts!$A93+$A$11,IF($C$5,8,0),1,1)) -> 390.61 | E93: =IF(A93>$A$8,"",OFFSET(InputPriceData!D$15,CalculationsAndCharts!$A93+$A$11,IF($C$5,8,0),1,1)) -> 393.27 | F93: =IF(A93>$A$8,"",OFFSET(InputPriceData!E$15,CalculationsAndCharts!$A93+$A$11,IF($C$5,8,0),1,1)) -> 389.56 | G93: =IF(A93>$A$8,"",OFFSET(InputPriceData!F$15,CalculationsAndCharts!$A93+$A$11,IF($C$5,8,0),1,1)) -> 390.37 | H93: 105454200 | I93: 104427407.6 | J93: 103545215.5 | K93: 0.5731706762 | L93: FALSE | M93: FALSE | N93: TRUE | O93: FALSE | AQ93: 827700
A94: 62 | B94: =IF(A94>$A$8,"",OFFSET(InputPriceData!B$15,$A94+$A$11,0,1,1)) -> 2019-11-15 | C94: =IF(A94>$A$8,"",OFFSET(InputPriceData!G$15,CalculationsAndCharts!$A94+$A$11,IF($C$5,8,0),1,1)) -> 1533600 | D94: =IF(A94>$A$8,"",OFFSET(InputPriceData!C$15,CalculationsAndCharts!$A94+$A$11,IF($C$5,8,0),1,1)) -> 389.88 | E94: =IF(A94>$A$8,"",OFFSET(InputPriceData!D$15,CalculationsAndCharts!$A94+$A$11,IF($C$5,8,0),1,1)) -> 392.09 | F94: =IF(A94>$A$8,"",OFFSET(InputPriceData!E$15,CalculationsAndCharts!$A94+$A$11,IF($C$5,8,0),1,1)) -> 387.9 | G94: =IF(A94>$A$8,"",OFFSET(InputPriceData!F$15,CalculationsAndCharts!$A94+$A$11,IF($C$5,8,0),1,1)) -> 391.15 | H94: 106281900 | I94: 104085143.4 | J94: 103349172.8 | K94: 0.3027287374 | L94: FALSE | M94: FALSE | N94: TRUE | O94: FALSE | AP94: 1533600
A95: 63 | B95: =IF(A95>$A$8,"",OFFSET(InputPriceData!B$15,$A95+$A$11,0,1,1)) -> 2019-11-14 | C95: =IF(A95>$A$8,"",OFFSET(InputPriceData!G$15,CalculationsAndCharts!$A95+$A$11,IF($C$5,8,0),1,1)) -> 915600 | D95: =IF(A95>$A$8,"",OFFSET(InputPriceData!C$15,CalculationsAndCharts!$A95+$A$11,IF($C$5,8,0),1,1)) -> 384.92 | E95: =IF(A95>$A$8,"",OFFSET(InputPriceData!D$15,CalculationsAndCharts!$A95+$A$11,IF($C$5,8,0),1,1)) -> 389.91 | F95: =IF(A95>$A$8,"",OFFSET(InputPriceData!E$15,CalculationsAndCharts!$A95+$A$11,IF($C$5,8,0),1,1)) -> 384.92 | G95: =IF(A95>$A$8,"",OFFSET(InputPriceData!F$15,CalculationsAndCharts!$A95+$A$11,IF($C$5,8,0),1,1)) -> 387.78 | H95: 104748300 | I95: 103352891.2 | J95: 103185623.8 | K95: -0.03484723125 | L95: TRUE | M95: FALSE | N95: TRUE | O95: FALSE | Z95: 125000000 | AD95: 453.59325 | AP95: 915600
A96: 64 | B96: =IF(A96>$A$8,"",OFFSET(InputPriceData!B$15,$A96+$A$11,0,1,1)) -> 2019-11-13 | C96: =IF(A96>$A$8,"",OFFSET(InputPriceData!G$15,CalculationsAndCharts!$A96+$A$11,IF($C$5,8,0),1,1)) -> 956100 | D96: =IF(A96>$A$8,"",OFFSET(InputPriceData!C$15,CalculationsAndCharts!$A96+$A$11,IF($C$5,8,0),1,1)) -> 383.59 | E96: =IF(A96>$A$8,"",OFFSET(InputPriceData!D$15,CalculationsAndCharts!$A96+$A$11,IF($C$5,8,0),1,1)) -> 388.14 | F96: =IF(A96>$A$8,"",OFFSET(InputPriceData!E$15,CalculationsAndCharts!$A96+$A$11,IF($C$5,8,0),1,1)) -> 382.75 | G96: =IF(A96>$A$8,"",OFFSET(InputPriceData!F$15,CalculationsAndCharts!$A96+$A$11,IF($C$5,8,0),1,1)) -> 385.33 | H96: 103832700 | I96: 102887755 | J96: 103148453.3 | K96: -0.1528244031 | L96: FALSE | M96: FALSE | N96: FALSE | O96: TRUE | AP96: 956100
A97: 65 | B97: =IF(A97>$A$8,"",OFFSET(InputPriceData!B$15,$A97+$A$11,0,1,1)) -> 2019-11-12 | C97: =IF(A97>$A$8,"",OFFSET(InputPriceData!G$15,CalculationsAndCharts!$A97+$A$11,IF($C$5,8,0),1,1)) -> 910700 | D97: =IF(A97>$A$8,"",OFFSET(InputPriceData!C$15,CalculationsAndCharts!$A97+$A$11,IF($C$5,8,0),1,1)) -> 379.24 | E97: =IF(A97>$A$8,"",OFFSET(InputPriceData!D$15,CalculationsAndCharts!$A97+$A$11,IF($C$5,8,0),1,1)) -> 385.14 | F97: =IF(A97>$A$8,"",OFFSET(InputPriceData!E$15,CalculationsAndCharts!$A97+$A$11,IF($C$5,8,0),1,1)) -> 379.24 | G97: =IF(A97>$A$8,"",OFFSET(InputPriceData!F$15,CalculationsAndCharts!$A97+$A$11,IF($C$5,8,0),1,1)) -> 383.95 | H97: 102876600 | I97: 102572773.3 | J97: 103206386.2 | K97: 0.03907462355 | L97: FALSE | M97: FALSE | N97: FALSE | O97: TRUE | AP97: 910700
A98: 66 | B98: =IF(A98>$A$8,"",OFFSET(InputPriceData!B$15,$A98+$A$11,0,1,1)) -> 2019-11-11 | C98: =IF(A98>$A$8,"",OFFSET(InputPriceData!G$15,CalculationsAndCharts!$A98+$A$11,IF($C$5,8,0),1,1)) -> 580500 | D98: =IF(A98>$A$8,"",OFFSET(InputPriceData!C$15,CalculationsAndCharts!$A98+$A$11,IF($C$5,8,0),1,1)) -> 377.2 | E98: =IF(A98>$A$8,"",OFFSET(InputPriceData!D$15,CalculationsAndCharts!$A98+$A$11,IF($C$5,8,0),1,1)) -> 381.08 | F98: =IF(A98>$A$8,"",OFFSET(InputPriceData!E$15,CalculationsAndCharts!$A98+$A$11,IF($C$5,8,0),1,1)) -> 377 | G98: =IF(A98>$A$8,"",OFFSET(InputPriceData!F$15,CalculationsAndCharts!$A98+$A$11,IF($C$5,8,0),1,1)) -> 379.06 | H98: =IF(G98>G99,C98,IF(G98<G99,-C98,0))+H99 -> 101965900 | I98: =H98*$C$16+I99*$D$16 -> 102471497.8 | J98: =I98*$C$17+J99*$D$17 -> 103347189.1 | K98: =CORREL(OFFSET(H98,0,0,$A$18,1),OFFSET(G98,0,0,$A$18,1)) -> 0.2524657181 | L98: FALSE | M98: FALSE | N98: =I98>J98 -> FALSE | O98: =I98<J98 -> TRUE | Z98: =IF(AND($R$9>1,OR(AND($R$4=3,$N98),AND($R$4=2,$L98))),IF($AX$34> 0,$AX$34,NA()),NA()) ->  | AA98: =IF(AND($R$9>1,OR(AND($R$4=3,$N98),AND($R$4=2,$L98))),IF($AX$33<0,$AX$33,NA()),NA()) ->  | AB98: =IF(AND($R$9>1,OR(AND($R$4=2,$M98),AND($R$4=3,$O98))),IF($AX$34>0,$AX$34,NA()),NA()) ->  | AC98: =IF(AND($R$9>1,OR(AND($R$4=2,$M98),AND($R$4=3,$O98))),IF($AX$33<0,$AX$33,NA()),NA()) ->  | AD98: =IF(AND($R$9>1,OR(AND($R$4=2,$L98),AND($R$4=3,$N98))),$AZ$34,NA()) ->  | AE98: =IF(AND($R$9>1,OR(AND($R$4=2,$M98),AND($R$4=3,$O98))),$AZ$34,NA()) ->  | AP98: 580500
A99: 67 | B99: =IF(A99>$A$8,"",OFFSET(InputPriceData!B$15,$A99+$A$11,0,1,1)) -> 2019-11-08 | C99: =IF(A99>$A$8,"",OFFSET(InputPriceData!G$15,CalculationsAndCharts!$A99+$A$11,IF($C$5,8,0),1,1)) -> 783500 | D99: =IF(A99>$A$8,"",OFFSET(InputPriceData!C$15,CalculationsAndCharts!$A99+$A$11,IF($C$5,8,0),1,1)) -> 375.3 | E99: =IF(A99>$A$8,"",OFFSET(InputPriceData!D$15,CalculationsAndCharts!$A99+$A$11,IF($C$5,8,0),1,1)) -> 380.55 | F99: =IF(A99>$A$8,"",OFFSET(InputPriceData!E$15,CalculationsAndCharts!$A99+$A$11,IF($C$5,8,0),1,1)) -> 375.3 | G99: =IF(A99>$A$8,"",OFFSET(InputPriceData!F$15,CalculationsAndCharts!$A99+$A$11,IF($C$5,8,0),1,1)) -> 379.54 | H99: 102546400 | I99: 102640030.4 | J99: 103541787.2 | K99: 0.410627566 | L99: FALSE | M99: FALSE | N99: FALSE | O99: TRUE | AP99: 783500
A100: 68 | B100: =IF(A100>$A$8,"",OFFSET(InputPriceData!B$15,$A100+$A$11,0,1,1)) -> 2019-11-07 | C100: =IF(A100>$A$8,"",OFFSET(InputPriceData!G$15,CalculationsAndCharts!$A100+$A$11,IF($C$5,8,0),1,1)) -> 1157200 | D100: =IF(A100>$A$8,"",OFFSET(InputPriceData!C$15,CalculationsAndCharts!$A100+$A$11,IF($C$5,8,0),1,1)) -> 378.02 | E100: =IF(A100>$A$8,"",OFFSET(InputPriceData!D$15,CalculationsAndCharts!$A100+$A$11,IF($C$5,8,0),1,1)) -> 380.41 | F100: =IF(A100>$A$8,"",OFFSET(InputPriceData!E$15,CalculationsAndCharts!$A100+$A$11,IF($C$5,8,0),1,1)) -> 375.61 | G100: =IF(A100>$A$8,"",OFFSET(InputPriceData!F$15,CalculationsAndCharts!$A100+$A$11,IF($C$5,8,0),1,1)) -> 376.44 | H100: 101762900 | I100: 102671240.5 | J100: 103742177.6 | K100: 0.530498599 | L100: FALSE | M100: FALSE | N100: FALSE | O100: TRUE | AQ100: 1157200
A101: 69 | B101: =IF(A101>$A$8,"",OFFSET(InputPriceData!B$15,$A101+$A$11,0,1,1)) -> 2019-11-06 | C101: =IF(A101>$A$8,"",OFFSET(InputPriceData!G$15,CalculationsAndCharts!$A101+$A$11,IF($C$5,8,0),1,1)) -> 1505700 | D101: =IF(A101>$A$8,"",OFFSET(InputPriceData!C$15,CalculationsAndCharts!$A101+$A$11,IF($C$5,8,0),1,1)) -> 372.21 | E101: =IF(A101>$A$8,"",OFFSET(InputPriceData!D$15,CalculationsAndCharts!$A101+$A$11,IF($C$5,8,0),1,1)) -> 377.62 | F101: =IF(A101>$A$8,"",OFFSET(InputPriceData!E$15,CalculationsAndCharts!$A101+$A$11,IF($C$5,8,0),1,1)) -> 371.75 | G101: =IF(A101>$A$8,"",OFFSET(InputPriceData!F$15,CalculationsAndCharts!$A101+$A$11,IF($C$5,8,0),1,1)) -> 377.48 | H101: 102920100 | I101: 102974020.6 | J101: 103980163.6 | K101: 0.6522032294 | L101: FALSE | M101: FALSE | N101: FALSE | O101: TRUE | AP101: 1505700
A102: 70 | B102: =IF(A102>$A$8,"",OFFSET(InputPriceData!B$15,$A102+$A$11,0,1,1)) -> 2019-11-05 | C102: =IF(A102>$A$8,"",OFFSET(InputPriceData!G$15,CalculationsAndCharts!$A102+$A$11,IF($C$5,8,0),1,1)) -> 1364200 | D102: =IF(A102>$A$8,"",OFFSET(InputPriceData!C$15,CalculationsAndCharts!$A102+$A$11,IF($C$5,8,0),1,1)) -> 371.78 | E102: =IF(A102>$A$8,"",OFFSET(InputPriceData!D$15,CalculationsAndCharts!$A102+$A$11,IF($C$5,8,0),1,1)) -> 373.48 | F102: =IF(A102>$A$8,"",OFFSET(InputPriceData!E$15,CalculationsAndCharts!$A102+$A$11,IF($C$5,8,0),1,1)) -> 369.05 | G102: =IF(A102>$A$8,"",OFFSET(InputPriceData!F$15,CalculationsAndCharts!$A102+$A$11,IF($C$5,8,0),1,1)) -> 371.36 | H102: 101414400 | I102: 102991994.2 | J102: 104203750.9 | K102: 0.7187048158 | L102: FALSE | M102: FALSE | N102: FALSE | O102: TRUE | AQ102: 1364200
A103: 71 | B103: =IF(A103>$A$8,"",OFFSET(InputPriceData!B$15,$A103+$A$11,0,1,1)) -> 2019-11-04 | C103: =IF(A103>$A$8,"",OFFSET(InputPriceData!G$15,CalculationsAndCharts!$A103+$A$11,IF($C$5,8,0),1,1)) -> 1117500 | D103: =IF(A103>$A$8,"",OFFSET(InputPriceData!C$15,CalculationsAndCharts!$A103+$A$11,IF($C$5,8,0),1,1)) -> 377.62 | E103: =IF(A103>$A$8,"",OFFSET(InputPriceData!D$15,CalculationsAndCharts!$A103+$A$11,IF($C$5,8,0),1,1)) -> 378.46 | F103: =IF(A103>$A$8,"",OFFSET(InputPriceData!E$15,CalculationsAndCharts!$A103+$A$11,IF($C$5,8,0),1,1)) -> 369.91 | G103: =IF(A103>$A$8,"",OFFSET(InputPriceData!F$15,CalculationsAndCharts!$A103+$A$11,IF($C$5,8,0),1,1)) -> 372.2 | H103: 102778600 | I103: 103517858.9 | J103: 104473030.2 | K103: 0.7235581825 | L103: FALSE | M103: FALSE | N103: FALSE | O103: TRUE | AQ103: 1117500
A104: 72 | B104: =IF(A104>$A$8,"",OFFSET(InputPriceData!B$15,$A104+$A$11,0,1,1)) -> 2019-11-01 | C104: =IF(A104>$A$8,"",OFFSET(InputPriceData!G$15,CalculationsAndCharts!$A104+$A$11,IF($C$5,8,0),1,1)) -> 915600 | D104: =IF(A104>$A$8,"",OFFSET(InputPriceData!C$15,CalculationsAndCharts!$A104+$A$11,IF($C$5,8,0),1,1)) -> 375.81 | E104: =IF(A104>$A$8,"",OFFSET(InputPriceData!D$15,CalculationsAndCharts!$A104+$A$11,IF($C$5,8,0),1,1)) -> 378.63 | F104: =IF(A104>$A$8,"",OFFSET(InputPriceData!E$15,CalculationsAndCharts!$A104+$A$11,IF($C$5,8,0),1,1)) -> 374.65 | G104: =IF(A104>$A$8,"",OFFSET(InputPriceData!F$15,CalculationsAndCharts!$A104+$A$11,IF($C$5,8,0),1,1)) -> 376.86 | H104: 103896100 | I104: 103764278.6 | J104: 104685290.5 | K104: 0.7344222816 | L104: FALSE | M104: FALSE | N104: FALSE | O104: TRUE | AP104: 915600
A105: 73 | B105: =IF(A105>$A$8,"",OFFSET(InputPriceData!B$15,$A105+$A$11,0,1,1)) -> 2019-10-31 | C105: =IF(A105>$A$8,"",OFFSET(InputPriceData!G$15,CalculationsAndCharts!$A105+$A$11,IF($C$5,8,0),1,1)) -> 911600 | D105: =IF(A105>$A$8,"",OFFSET(InputPriceData!C$15,CalculationsAndCharts!$A105+$A$11,IF($C$5,8,0),1,1)) -> 375.62 | E105: =IF(A105>$A$8,"",OFFSET(InputPriceData!D$15,CalculationsAndCharts!$A105+$A$11,IF($C$5,8,0),1,1)) -> 377.87 | F105: =IF(A105>$A$8,"",OFFSET(InputPriceData!E$15,CalculationsAndCharts!$A105+$A$11,IF($C$5,8,0),1,1)) -> 372.98 | G105: =IF(A105>$A$8,"",OFFSET(InputPriceData!F$15,CalculationsAndCharts!$A105+$A$11,IF($C$5,8,0),1,1)) -> 374.39 | H105: 102980500 | I105: 103720338.1 | J105: 104889959.8 | K105: 0.7786862435 | L105: FALSE | M105: FALSE | N105: FALSE | O105: TRUE | AQ105: 911600
A106: 74 | B106: =IF(A106>$A$8,"",OFFSET(InputPriceData!B$15,$A106+$A$11,0,1,1)) -> 2019-10-30 | C106: =IF(A106>$A$8,"",OFFSET(InputPriceData!G$15,CalculationsAndCharts!$A106+$A$11,IF($C$5,8,0),1,1)) -> 1064900 | D106: =IF(A106>$A$8,"",OFFSET(InputPriceData!C$15,CalculationsAndCharts!$A106+$A$11,IF($C$5,8,0),1,1)) -> 370.95 | E106: =IF(A106>$A$8,"",OFFSET(InputPriceData!D$15,CalculationsAndCharts!$A106+$A$11,IF($C$5,8,0),1,1)) -> 376.68 | F106: =IF(A106>$A$8,"",OFFSET(InputPriceData!E$15,CalculationsAndCharts!$A106+$A$11,IF($C$5,8,0),1,1)) -> 369.21 | G106: =IF(A106>$A$8,"",OFFSET(InputPriceData!F$15,CalculationsAndCharts!$A106+$A$11,IF($C$5,8,0),1,1)) -> 376.33 | H106: 103892100 | I106: 103966950.8 | J106: 105149875.7 | K106: 0.7970725105 | L106: FALSE | M106: FALSE | N106: FALSE | O106: TRUE | AP106: 1064900
A107: 75 | B107: =IF(A107>$A$8,"",OFFSET(InputPriceData!B$15,$A107+$A$11,0,1,1)) -> 2019-10-29 | C107: =IF(A107>$A$8,"",OFFSET(InputPriceData!G$15,CalculationsAndCharts!$A107+$A$11,IF($C$5,8,0),1,1)) -> 1298400 | D107: =IF(A107>$A$8,"",OFFSET(InputPriceData!C$15,CalculationsAndCharts!$A107+$A$11,IF($C$5,8,0),1,1)) -> 369.39 | E107: =IF(A107>$A$8,"",OFFSET(InputPriceData!D$15,CalculationsAndCharts!$A107+$A$11,IF($C$5,8,0),1,1)) -> 372.97 | F107: =IF(A107>$A$8,"",OFFSET(InputPriceData!E$15,CalculationsAndCharts!$A107+$A$11,IF($C$5,8,0),1,1)) -> 367.79 | G107: =IF(A107>$A$8,"",OFFSET(InputPriceData!F$15,CalculationsAndCharts!$A107+$A$11,IF($C$5,8,0),1,1)) -> 368.84 | H107: 102827200 | I107: 103991901.1 | J107: 105412747.9 | K107: 0.8209396541 | L107: FALSE | M107: FALSE | N107: FALSE | O107: TRUE | AQ107: 1298400
A108: 76 | B108: =IF(A108>$A$8,"",OFFSET(InputPriceData!B$15,$A108+$A$11,0,1,1)) -> 2019-10-28 | C108: =IF(A108>$A$8,"",OFFSET(InputPriceData!G$15,CalculationsAndCharts!$A108+$A$11,IF($C$5,8,0),1,1)) -> 1321700 | D108: =IF(A108>$A$8,"",OFFSET(InputPriceData!C$15,CalculationsAndCharts!$A108+$A$11,IF($C$5,8,0),1,1)) -> 369.13 | E108: =IF(A108>$A$8,"",OFFSET(InputPriceData!D$15,CalculationsAndCharts!$A108+$A$11,IF($C$5,8,0),1,1)) -> 373.16 | F108: =IF(A108>$A$8,"",OFFSET(InputPriceData!E$15,CalculationsAndCharts!$A108+$A$11,IF($C$5,8,0),1,1)) -> 367.87 | G108: =IF(A108>$A$8,"",OFFSET(InputPriceData!F$15,CalculationsAndCharts!$A108+$A$11,IF($C$5,8,0),1,1)) -> 369.58 | H108: 104125600 | I108: 104380134.8 | J108: 105728491.6 | K108: 0.809029575 | L108: FALSE | M108: FALSE | N108: FALSE | O108: TRUE | AP108: 1321700
A109: 77 | B109: =IF(A109>$A$8,"",OFFSET(InputPriceData!B$15,$A109+$A$11,0,1,1)) -> 2019-10-25 | C109: =IF(A109>$A$8,"",OFFSET(InputPriceData!G$15,CalculationsAndCharts!$A109+$A$11,IF($C$5,8,0),1,1)) -> 1173500 | D109: =IF(A109>$A$8,"",OFFSET(InputPriceData!C$15,CalculationsAndCharts!$A109+$A$11,IF($C$5,8,0),1,1)) -> 372.1 | E109: =IF(A109>$A$8,"",OFFSET(InputPriceData!D$15,CalculationsAndCharts!$A109+$A$11,IF($C$5,8,0),1,1)) -> 372.61 | F109: =IF(A109>$A$8,"",OFFSET(InputPriceData!E$15,CalculationsAndCharts!$A109+$A$11,IF($C$5,8,0),1,1)) -> 367.29 | G109: =IF(A109>$A$8,"",OFFSET(InputPriceData!F$15,CalculationsAndCharts!$A109+$A$11,IF($C$5,8,0),1,1)) -> 368.47 | H109: 102803900 | I109: 104464979.7 | J109: 106028126.5 | K109: 0.8237831754 | L109: FALSE | M109: FALSE | N109: FALSE | O109: TRUE | AQ109: 1173500
A110: 78 | B110: =IF(A110>$A$8,"",OFFSET(InputPriceData!B$15,$A110+$A$11,0,1,1)) -> 2019-10-24 | C110: =IF(A110>$A$8,"",OFFSET(InputPriceData!G$15,CalculationsAndCharts!$A110+$A$11,IF($C$5,8,0),1,1)) -> 1126900 | D110: =IF(A110>$A$8,"",OFFSET(InputPriceData!C$15,CalculationsAndCharts!$A110+$A$11,IF($C$5,8,0),1,1)) -> 371.48 | E110: =IF(A110>$A$8,"",OFFSET(InputPriceData!D$15,CalculationsAndCharts!$A110+$A$11,IF($C$5,8,0),1,1)) -> 375.16 | F110: =IF(A110>$A$8,"",OFFSET(InputPriceData!E$15,CalculationsAndCharts!$A110+$A$11,IF($C$5,8,0),1,1)) -> 369.74 | G110: =IF(A110>$A$8,"",OFFSET(InputPriceData!F$15,CalculationsAndCharts!$A110+$A$11,IF($C$5,8,0),1,1)) -> 372.46 | H110: 103977400 | I110: 105018672.9 | J110: 106375492.4 | K110: 0.7924919486 | L110: FALSE | M110: FALSE | N110: FALSE | O110: TRUE | AP110: 1126900
A111: 79 | B111: =IF(A111>$A$8,"",OFFSET(InputPriceData!B$15,$A111+$A$11,0,1,1)) -> 2019-10-23 | C111: =IF(A111>$A$8,"",OFFSET(InputPriceData!G$15,CalculationsAndCharts!$A111+$A$11,IF($C$5,8,0),1,1)) -> 1279700 | D111: =IF(A111>$A$8,"",OFFSET(InputPriceData!C$15,CalculationsAndCharts!$A111+$A$11,IF($C$5,8,0),1,1)) -> 371.5 | E111: =IF(A111>$A$8,"",OFFSET(InputPriceData!D$15,CalculationsAndCharts!$A111+$A$11,IF($C$5,8,0),1,1)) -> 372.71 | F111: =IF(A111>$A$8,"",OFFSET(InputPriceData!E$15,CalculationsAndCharts!$A111+$A$11,IF($C$5,8,0),1,1)) -> 366.49 | G111: =IF(A111>$A$8,"",OFFSET(InputPriceData!F$15,CalculationsAndCharts!$A111+$A$11,IF($C$5,8,0),1,1)) -> 370.82 | H111: 102850500 | I111: 105365763.9 | J111: 106677007.9 | K111: 0.7895811305 | L111: FALSE | M111: FALSE | N111: FALSE | O111: TRUE | AQ111: 1279700
A112: 80 | B112: =IF(A112>$A$8,"",OFFSET(InputPriceData!B$15,$A112+$A$11,0,1,1)) -> 2019-10-22 | C112: =IF(A112>$A$8,"",OFFSET(InputPriceData!G$15,CalculationsAndCharts!$A112+$A$11,IF($C$5,8,0),1,1)) -> 2567200 | D112: =IF(A112>$A$8,"",OFFSET(InputPriceData!C$15,CalculationsAndCharts!$A112+$A$11,IF($C$5,8,0),1,1)) -> 360.79 | E112: =IF(A112>$A$8,"",OFFSET(InputPriceData!D$15,CalculationsAndCharts!$A112+$A$11,IF($C$5,8,0),1,1)) -> 375.2 | F112: =IF(A112>$A$8,"",OFFSET(InputPriceData!E$15,CalculationsAndCharts!$A112+$A$11,IF($C$5,8,0),1,1)) -> 360.79 | G112: =IF(A112>$A$8,"",OFFSET(InputPriceData!F$15,CalculationsAndCharts!$A112+$A$11,IF($C$5,8,0),1,1)) -> 371.41 | H112: 104130200 | I112: 106204185.2 | J112: 106968395.5 | K112: 0.772374914 | L112: FALSE | M112: FALSE | N112: FALSE | O112: TRUE | AP112: 2567200
A113: 81 | B113: =IF(A113>$A$8,"",OFFSET(InputPriceData!B$15,$A113+$A$11,0,1,1)) -> 2019-10-21 | C113: =IF(A113>$A$8,"",OFFSET(InputPriceData!G$15,CalculationsAndCharts!$A113+$A$11,IF($C$5,8,0),1,1)) -> 1160000 | D113: =IF(A113>$A$8,"",OFFSET(InputPriceData!C$15,CalculationsAndCharts!$A113+$A$11,IF($C$5,8,0),1,1)) -> 371.73 | E113: =IF(A113>$A$8,"",OFFSET(InputPriceData!D$15,CalculationsAndCharts!$A113+$A$11,IF($C$5,8,0),1,1)) -> 373.6 | F113: =IF(A113>$A$8,"",OFFSET(InputPriceData!E$15,CalculationsAndCharts!$A113+$A$11,IF($C$5,8,0),1,1)) -> 370.46 | G113: =IF(A113>$A$8,"",OFFSET(InputPriceData!F$15,CalculationsAndCharts!$A113+$A$11,IF($C$5,8,0),1,1)) -> 371.77 | H113: 106697400 | I113: 106895513.5 | J113: 107138220 | K113: 0.6568875348 | L113: FALSE | M113: FALSE | N113: FALSE | O113: TRUE | AP113: 1160000
A114: 82 | B114: =IF(A114>$A$8,"",OFFSET(InputPriceData!B$15,$A114+$A$11,0,1,1)) -> 2019-10-18 | C114: =IF(A114>$A$8,"",OFFSET(InputPriceData!G$15,CalculationsAndCharts!$A114+$A$11,IF($C$5,8,0),1,1)) -> 1935600 | D114: =IF(A114>$A$8,"",OFFSET(InputPriceData!C$15,CalculationsAndCharts!$A114+$A$11,IF($C$5,8,0),1,1)) -> 374.43 | E114: =IF(A114>$A$8,"",OFFSET(InputPriceData!D$15,CalculationsAndCharts!$A114+$A$11,IF($C$5,8,0),1,1)) -> 375.41 | F114: =IF(A114>$A$8,"",OFFSET(InputPriceData!E$15,CalculationsAndCharts!$A114+$A$11,IF($C$5,8,0),1,1)) -> 365.76 | G114: =IF(A114>$A$8,"",OFFSET(InputPriceData!F$15,CalculationsAndCharts!$A114+$A$11,IF($C$5,8,0),1,1)) -> 370.21 | H114: 105537400 | I114: 106961551.4 | J114: 107192154.7 | K114: 0.5239328439 | L114: =AND(I114>J114,I115<J115) -> FALSE | M114: =AND(I114<J114,I115>J115) -> TRUE | N114: FALSE | O114: TRUE | AB114: 125000000 | AE114: 453.59325 | AQ114: 1935600
A115: 83 | B115: =IF(A115>$A$8,"",OFFSET(InputPriceData!B$15,$A115+$A$11,0,1,1)) -> 2019-10-17 | C115: =IF(A115>$A$8,"",OFFSET(InputPriceData!G$15,CalculationsAndCharts!$A115+$A$11,IF($C$5,8,0),1,1)) -> 1004600 | D115: =IF(A115>$A$8,"",OFFSET(InputPriceData!C$15,CalculationsAndCharts!$A115+$A$11,IF($C$5,8,0),1,1)) -> 381.22 | E115: =IF(A115>$A$8,"",OFFSET(InputPriceData!D$15,CalculationsAndCharts!$A115+$A$11,IF($C$5,8,0),1,1)) -> 381.87 | F115: =IF(A115>$A$8,"",OFFSET(InputPriceData!E$15,CalculationsAndCharts!$A115+$A$11,IF($C$5,8,0),1,1)) -> 374 | G115: =IF(A115>$A$8,"",OFFSET(InputPriceData!F$15,CalculationsAndCharts!$A115+$A$11,IF($C$5,8,0),1,1)) -> 374.76 | H115: 107473000 | I115: 107436268.5 | J115: 107243399.9 | K115: 0.358028438 | L115: FALSE | M115: FALSE | N115: TRUE | O115: FALSE | AQ115: 1004600
A116: 84 | B116: =IF(A116>$A$8,"",OFFSET(InputPriceData!B$15,$A116+$A$11,0,1,1)) -> 2019-10-16 | C116: =IF(A116>$A$8,"",OFFSET(InputPriceData!G$15,CalculationsAndCharts!$A116+$A$11,IF($C$5,8,0),1,1)) -> 851300 | D116: =IF(A116>$A$8,"",OFFSET(InputPriceData!C$15,CalculationsAndCharts!$A116+$A$11,IF($C$5,8,0),1,1)) -> 380.06 | E116: =IF(A116>$A$8,"",OFFSET(InputPriceData!D$15,CalculationsAndCharts!$A116+$A$11,IF($C$5,8,0),1,1)) -> 382.05 | F116: =IF(A116>$A$8,"",OFFSET(InputPriceData!E$15,CalculationsAndCharts!$A116+$A$11,IF($C$5,8,0),1,1)) -> 377.92 | G116: =IF(A116>$A$8,"",OFFSET(InputPriceData!F$15,CalculationsAndCharts!$A116+$A$11,IF($C$5,8,0),1,1)) -> 380.51 | H116: 108477600 | I116: 107424024.7 | J116: 107200540.2 | K116: 0.4861102524 | L116: TRUE | M116: FALSE | N116: TRUE | O116: FALSE | Z116: 125000000 | AD116: 453.59325 | AP116: 851300
A117: 85 | B117: =IF(A117>$A$8,"",OFFSET(InputPriceData!B$15,$A117+$A$11,0,1,1)) -> 2019-10-15 | C117: =IF(A117>$A$8,"",OFFSET(InputPriceData!G$15,CalculationsAndCharts!$A117+$A$11,IF($C$5,8,0),1,1)) -> 835300 | D117: =IF(A117>$A$8,"",OFFSET(InputPriceData!C$15,CalculationsAndCharts!$A117+$A$11,IF($C$5,8,0),1,1)) -> 381.35 | E117: =IF(A117>$A$8,"",OFFSET(InputPriceData!D$15,CalculationsAndCharts!$A117+$A$11,IF($C$5,8,0),1,1)) -> 383.35 | F117: =IF(A117>$A$8,"",OFFSET(InputPriceData!E$15,CalculationsAndCharts!$A117+$A$11,IF($C$5,8,0),1,1)) -> 379.74 | G117: =IF(A117>$A$8,"",OFFSET(InputPriceData!F$15,CalculationsAndCharts!$A117+$A$11,IF($C$5,8,0),1,1)) -> 380.42 | H117: 107626300 | I117: 107072832.9 | J117: 107150877 | K117: 0.6592349356 | L117: FALSE | M117: FALSE | N117: FALSE | O117: TRUE | AQ117: 835300
A118: 86 | B118: =IF(A118>$A$8,"",OFFSET(InputPriceData!B$15,$A118+$A$11,0,1,1)) -> 2019-10-14 | C118: =IF(A118>$A$8,"",OFFSET(InputPriceData!G$15,CalculationsAndCharts!$A118+$A$11,IF($C$5,8,0),1,1)) -> 622300 | D118: =IF(A118>$A$8,"",OFFSET(InputPriceData!C$15,CalculationsAndCharts!$A118+$A$11,IF($C$5,8,0),1,1)) -> 380.44 | E118: =IF(A118>$A$8,"",OFFSET(InputPriceData!D$15,CalculationsAndCharts!$A118+$A$11,IF($C$5,8,0),1,1)) -> 383.02 | F118: =IF(A118>$A$8,"",OFFSET(InputPriceData!E$15,CalculationsAndCharts!$A118+$A$11,IF($C$5,8,0),1,1)) -> 379.07 | G118: =IF(A118>$A$8,"",OFFSET(InputPriceData!F$15,CalculationsAndCharts!$A118+$A$11,IF($C$5,8,0),1,1)) -> 380.28 | H118: 106791000 | I118: 106888343.9 | J118: 107168220.2 | K118: 0.7069830956 | L118: FALSE | M118: FALSE | N118: FALSE | O118: TRUE | AQ118: 622300
A119: 87 | B119: =IF(A119>$A$8,"",OFFSET(InputPriceData!B$15,$A119+$A$11,0,1,1)) -> 2019-10-11 | C119: =IF(A119>$A$8,"",OFFSET(InputPriceData!G$15,CalculationsAndCharts!$A119+$A$11,IF($C$5,8,0),1,1)) -> 1327000 | D119: =IF(A119>$A$8,"",OFFSET(InputPriceData!C$15,CalculationsAndCharts!$A119+$A$11,IF($C$5,8,0),1,1)) -> 387.42 | E119: =IF(A119>$A$8,"",OFFSET(InputPriceData!D$15,CalculationsAndCharts!$A119+$A$11,IF($C$5,8,0),1,1)) -> 388.35 | F119: =IF(A119>$A$8,"",OFFSET(InputPriceData!E$15,CalculationsAndCharts!$A119+$A$11,IF($C$5,8,0),1,1)) -> 378.93 | G119: =IF(A119>$A$8,"",OFFSET(InputPriceData!F$15,CalculationsAndCharts!$A119+$A$11,IF($C$5,8,0),1,1)) -> 379.15 | H119: 106168700 | I119: 106920791.9 | J119: 107230414.9 | K119: 0.6961719071 | L119: FALSE | M119: FALSE | N119: FALSE | O119: TRUE | AQ119: 1327000
A120: 88 | B120: =IF(A120>$A$8,"",OFFSET(InputPriceData!B$15,$A120+$A$11,0,1,1)) -> 2019-10-10 | C120: =IF(A120>$A$8,"",OFFSET(InputPriceData!G$15,CalculationsAndCharts!$A120+$A$11,IF($C$5,8,0),1,1)) -> 690200 | D120: =IF(A120>$A$8,"",OFFSET(InputPriceData!C$15,CalculationsAndCharts!$A120+$A$11,IF($C$5,8,0),1,1)) -> 381.65 | E120: =IF(A120>$A$8,"",OFFSET(InputPriceData!D$15,CalculationsAndCharts!$A120+$A$11,IF($C$5,8,0),1,1)) -> 386.14 | F120: =IF(A120>$A$8,"",OFFSET(InputPriceData!E$15,CalculationsAndCharts!$A120+$A$11,IF($C$5,8,0),1,1)) -> 380.87 | G120: =IF(A120>$A$8,"",OFFSET(InputPriceData!F$15,CalculationsAndCharts!$A120+$A$11,IF($C$5,8,0),1,1)) -> 384.52 | H120: 107495700 | I120: 107171489.1 | J120: 107299220 | K120: 0.6765500927 | L120: FALSE | M120: FALSE | N120: FALSE | O120: TRUE | AP120: 690200
A121: 89 | B121: =IF(A121>$A$8,"",OFFSET(InputPriceData!B$15,$A121+$A$11,0,1,1)) -> 2019-10-09 | C121: =IF(A121>$A$8,"",OFFSET(InputPriceData!G$15,CalculationsAndCharts!$A121+$A$11,IF($C$5,8,0),1,1)) -> 712000 | D121: =IF(A121>$A$8,"",OFFSET(InputPriceData!C$15,CalculationsAndCharts!$A121+$A$11,IF($C$5,8,0),1,1)) -> 382.49 | E121: =IF(A121>$A$8,"",OFFSET(InputPriceData!D$15,CalculationsAndCharts!$A121+$A$11,IF($C$5,8,0),1,1)) -> 383.98 | F121: =IF(A121>$A$8,"",OFFSET(InputPriceData!E$15,CalculationsAndCharts!$A121+$A$11,IF($C$5,8,0),1,1)) -> 380.17 | G121: =IF(A121>$A$8,"",OFFSET(InputPriceData!F$15,CalculationsAndCharts!$A121+$A$11,IF($C$5,8,0),1,1)) -> 382.27 | H121: 106805500 | I121: 107063418.9 | J121: 107327604.7 | K121: 0.6775299868 | L121: FALSE | M121: FALSE | N121: FALSE | O121: TRUE | AQ121: 712000
A122: 90 | B122: =IF(A122>$A$8,"",OFFSET(InputPriceData!B$15,$A122+$A$11,0,1,1)) -> 2019-10-08 | C122: =IF(A122>$A$8,"",OFFSET(InputPriceData!G$15,CalculationsAndCharts!$A122+$A$11,IF($C$5,8,0),1,1)) -> 1001300 | D122: =IF(A122>$A$8,"",OFFSET(InputPriceData!C$15,CalculationsAndCharts!$A122+$A$11,IF($C$5,8,0),1,1)) -> 378.74 | E122: =IF(A122>$A$8,"",OFFSET(InputPriceData!D$15,CalculationsAndCharts!$A122+$A$11,IF($C$5,8,0),1,1)) -> 383.45 | F122: =IF(A122>$A$8,"",OFFSET(InputPriceData!E$15,CalculationsAndCharts!$A122+$A$11,IF($C$5,8,0),1,1)) -> 376.98 | G122: =IF(A122>$A$8,"",OFFSET(InputPriceData!F$15,CalculationsAndCharts!$A122+$A$11,IF($C$5,8,0),1,1)) -> 379.79 | H122: 106093500 | I122: 107149391.8 | J122: 107386312.6 | K122: 0.6917662925 | L122: FALSE | M122: TRUE | N122: FALSE | O122: TRUE | AB122: 125000000 | AE122: 453.59325 | AP122: 1001300
A123: 91 | B123: =IF(A123>$A$8,"",OFFSET(InputPriceData!B$15,$A123+$A$11,0,1,1)) -> 2019-10-07 | C123: =IF(A123>$A$8,"",OFFSET(InputPriceData!G$15,CalculationsAndCharts!$A123+$A$11,IF($C$5,8,0),1,1)) -> 850100 | D123: =IF(A123>$A$8,"",OFFSET(InputPriceData!C$15,CalculationsAndCharts!$A123+$A$11,IF($C$5,8,0),1,1)) -> 382.67 | E123: =IF(A123>$A$8,"",OFFSET(InputPriceData!D$15,CalculationsAndCharts!$A123+$A$11,IF($C$5,8,0),1,1)) -> 384.33 | F123: =IF(A123>$A$8,"",OFFSET(InputPriceData!E$15,CalculationsAndCharts!$A123+$A$11,IF($C$5,8,0),1,1)) -> 380.36 | G123: =IF(A123>$A$8,"",OFFSET(InputPriceData!F$15,CalculationsAndCharts!$A123+$A$11,IF($C$5,8,0),1,1)) -> 381.44 | H123: 107094800 | I123: 107501355.7 | J123: 107438961.7 | K123: 0.7008251824 | L123: FALSE | M123: FALSE | N123: TRUE | O123: FALSE | AQ123: 850100
A124: 92 | B124: =IF(A124>$A$8,"",OFFSET(InputPriceData!B$15,$A124+$A$11,0,1,1)) -> 2019-10-04 | C124: =IF(A124>$A$8,"",OFFSET(InputPriceData!G$15,CalculationsAndCharts!$A124+$A$11,IF($C$5,8,0),1,1)) -> 762200 | D124: =IF(A124>$A$8,"",OFFSET(InputPriceData!C$15,CalculationsAndCharts!$A124+$A$11,IF($C$5,8,0),1,1)) -> 377.9 | E124: =IF(A124>$A$8,"",OFFSET(InputPriceData!D$15,CalculationsAndCharts!$A124+$A$11,IF($C$5,8,0),1,1)) -> 382.89 | F124: =IF(A124>$A$8,"",OFFSET(InputPriceData!E$15,CalculationsAndCharts!$A124+$A$11,IF($C$5,8,0),1,1)) -> 377.18 | G124: =IF(A124>$A$8,"",OFFSET(InputPriceData!F$15,CalculationsAndCharts!$A124+$A$11,IF($C$5,8,0),1,1)) -> 382.61 | H124: 107944900 | I124: 107636874.3 | J124: 107425096.3 | K124: 0.7294619577 | L124: FALSE | M124: FALSE | N124: TRUE | O124: FALSE | AP124: 762200
A125: 93 | B125: =IF(A125>$A$8,"",OFFSET(InputPriceData!B$15,$A125+$A$11,0,1,1)) -> 2019-10-03 | C125: =IF(A125>$A$8,"",OFFSET(InputPriceData!G$15,CalculationsAndCharts!$A125+$A$11,IF($C$5,8,0),1,1)) -> 849800 | D125: =IF(A125>$A$8,"",OFFSET(InputPriceData!C$15,CalculationsAndCharts!$A125+$A$11,IF($C$5,8,0),1,1)) -> 376.56 | E125: =IF(A125>$A$8,"",OFFSET(InputPriceData!D$15,CalculationsAndCharts!$A125+$A$11,IF($C$5,8,0),1,1)) -> 378.87 | F125: =IF(A125>$A$8,"",OFFSET(InputPriceData!E$15,CalculationsAndCharts!$A125+$A$11,IF($C$5,8,0),1,1)) -> 372.05 | G125: =IF(A125>$A$8,"",OFFSET(InputPriceData!F$15,CalculationsAndCharts!$A125+$A$11,IF($C$5,8,0),1,1)) -> 377.75 | H125: 107182700 | I125: 107534199.1 | J125: 107378034.6 | K125: 0.7190846143 | L125: FALSE | M125: FALSE | N125: TRUE | O125: FALSE | AP125: 849800
A126: 94 | B126: =IF(A126>$A$8,"",OFFSET(InputPriceData!B$15,$A126+$A$11,0,1,1)) -> 2019-10-02 | C126: =IF(A126>$A$8,"",OFFSET(InputPriceData!G$15,CalculationsAndCharts!$A126+$A$11,IF($C$5,8,0),1,1)) -> 1759000 | D126: =IF(A126>$A$8,"",OFFSET(InputPriceData!C$15,CalculationsAndCharts!$A126+$A$11,IF($C$5,8,0),1,1)) -> 380.41 | E126: =IF(A126>$A$8,"",OFFSET(InputPriceData!D$15,CalculationsAndCharts!$A126+$A$11,IF($C$5,8,0),1,1)) -> 380.73 | F126: =IF(A126>$A$8,"",OFFSET(InputPriceData!E$15,CalculationsAndCharts!$A126+$A$11,IF($C$5,8,0),1,1)) -> 371.79 | G126: =IF(A126>$A$8,"",OFFSET(InputPriceData!F$15,CalculationsAndCharts!$A126+$A$11,IF($C$5,8,0),1,1)) -> 375.86 | H126: 106332900 | I126: 107651365.5 | J126: 107343331.3 | K126: 0.7444627271 | L126: FALSE | M126: FALSE | N126: TRUE | O126: FALSE | AQ126: 1759000
A127: 95 | B127: =IF(A127>$A$8,"",OFFSET(InputPriceData!B$15,$A127+$A$11,0,1,1)) -> 2019-10-01 | C127: =IF(A127>$A$8,"",OFFSET(InputPriceData!G$15,CalculationsAndCharts!$A127+$A$11,IF($C$5,8,0),1,1)) -> 1240000 | D127: =IF(A127>$A$8,"",OFFSET(InputPriceData!C$15,CalculationsAndCharts!$A127+$A$11,IF($C$5,8,0),1,1)) -> 389.05 | E127: =IF(A127>$A$8,"",OFFSET(InputPriceData!D$15,CalculationsAndCharts!$A127+$A$11,IF($C$5,8,0),1,1)) -> 390.09 | F127: =IF(A127>$A$8,"",OFFSET(InputPriceData!E$15,CalculationsAndCharts!$A127+$A$11,IF($C$5,8,0),1,1)) -> 381.55 | G127: =IF(A127>$A$8,"",OFFSET(InputPriceData!F$15,CalculationsAndCharts!$A127+$A$11,IF($C$5,8,0),1,1)) -> 381.85 | H127: 108091900 | I127: 108090854 | J127: 107274879.3 | K127: 0.7535300814 | L127: FALSE | M127: FALSE | N127: TRUE | O127: FALSE | AQ127: 1240000
A128: 96 | B128: =IF(A128>$A$8,"",OFFSET(InputPriceData!B$15,$A128+$A$11,0,1,1)) -> 2019-09-30 | C128: =IF(A128>$A$8,"",OFFSET(InputPriceData!G$15,CalculationsAndCharts!$A128+$A$11,IF($C$5,8,0),1,1)) -> 1293200 | D128: =IF(A128>$A$8,"",OFFSET(InputPriceData!C$15,CalculationsAndCharts!$A128+$A$11,IF($C$5,8,0),1,1)) -> 386.19 | E128: =IF(A128>$A$8,"",OFFSET(InputPriceData!D$15,CalculationsAndCharts!$A128+$A$11,IF($C$5,8,0),1,1)) -> 391.42 | F128: =IF(A128>$A$8,"",OFFSET(InputPriceData!E$15,CalculationsAndCharts!$A128+$A$11,IF($C$5,8,0),1,1)) -> 386.06 | G128: =IF(A128>$A$8,"",OFFSET(InputPriceData!F$15,CalculationsAndCharts!$A128+$A$11,IF($C$5,8,0),1,1)) -> 387.69 | H128: 109331900 | I128: 108090505.3 | J128: 107093551.6 | K128: 0.8159819674 | L128: FALSE | M128: FALSE | N128: TRUE | O128: FALSE | AP128: 1293200
A129: 97 | B129: =IF(A129>$A$8,"",OFFSET(InputPriceData!B$15,$A129+$A$11,0,1,1)) -> 2019-09-27 | C129: =IF(A129>$A$8,"",OFFSET(InputPriceData!G$15,CalculationsAndCharts!$A129+$A$11,IF($C$5,8,0),1,1)) -> 751800 | D129: =IF(A129>$A$8,"",OFFSET(InputPriceData!C$15,CalculationsAndCharts!$A129+$A$11,IF($C$5,8,0),1,1)) -> 393.53 | E129: =IF(A129>$A$8,"",OFFSET(InputPriceData!D$15,CalculationsAndCharts!$A129+$A$11,IF($C$5,8,0),1,1)) -> 393.54 | F129: =IF(A129>$A$8,"",OFFSET(InputPriceData!E$15,CalculationsAndCharts!$A129+$A$11,IF($C$5,8,0),1,1)) -> 384.08 | G129: =IF(A129>$A$8,"",OFFSET(InputPriceData!F$15,CalculationsAndCharts!$A129+$A$11,IF($C$5,8,0),1,1)) -> 385.51 | H129: 108038700 | I129: 107676707 | J129: 106872006.3 | K129: 0.8318569141 | L129: FALSE | M129: FALSE | N129: TRUE | O129: FALSE | AQ129: 751800
A130: 98 | B130: =IF(A130>$A$8,"",OFFSET(InputPriceData!B$15,$A130+$A$11,0,1,1)) -> 2019-09-26 | C130: =IF(A130>$A$8,"",OFFSET(InputPriceData!G$15,CalculationsAndCharts!$A130+$A$11,IF($C$5,8,0),1,1)) -> 875400 | D130: =IF(A130>$A$8,"",OFFSET(InputPriceData!C$15,CalculationsAndCharts!$A130+$A$11,IF($C$5,8,0),1,1)) -> 388.87 | E130: =IF(A130>$A$8,"",OFFSET(InputPriceData!D$15,CalculationsAndCharts!$A130+$A$11,IF($C$5,8,0),1,1)) -> 392.24 | F130: =IF(A130>$A$8,"",OFFSET(InputPriceData!E$15,CalculationsAndCharts!$A130+$A$11,IF($C$5,8,0),1,1)) -> 386.56 | G130: =IF(A130>$A$8,"",OFFSET(InputPriceData!F$15,CalculationsAndCharts!$A130+$A$11,IF($C$5,8,0),1,1)) -> 390.53 | H130: 108790500 | I130: 107556042.7 | J130: 106693184 | K130: 0.8556528173 | L130: FALSE | M130: FALSE | N130: TRUE | O130: FALSE | AP130: 875400
A131: 99 | B131: =IF(A131>$A$8,"",OFFSET(InputPriceData!B$15,$A131+$A$11,0,1,1)) -> 2019-09-25 | C131: =IF(A131>$A$8,"",OFFSET(InputPriceData!G$15,CalculationsAndCharts!$A131+$A$11,IF($C$5,8,0),1,1)) -> 1336400 | D131: =IF(A131>$A$8,"",OFFSET(InputPriceData!C$15,CalculationsAndCharts!$A131+$A$11,IF($C$5,8,0),1,1)) -> 388.2 | E131: =IF(A131>$A$8,"",OFFSET(InputPriceData!D$15,CalculationsAndCharts!$A131+$A$11,IF($C$5,8,0),1,1)) -> 388.52 | F131: =IF(A131>$A$8,"",OFFSET(InputPriceData!E$15,CalculationsAndCharts!$A131+$A$11,IF($C$5,8,0),1,1)) -> 385.35 | G131: =IF(A131>$A$8,"",OFFSET(InputPriceData!F$15,CalculationsAndCharts!$A131+$A$11,IF($C$5,8,0),1,1)) -> 388.05 | H131: 107915100 | I131: 107144557 | J131: 106501437.6 | K131: 0.8686268642 | L131: FALSE | M131: FALSE | N131: TRUE | O131: FALSE | AQ131: 1336400
A132: 100 | B132: =IF(A132>$A$8,"",OFFSET(InputPriceData!B$15,$A132+$A$11,0,1,1)) -> 2019-09-24 | C132: =IF(A132>$A$8,"",OFFSET(InputPriceData!G$15,CalculationsAndCharts!$A132+$A$11,IF($C$5,8,0),1,1)) -> 1162400 | D132: =IF(A132>$A$8,"",OFFSET(InputPriceData!C$15,CalculationsAndCharts!$A132+$A$11,IF($C$5,8,0),1,1)) -> 387.63 | E132: =IF(A132>$A$8,"",OFFSET(InputPriceData!D$15,CalculationsAndCharts!$A132+$A$11,IF($C$5,8,0),1,1)) -> 390.6 | F132: =IF(A132>$A$8,"",OFFSET(InputPriceData!E$15,CalculationsAndCharts!$A132+$A$11,IF($C$5,8,0),1,1)) -> 384.85 | G132: =IF(A132>$A$8,"",OFFSET(InputPriceData!F$15,CalculationsAndCharts!$A132+$A$11,IF($C$5,8,0),1,1)) -> 386.8 | H132: 106578700 | I132: 106887709.3 | J132: 106358522.1 | K132: 0.8845932068 | L132: FALSE | M132: FALSE | N132: TRUE | O132: FALSE | AQ132: 1162400
A133: 101 | B133: =IF(A133>$A$8,"",OFFSET(InputPriceData!B$15,$A133+$A$11,0,1,1)) -> 2019-09-23 | C133: =IF(A133>$A$8,"",OFFSET(InputPriceData!G$15,CalculationsAndCharts!$A133+$A$11,IF($C$5,8,0),1,1)) -> 1132200 | D133: =IF(A133>$A$8,"",OFFSET(InputPriceData!C$15,CalculationsAndCharts!$A133+$A$11,IF($C$5,8,0),1,1)) -> 385.71 | E133: =IF(A133>$A$8,"",OFFSET(InputPriceData!D$15,CalculationsAndCharts!$A133+$A$11,IF($C$5,8,0),1,1)) -> 387.69 | F133: =IF(A133>$A$8,"",OFFSET(InputPriceData!E$15,CalculationsAndCharts!$A133+$A$11,IF($C$5,8,0),1,1)) -> 383.76 | G133: =IF(A133>$A$8,"",OFFSET(InputPriceData!F$15,CalculationsAndCharts!$A133+$A$11,IF($C$5,8,0),1,1)) -> 385.31 | H133: 105416300 | I133: 106990712.4 | J133: 106240925 | K133: 0.8959801944 | L133: FALSE | M133: FALSE | N133: TRUE | O133: FALSE | AQ133: 1132200
A134: 102 | B134: =IF(A134>$A$8,"",OFFSET(InputPriceData!B$15,$A134+$A$11,0,1,1)) -> 2019-09-20 | C134: =IF(A134>$A$8,"",OFFSET(InputPriceData!G$15,CalculationsAndCharts!$A134+$A$11,IF($C$5,8,0),1,1)) -> 2106700 | D134: =IF(A134>$A$8,"",OFFSET(InputPriceData!C$15,CalculationsAndCharts!$A134+$A$11,IF($C$5,8,0),1,1)) -> 392.09 | E134: =IF(A134>$A$8,"",OFFSET(InputPriceData!D$15,CalculationsAndCharts!$A134+$A$11,IF($C$5,8,0),1,1)) -> 393.03 | F134: =IF(A134>$A$8,"",OFFSET(InputPriceData!E$15,CalculationsAndCharts!$A134+$A$11,IF($C$5,8,0),1,1)) -> 385.69 | G134: =IF(A134>$A$8,"",OFFSET(InputPriceData!F$15,CalculationsAndCharts!$A134+$A$11,IF($C$5,8,0),1,1)) -> 385.89 | H134: 106548500 | I134: 107515516.5 | J134: 106074305.6 | K134: 0.912143724 | L134: FALSE | M134: FALSE | N134: TRUE | O134: FALSE | AQ134: 2106700
A135: 103 | B135: =IF(A135>$A$8,"",OFFSET(InputPriceData!B$15,$A135+$A$11,0,1,1)) -> 2019-09-19 | C135: =IF(A135>$A$8,"",OFFSET(InputPriceData!G$15,CalculationsAndCharts!$A135+$A$11,IF($C$5,8,0),1,1)) -> 1044400 | D135: =IF(A135>$A$8,"",OFFSET(InputPriceData!C$15,CalculationsAndCharts!$A135+$A$11,IF($C$5,8,0),1,1)) -> 394.72 | E135: =IF(A135>$A$8,"",OFFSET(InputPriceData!D$15,CalculationsAndCharts!$A135+$A$11,IF($C$5,8,0),1,1)) -> 396.07 | F135: =IF(A135>$A$8,"",OFFSET(InputPriceData!E$15,CalculationsAndCharts!$A135+$A$11,IF($C$5,8,0),1,1)) -> 390.64 | G135: =IF(A135>$A$8,"",OFFSET(InputPriceData!F$15,CalculationsAndCharts!$A135+$A$11,IF($C$5,8,0),1,1)) -> 391.03 | H135: 108655200 | I135: 107837855.3 | J135: 105754036.5 | K135: 0.8980941401 | L135: FALSE | M135: FALSE | N135: TRUE | O135: FALSE | AQ135: 1044400
A136: 104 | B136: =IF(A136>$A$8,"",OFFSET(InputPriceData!B$15,$A136+$A$11,0,1,1)) -> 2019-09-18 | C136: =IF(A136>$A$8,"",OFFSET(InputPriceData!G$15,CalculationsAndCharts!$A136+$A$11,IF($C$5,8,0),1,1)) -> 780300 | D136: =IF(A136>$A$8,"",OFFSET(InputPriceData!C$15,CalculationsAndCharts!$A136+$A$11,IF($C$5,8,0),1,1)) -> 392.38 | E136: =IF(A136>$A$8,"",OFFSET(InputPriceData!D$15,CalculationsAndCharts!$A136+$A$11,IF($C$5,8,0),1,1)) -> 394.81 | F136: =IF(A136>$A$8,"",OFFSET(InputPriceData!E$15,CalculationsAndCharts!$A136+$A$11,IF($C$5,8,0),1,1)) -> 389.17 | G136: =IF(A136>$A$8,"",OFFSET(InputPriceData!F$15,CalculationsAndCharts!$A136+$A$11,IF($C$5,8,0),1,1)) -> 394.62 | H136: 109699600 | I136: 107565407.1 | J136: 105290965.6 | K136: 0.8830915643 | L136: FALSE | M136: FALSE | N136: TRUE | O136: FALSE | AP136: 780300
A137: 105 | B137: =IF(A137>$A$8,"",OFFSET(InputPriceData!B$15,$A137+$A$11,0,1,1)) -> 2019-09-17 | C137: =IF(A137>$A$8,"",OFFSET(InputPriceData!G$15,CalculationsAndCharts!$A137+$A$11,IF($C$5,8,0),1,1)) -> 975800 | D137: =IF(A137>$A$8,"",OFFSET(InputPriceData!C$15,CalculationsAndCharts!$A137+$A$11,IF($C$5,8,0),1,1)) -> 390.08 | E137: =IF(A137>$A$8,"",OFFSET(InputPriceData!D$15,CalculationsAndCharts!$A137+$A$11,IF($C$5,8,0),1,1)) -> 397.53 | F137: =IF(A137>$A$8,"",OFFSET(InputPriceData!E$15,CalculationsAndCharts!$A137+$A$11,IF($C$5,8,0),1,1)) -> 386.07 | G137: =IF(A137>$A$8,"",OFFSET(InputPriceData!F$15,CalculationsAndCharts!$A137+$A$11,IF($C$5,8,0),1,1)) -> 391.58 | H137: 108919300 | I137: 106854009.5 | J137: 104785534.2 | K137: 0.8487753824 | L137: FALSE | M137: FALSE | N137: TRUE | O137: FALSE | AP137: 975800
A138: 106 | B138: =IF(A138>$A$8,"",OFFSET(InputPriceData!B$15,$A138+$A$11,0,1,1)) -> 2019-09-16 | C138: =IF(A138>$A$8,"",OFFSET(InputPriceData!G$15,CalculationsAndCharts!$A138+$A$11,IF($C$5,8,0),1,1)) -> 1689900 | D138: =IF(A138>$A$8,"",OFFSET(InputPriceData!C$15,CalculationsAndCharts!$A138+$A$11,IF($C$5,8,0),1,1)) -> 386.53 | E138: =IF(A138>$A$8,"",OFFSET(InputPriceData!D$15,CalculationsAndCharts!$A138+$A$11,IF($C$5,8,0),1,1)) -> 392.2 | F138: =IF(A138>$A$8,"",OFFSET(InputPriceData!E$15,CalculationsAndCharts!$A138+$A$11,IF($C$5,8,0),1,1)) -> 384.53 | G138: =IF(A138>$A$8,"",OFFSET(InputPriceData!F$15,CalculationsAndCharts!$A138+$A$11,IF($C$5,8,0),1,1)) -> 390.27 | H138: 107943500 | I138: 106165579.3 | J138: 104325873 | K138: 0.8104859841 | L138: FALSE | M138: FALSE | N138: TRUE | O138: FALSE | AP138: 1689900
A139: 107 | B139: =IF(A139>$A$8,"",OFFSET(InputPriceData!B$15,$A139+$A$11,0,1,1)) -> 2019-09-13 | C139: =IF(A139>$A$8,"",OFFSET(InputPriceData!G$15,CalculationsAndCharts!$A139+$A$11,IF($C$5,8,0),1,1)) -> 898600 | D139: =IF(A139>$A$8,"",OFFSET(InputPriceData!C$15,CalculationsAndCharts!$A139+$A$11,IF($C$5,8,0),1,1)) -> 385.41 | E139: =IF(A139>$A$8,"",OFFSET(InputPriceData!D$15,CalculationsAndCharts!$A139+$A$11,IF($C$5,8,0),1,1)) -> 385.41 | F139: =IF(A139>$A$8,"",OFFSET(InputPriceData!E$15,CalculationsAndCharts!$A139+$A$11,IF($C$5,8,0),1,1)) -> 381.26 | G139: =IF(A139>$A$8,"",OFFSET(InputPriceData!F$15,CalculationsAndCharts!$A139+$A$11,IF($C$5,8,0),1,1)) -> 382.52 | H139: 106253600 | I139: 105572939.1 | J139: 103917049.4 | K139: 0.7991395014 | L139: FALSE | M139: FALSE | N139: TRUE | O139: FALSE | AQ139: 898600
A140: 108 | B140: =IF(A140>$A$8,"",OFFSET(InputPriceData!B$15,$A140+$A$11,0,1,1)) -> 2019-09-12 | C140: =IF(A140>$A$8,"",OFFSET(InputPriceData!G$15,CalculationsAndCharts!$A140+$A$11,IF($C$5,8,0),1,1)) -> 855100 | D140: =IF(A140>$A$8,"",OFFSET(InputPriceData!C$15,CalculationsAndCharts!$A140+$A$11,IF($C$5,8,0),1,1)) -> 382.15 | E140: =IF(A140>$A$8,"",OFFSET(InputPriceData!D$15,CalculationsAndCharts!$A140+$A$11,IF($C$5,8,0),1,1)) -> 386.14 | F140: =IF(A140>$A$8,"",OFFSET(InputPriceData!E$15,CalculationsAndCharts!$A140+$A$11,IF($C$5,8,0),1,1)) -> 380.94 | G140: =IF(A140>$A$8,"",OFFSET(InputPriceData!F$15,CalculationsAndCharts!$A140+$A$11,IF($C$5,8,0),1,1)) -> 384.28 | H140: 107152200 | I140: 105346052.1 | J140: 103549073.9 | K140: 0.8362077898 | L140: FALSE | M140: FALSE | N140: TRUE | O140: FALSE | AP140: 855100
A141: 109 | B141: =IF(A141>$A$8,"",OFFSET(InputPriceData!B$15,$A141+$A$11,0,1,1)) -> 2019-09-11 | C141: =IF(A141>$A$8,"",OFFSET(InputPriceData!G$15,CalculationsAndCharts!$A141+$A$11,IF($C$5,8,0),1,1)) -> 1125300 | D141: =IF(A141>$A$8,"",OFFSET(InputPriceData!C$15,CalculationsAndCharts!$A141+$A$11,IF($C$5,8,0),1,1)) -> 378.88 | E141: =IF(A141>$A$8,"",OFFSET(InputPriceData!D$15,CalculationsAndCharts!$A141+$A$11,IF($C$5,8,0),1,1)) -> 383.45 | F141: =IF(A141>$A$8,"",OFFSET(InputPriceData!E$15,CalculationsAndCharts!$A141+$A$11,IF($C$5,8,0),1,1)) -> 377.75 | G141: =IF(A141>$A$8,"",OFFSET(InputPriceData!F$15,CalculationsAndCharts!$A141+$A$11,IF($C$5,8,0),1,1)) -> 379.23 | H141: 106297100 | I141: 104744002.8 | J141: 103149745.4 | K141: 0.8646117058 | L141: FALSE | M141: FALSE | N141: TRUE | O141: FALSE | AP141: 1125300
A142: 110 | B142: =IF(A142>$A$8,"",OFFSET(InputPriceData!B$15,$A142+$A$11,0,1,1)) -> 2019-09-10 | C142: =IF(A142>$A$8,"",OFFSET(InputPriceData!G$15,CalculationsAndCharts!$A142+$A$11,IF($C$5,8,0),1,1)) -> 1297600 | D142: =IF(A142>$A$8,"",OFFSET(InputPriceData!C$15,CalculationsAndCharts!$A142+$A$11,IF($C$5,8,0),1,1)) -> 374.99 | E142: =IF(A142>$A$8,"",OFFSET(InputPriceData!D$15,CalculationsAndCharts!$A142+$A$11,IF($C$5,8,0),1,1)) -> 379 | F142: =IF(A142>$A$8,"",OFFSET(InputPriceData!E$15,CalculationsAndCharts!$A142+$A$11,IF($C$5,8,0),1,1)) -> 368.2 | G142: =IF(A142>$A$8,"",OFFSET(InputPriceData!F$15,CalculationsAndCharts!$A142+$A$11,IF($C$5,8,0),1,1)) -> 379 | H142: 105171800 | I142: 104226303.7 | J142: 102795466 | K142: 0.9082539971 | L142: FALSE | M142: FALSE | N142: TRUE | O142: FALSE | AP142: 1297600
A143: 111 | B143: =IF(A143>$A$8,"",OFFSET(InputPriceData!B$15,$A143+$A$11,0,1,1)) -> 2019-09-09 | C143: =IF(A143>$A$8,"",OFFSET(InputPriceData!G$15,CalculationsAndCharts!$A143+$A$11,IF($C$5,8,0),1,1)) -> 1146900 | D143: =IF(A143>$A$8,"",OFFSET(InputPriceData!C$15,CalculationsAndCharts!$A143+$A$11,IF($C$5,8,0),1,1)) -> 385.59 | E143: =IF(A143>$A$8,"",OFFSET(InputPriceData!D$15,CalculationsAndCharts!$A143+$A$11,IF($C$5,8,0),1,1)) -> 385.93 | F143: =IF(A143>$A$8,"",OFFSET(InputPriceData!E$15,CalculationsAndCharts!$A143+$A$11,IF($C$5,8,0),1,1)) -> 377.73 | G143: =IF(A143>$A$8,"",OFFSET(InputPriceData!F$15,CalculationsAndCharts!$A143+$A$11,IF($C$5,8,0),1,1)) -> 377.9 | H143: 103874200 | I143: 103911138.3 | J143: 102477502.1 | K143: 0.9249542958 | L143: FALSE | M143: FALSE | N143: TRUE | O143: FALSE | AQ143: 1146900
A144: 112 | B144: =IF(A144>$A$8,"",OFFSET(InputPriceData!B$15,$A144+$A$11,0,1,1)) -> 2019-09-06 | C144: =IF(A144>$A$8,"",OFFSET(InputPriceData!G$15,CalculationsAndCharts!$A144+$A$11,IF($C$5,8,0),1,1)) -> 701100 | D144: =IF(A144>$A$8,"",OFFSET(InputPriceData!C$15,CalculationsAndCharts!$A144+$A$11,IF($C$5,8,0),1,1)) -> 384.92 | E144: =IF(A144>$A$8,"",OFFSET(InputPriceData!D$15,CalculationsAndCharts!$A144+$A$11,IF($C$5,8,0),1,1)) -> 386.09 | F144: =IF(A144>$A$8,"",OFFSET(InputPriceData!E$15,CalculationsAndCharts!$A144+$A$11,IF($C$5,8,0),1,1)) -> 383.46 | G144: =IF(A144>$A$8,"",OFFSET(InputPriceData!F$15,CalculationsAndCharts!$A144+$A$11,IF($C$5,8,0),1,1)) -> 384.21 | H144: 105021100 | I144: 103923451.1 | J144: 102158916.2 | K144: 0.9391178484 | L144: FALSE | M144: FALSE | N144: TRUE | O144: FALSE | AQ144: 701100
A145: 113 | B145: =IF(A145>$A$8,"",OFFSET(InputPriceData!B$15,$A145+$A$11,0,1,1)) -> 2019-09-05 | C145: =IF(A145>$A$8,"",OFFSET(InputPriceData!G$15,CalculationsAndCharts!$A145+$A$11,IF($C$5,8,0),1,1)) -> 941500 | D145: =IF(A145>$A$8,"",OFFSET(InputPriceData!C$15,CalculationsAndCharts!$A145+$A$11,IF($C$5,8,0),1,1)) -> 388.1 | E145: =IF(A145>$A$8,"",OFFSET(InputPriceData!D$15,CalculationsAndCharts!$A145+$A$11,IF($C$5,8,0),1,1)) -> 391.03 | F145: =IF(A145>$A$8,"",OFFSET(InputPriceData!E$15,CalculationsAndCharts!$A145+$A$11,IF($C$5,8,0),1,1)) -> 382.64 | G145: =IF(A145>$A$8,"",OFFSET(InputPriceData!F$15,CalculationsAndCharts!$A145+$A$11,IF($C$5,8,0),1,1)) -> 382.81 | H145: 104320000 | I145: 103557568.1 | J145: 101766797.4 | K145: 0.9337955146 | L145: FALSE | M145: FALSE | N145: TRUE | O145: FALSE | AQ145: 941500
A146: 114 | B146: =IF(A146>$A$8,"",OFFSET(InputPriceData!B$15,$A146+$A$11,0,1,1)) -> 2019-09-04 | C146: =IF(A146>$A$8,"",OFFSET(InputPriceData!G$15,CalculationsAndCharts!$A146+$A$11,IF($C$5,8,0),1,1)) -> 792200 | D146: =IF(A146>$A$8,"",OFFSET(InputPriceData!C$15,CalculationsAndCharts!$A146+$A$11,IF($C$5,8,0),1,1)) -> 384.95 | E146: =IF(A146>$A$8,"",OFFSET(InputPriceData!D$15,CalculationsAndCharts!$A146+$A$11,IF($C$5,8,0),1,1)) -> 387.33 | F146: =IF(A146>$A$8,"",OFFSET(InputPriceData!E$15,CalculationsAndCharts!$A146+$A$11,IF($C$5,8,0),1,1)) -> 383.55 | G146: =IF(A146>$A$8,"",OFFSET(InputPriceData!F$15,CalculationsAndCharts!$A146+$A$11,IF($C$5,8,0),1,1)) -> 386.71 | H146: 105261500 | I146: 103303424.1 | J146: 101368848.3 | K146: 0.9213909955 | L146: FALSE | M146: FALSE | N146: TRUE | O146: FALSE | AP146: =IF(G146>=D146,C146,NA()) -> 792200 | AQ146: =IF(G146<D146,C146,NA()) -> 
A147: 115 | B147: =IF(A147>$A$8,"",OFFSET(InputPriceData!B$15,$A147+$A$11,0,1,1)) -> 2019-09-03 | C147: =IF(A147>$A$8,"",OFFSET(InputPriceData!G$15,CalculationsAndCharts!$A147+$A$11,IF($C$5,8,0),1,1)) -> 891700 | D147: =IF(A147>$A$8,"",OFFSET(InputPriceData!C$15,CalculationsAndCharts!$A147+$A$11,IF($C$5,8,0),1,1)) -> 378.67 | E147: =IF(A147>$A$8,"",OFFSET(InputPriceData!D$15,CalculationsAndCharts!$A147+$A$11,IF($C$5,8,0),1,1)) -> 382.84 | F147: =IF(A147>$A$8,"",OFFSET(InputPriceData!E$15,CalculationsAndCharts!$A147+$A$11,IF($C$5,8,0),1,1)) -> 377.48 | G147: =IF(A147>$A$8,"",OFFSET(InputPriceData!F$15,CalculationsAndCharts!$A147+$A$11,IF($C$5,8,0),1,1)) -> 382.35 | H147: 104469300 | I147: 102650732.2 | J147: 100938942.6 | K147: 0.9095440038 | L147: FALSE | M147: FALSE | N147: TRUE | O147: FALSE | AP147: 891700
A148: 116 | B148: =IF(A148>$A$8,"",OFFSET(InputPriceData!B$15,$A148+$A$11,0,1,1)) -> 2019-08-30 | C148: =IF(A148>$A$8,"",OFFSET(InputPriceData!G$15,CalculationsAndCharts!$A148+$A$11,IF($C$5,8,0),1,1)) -> 760700 | D148: =IF(A148>$A$8,"",OFFSET(InputPriceData!C$15,CalculationsAndCharts!$A148+$A$11,IF($C$5,8,0),1,1)) -> 380.92 | E148: =IF(A148>$A$8,"",OFFSET(InputPriceData!D$15,CalculationsAndCharts!$A148+$A$11,IF($C$5,8,0),1,1)) -> 382.4 | F148: =IF(A148>$A$8,"",OFFSET(InputPriceData!E$15,CalculationsAndCharts!$A148+$A$11,IF($C$5,8,0),1,1)) -> 379.19 | G148: =IF(A148>$A$8,"",OFFSET(InputPriceData!F$15,CalculationsAndCharts!$A148+$A$11,IF($C$5,8,0),1,1)) -> 381.77 | H148: 103577600 | I148: 102044542.9 | J148: 100558544.9 | K148: 0.9050086155 | L148: FALSE | M148: FALSE | N148: TRUE | O148: FALSE | AP148: 760700
A149: 117 | B149: =IF(A149>$A$8,"",OFFSET(InputPriceData!B$15,$A149+$A$11,0,1,1)) -> 2019-08-29 | C149: =IF(A149>$A$8,"",OFFSET(InputPriceData!G$15,CalculationsAndCharts!$A149+$A$11,IF($C$5,8,0),1,1)) -> 1063500 | D149: =IF(A149>$A$8,"",OFFSET(InputPriceData!C$15,CalculationsAndCharts!$A149+$A$11,IF($C$5,8,0),1,1)) -> 380 | E149: =IF(A149>$A$8,"",OFFSET(InputPriceData!D$15,CalculationsAndCharts!$A149+$A$11,IF($C$5,8,0),1,1)) -> 381.24 | F149: =IF(A149>$A$8,"",OFFSET(InputPriceData!E$15,CalculationsAndCharts!$A149+$A$11,IF($C$5,8,0),1,1)) -> 376.32 | G149: =IF(A149>$A$8,"",OFFSET(InputPriceData!F$15,CalculationsAndCharts!$A149+$A$11,IF($C$5,8,0),1,1)) -> 379.9 | H149: 102816900 | I149: 101533523.8 | J149: 100228323.2 | K149: 0.8918497909 | L149: FALSE | M149: FALSE | N149: TRUE | O149: FALSE | AQ149: 1063500
A150: 118 | B150: =IF(A150>$A$8,"",OFFSET(InputPriceData!B$15,$A150+$A$11,0,1,1)) -> 2019-08-28 | C150: =IF(A150>$A$8,"",OFFSET(InputPriceData!G$15,CalculationsAndCharts!$A150+$A$11,IF($C$5,8,0),1,1)) -> 820500 | D150: =IF(A150>$A$8,"",OFFSET(InputPriceData!C$15,CalculationsAndCharts!$A150+$A$11,IF($C$5,8,0),1,1)) -> 374.58 | E150: =IF(A150>$A$8,"",OFFSET(InputPriceData!D$15,CalculationsAndCharts!$A150+$A$11,IF($C$5,8,0),1,1)) -> 378.49 | F150: =IF(A150>$A$8,"",OFFSET(InputPriceData!E$15,CalculationsAndCharts!$A150+$A$11,IF($C$5,8,0),1,1)) -> 372.33 | G150: =IF(A150>$A$8,"",OFFSET(InputPriceData!F$15,CalculationsAndCharts!$A150+$A$11,IF($C$5,8,0),1,1)) -> 376.48 | H150: 101753400 | I150: 101105731.8 | J150: 99938278.58 | K150: 0.8711488638 | L150: FALSE | M150: FALSE | N150: TRUE | O150: FALSE | AP150: 820500
A151: 119 | B151: =IF(A151>$A$8,"",OFFSET(InputPriceData!B$15,$A151+$A$11,0,1,1)) -> 2019-08-27 | C151: =IF(A151>$A$8,"",OFFSET(InputPriceData!G$15,CalculationsAndCharts!$A151+$A$11,IF($C$5,8,0),1,1)) -> 760300 | D151: =IF(A151>$A$8,"",OFFSET(InputPriceData!C$15,CalculationsAndCharts!$A151+$A$11,IF($C$5,8,0),1,1)) -> 377.25 | E151: =IF(A151>$A$8,"",OFFSET(InputPriceData!D$15,CalculationsAndCharts!$A151+$A$11,IF($C$5,8,0),1,1)) -> 377.71 | F151: =IF(A151>$A$8,"",OFFSET(InputPriceData!E$15,CalculationsAndCharts!$A151+$A$11,IF($C$5,8,0),1,1)) -> 372.81 | G151: =IF(A151>$A$8,"",OFFSET(InputPriceData!F$15,CalculationsAndCharts!$A151+$A$11,IF($C$5,8,0),1,1)) -> 375.52 | H151: 100932900 | I151: 100889842.4 | J151: 99678844.54 | K151: 0.8795620161 | L151: FALSE | M151: FALSE | N151: TRUE | O151: FALSE | AQ151: 760300
A152: 120 | B152: =IF(A152>$A$8,"",OFFSET(InputPriceData!B$15,$A152+$A$11,0,1,1)) -> 2019-08-26 | C152: =IF(A152>$A$8,"",OFFSET(InputPriceData!G$15,CalculationsAndCharts!$A152+$A$11,IF($C$5,8,0),1,1)) -> 688100 | D152: =IF(A152>$A$8,"",OFFSET(InputPriceData!C$15,CalculationsAndCharts!$A152+$A$11,IF($C$5,8,0),1,1)) -> 375.53 | E152: =IF(A152>$A$8,"",OFFSET(InputPriceData!D$15,CalculationsAndCharts!$A152+$A$11,IF($C$5,8,0),1,1)) -> 376.08 | F152: =IF(A152>$A$8,"",OFFSET(InputPriceData!E$15,CalculationsAndCharts!$A152+$A$11,IF($C$5,8,0),1,1)) -> 371.08 | G152: =IF(A152>$A$8,"",OFFSET(InputPriceData!F$15,CalculationsAndCharts!$A152+$A$11,IF($C$5,8,0),1,1)) -> 375.84 | H152: 101693200 | I152: 100875489.8 | J152: 99409733.9 | K152: 0.8762537653 | L152: FALSE | M152: FALSE | N152: TRUE | O152: FALSE | AP152: 688100
A153: 121 | B153: =IF(A153>$A$8,"",OFFSET(InputPriceData!B$15,$A153+$A$11,0,1,1)) -> 2019-08-23 | C153: =IF(A153>$A$8,"",OFFSET(InputPriceData!G$15,CalculationsAndCharts!$A153+$A$11,IF($C$5,8,0),1,1)) -> 1392700 | D153: =IF(A153>$A$8,"",OFFSET(InputPriceData!C$15,CalculationsAndCharts!$A153+$A$11,IF($C$5,8,0),1,1)) -> 380.74 | E153: =IF(A153>$A$8,"",OFFSET(InputPriceData!D$15,CalculationsAndCharts!$A153+$A$11,IF($C$5,8,0),1,1)) -> 382.37 | F153: =IF(A153>$A$8,"",OFFSET(InputPriceData!E$15,CalculationsAndCharts!$A153+$A$11,IF($C$5,8,0),1,1)) -> 370.2 | G153: =IF(A153>$A$8,"",OFFSET(InputPriceData!F$15,CalculationsAndCharts!$A153+$A$11,IF($C$5,8,0),1,1)) -> 372.45 | H153: 101005100 | I153: 100602919.8 | J153: 99084010.36 | K153: 0.8761066912 | L153: FALSE | M153: FALSE | N153: TRUE | O153: FALSE | AQ153: 1392700
A154: 122 | B154: =IF(A154>$A$8,"",OFFSET(InputPriceData!B$15,$A154+$A$11,0,1,1)) -> 2019-08-22 | C154: =IF(A154>$A$8,"",OFFSET(InputPriceData!G$15,CalculationsAndCharts!$A154+$A$11,IF($C$5,8,0),1,1)) -> 742600 | D154: =IF(A154>$A$8,"",OFFSET(InputPriceData!C$15,CalculationsAndCharts!$A154+$A$11,IF($C$5,8,0),1,1)) -> 378.49 | E154: =IF(A154>$A$8,"",OFFSET(InputPriceData!D$15,CalculationsAndCharts!$A154+$A$11,IF($C$5,8,0),1,1)) -> 382.1 | F154: =IF(A154>$A$8,"",OFFSET(InputPriceData!E$15,CalculationsAndCharts!$A154+$A$11,IF($C$5,8,0),1,1)) -> 376.24 | G154: =IF(A154>$A$8,"",OFFSET(InputPriceData!F$15,CalculationsAndCharts!$A154+$A$11,IF($C$5,8,0),1,1)) -> 381.34 | H154: 102397800 | I154: 100468859.7 | J154: 98746474.93 | K154: 0.8889544678 | L154: FALSE | M154: FALSE | N154: TRUE | O154: FALSE | AP154: 742600
A155: 123 | B155: =IF(A155>$A$8,"",OFFSET(InputPriceData!B$15,$A155+$A$11,0,1,1)) -> 2019-08-21 | C155: =IF(A155>$A$8,"",OFFSET(InputPriceData!G$15,CalculationsAndCharts!$A155+$A$11,IF($C$5,8,0),1,1)) -> 791500 | D155: =IF(A155>$A$8,"",OFFSET(InputPriceData!C$15,CalculationsAndCharts!$A155+$A$11,IF($C$5,8,0),1,1)) -> 379.48 | E155: =IF(A155>$A$8,"",OFFSET(InputPriceData!D$15,CalculationsAndCharts!$A155+$A$11,IF($C$5,8,0),1,1)) -> 379.75 | F155: =IF(A155>$A$8,"",OFFSET(InputPriceData!E$15,CalculationsAndCharts!$A155+$A$11,IF($C$5,8,0),1,1)) -> 374.82 | G155: =IF(A155>$A$8,"",OFFSET(InputPriceData!F$15,CalculationsAndCharts!$A155+$A$11,IF($C$5,8,0),1,1)) -> 378.49 | H155: 101655200 | I155: 99825879.63 | J155: 98363722.76 | K155: 0.8671437996 | L155: FALSE | M155: FALSE | N155: TRUE | O155: FALSE | AQ155: 791500
A156: 124 | B156: =IF(A156>$A$8,"",OFFSET(InputPriceData!B$15,$A156+$A$11,0,1,1)) -> 2019-08-20 | C156: =IF(A156>$A$8,"",OFFSET(InputPriceData!G$15,CalculationsAndCharts!$A156+$A$11,IF($C$5,8,0),1,1)) -> 920600 | D156: =IF(A156>$A$8,"",OFFSET(InputPriceData!C$15,CalculationsAndCharts!$A156+$A$11,IF($C$5,8,0),1,1)) -> 376.02 | E156: =IF(A156>$A$8,"",OFFSET(InputPriceData!D$15,CalculationsAndCharts!$A156+$A$11,IF($C$5,8,0),1,1)) -> 379.58 | F156: =IF(A156>$A$8,"",OFFSET(InputPriceData!E$15,CalculationsAndCharts!$A156+$A$11,IF($C$5,8,0),1,1)) -> 375.03 | G156: =IF(A156>$A$8,"",OFFSET(InputPriceData!F$15,CalculationsAndCharts!$A156+$A$11,IF($C$5,8,0),1,1)) -> 377.25 | H156: 100863700 | I156: 99216106.17 | J156: 98038799.01 | K156: 0.8540573238 | L156: FALSE | M156: FALSE | N156: TRUE | O156: FALSE | AP156: 920600
A157: 125 | B157: =IF(A157>$A$8,"",OFFSET(InputPriceData!B$15,$A157+$A$11,0,1,1)) -> 2019-08-19 | C157: =IF(A157>$A$8,"",OFFSET(InputPriceData!G$15,CalculationsAndCharts!$A157+$A$11,IF($C$5,8,0),1,1)) -> 799900 | D157: =IF(A157>$A$8,"",OFFSET(InputPriceData!C$15,CalculationsAndCharts!$A157+$A$11,IF($C$5,8,0),1,1)) -> 375.28 | E157: =IF(A157>$A$8,"",OFFSET(InputPriceData!D$15,CalculationsAndCharts!$A157+$A$11,IF($C$5,8,0),1,1)) -> 377.19 | F157: =IF(A157>$A$8,"",OFFSET(InputPriceData!E$15,CalculationsAndCharts!$A157+$A$11,IF($C$5,8,0),1,1)) -> 374.06 | G157: =IF(A157>$A$8,"",OFFSET(InputPriceData!F$15,CalculationsAndCharts!$A157+$A$11,IF($C$5,8,0),1,1)) -> 375.99 | H157: 99943100 | I157: 98666908.23 | J157: 97777175.19 | K157: 0.8637641535 | L157: FALSE | M157: FALSE | N157: TRUE | O157: FALSE | AP157: 799900
A158: 126 | B158: =IF(A158>$A$8,"",OFFSET(InputPriceData!B$15,$A158+$A$11,0,1,1)) -> 2019-08-16 | C158: =IF(A158>$A$8,"",OFFSET(InputPriceData!G$15,CalculationsAndCharts!$A158+$A$11,IF($C$5,8,0),1,1)) -> 821400 | D158: =IF(A158>$A$8,"",OFFSET(InputPriceData!C$15,CalculationsAndCharts!$A158+$A$11,IF($C$5,8,0),1,1)) -> 371.67 | E158: =IF(A158>$A$8,"",OFFSET(InputPriceData!D$15,CalculationsAndCharts!$A158+$A$11,IF($C$5,8,0),1,1)) -> 373.88 | F158: =IF(A158>$A$8,"",OFFSET(InputPriceData!E$15,CalculationsAndCharts!$A158+$A$11,IF($C$5,8,0),1,1)) -> 368.97 | G158: =IF(A158>$A$8,"",OFFSET(InputPriceData!F$15,CalculationsAndCharts!$A158+$A$11,IF($C$5,8,0),1,1)) -> 372.56 | H158: 99143200 | I158: 98241510.97 | J158: 97579456.74 | K158: 0.8161235634 | L158: FALSE | M158: FALSE | N158: TRUE | O158: FALSE | AP158: 821400
A159: 127 | B159: =IF(A159>$A$8,"",OFFSET(InputPriceData!B$15,$A159+$A$11,0,1,1)) -> 2019-08-15 | C159: =IF(A159>$A$8,"",OFFSET(InputPriceData!G$15,CalculationsAndCharts!$A159+$A$11,IF($C$5,8,0),1,1)) -> 1063900 | D159: =IF(A159>$A$8,"",OFFSET(InputPriceData!C$15,CalculationsAndCharts!$A159+$A$11,IF($C$5,8,0),1,1)) -> 364.8 | E159: =IF(A159>$A$8,"",OFFSET(InputPriceData!D$15,CalculationsAndCharts!$A159+$A$11,IF($C$5,8,0),1,1)) -> 370.16 | F159: =IF(A159>$A$8,"",OFFSET(InputPriceData!E$15,CalculationsAndCharts!$A159+$A$11,IF($C$5,8,0),1,1)) -> 362.85 | G159: =IF(A159>$A$8,"",OFFSET(InputPriceData!F$15,CalculationsAndCharts!$A159+$A$11,IF($C$5,8,0),1,1)) -> 369.06 | H159: 98321800 | I159: 97940947.97 | J159: 97432333.58 | K159: 0.7987240201 | L159: FALSE | M159: FALSE | N159: TRUE | O159: FALSE | AP159: 1063900
A160: 128 | B160: =IF(A160>$A$8,"",OFFSET(InputPriceData!B$15,$A160+$A$11,0,1,1)) -> 2019-08-14 | C160: =IF(A160>$A$8,"",OFFSET(InputPriceData!G$15,CalculationsAndCharts!$A160+$A$11,IF($C$5,8,0),1,1)) -> 1469100 | D160: =IF(A160>$A$8,"",OFFSET(InputPriceData!C$15,CalculationsAndCharts!$A160+$A$11,IF($C$5,8,0),1,1)) -> 371.57 | E160: =IF(A160>$A$8,"",OFFSET(InputPriceData!D$15,CalculationsAndCharts!$A160+$A$11,IF($C$5,8,0),1,1)) -> 371.57 | F160: =IF(A160>$A$8,"",OFFSET(InputPriceData!E$15,CalculationsAndCharts!$A160+$A$11,IF($C$5,8,0),1,1)) -> 363.03 | G160: =IF(A160>$A$8,"",OFFSET(InputPriceData!F$15,CalculationsAndCharts!$A160+$A$11,IF($C$5,8,0),1,1)) -> 364.6 | H160: 97257900 | I160: 97813997.29 | J160: 97319308.16 | K160: 0.7946842519 | L160: FALSE | M160: FALSE | N160: TRUE | O160: FALSE | AQ160: 1469100
A161: 129 | B161: =IF(A161>$A$8,"",OFFSET(InputPriceData!B$15,$A161+$A$11,0,1,1)) -> 2019-08-13 | C161: =IF(A161>$A$8,"",OFFSET(InputPriceData!G$15,CalculationsAndCharts!$A161+$A$11,IF($C$5,8,0),1,1)) -> 1054900 | D161: =IF(A161>$A$8,"",OFFSET(InputPriceData!C$15,CalculationsAndCharts!$A161+$A$11,IF($C$5,8,0),1,1)) -> 373.54 | E161: =IF(A161>$A$8,"",OFFSET(InputPriceData!D$15,CalculationsAndCharts!$A161+$A$11,IF($C$5,8,0),1,1)) -> 377.02 | F161: =IF(A161>$A$8,"",OFFSET(InputPriceData!E$15,CalculationsAndCharts!$A161+$A$11,IF($C$5,8,0),1,1)) -> 370.86 | G161: =IF(A161>$A$8,"",OFFSET(InputPriceData!F$15,CalculationsAndCharts!$A161+$A$11,IF($C$5,8,0),1,1)) -> 372.78 | H161: 98727000 | I161: 97999363.05 | J161: 97209377.24 | K161: 0.8037869756 | L161: FALSE | M161: FALSE | N161: TRUE | O161: FALSE | AQ161: 1054900
A162: 130 | B162: =IF(A162>$A$8,"",OFFSET(InputPriceData!B$15,$A162+$A$11,0,1,1)) -> 2019-08-12 | C162: =IF(A162>$A$8,"",OFFSET(InputPriceData!G$15,CalculationsAndCharts!$A162+$A$11,IF($C$5,8,0),1,1)) -> 646800 | D162: =IF(A162>$A$8,"",OFFSET(InputPriceData!C$15,CalculationsAndCharts!$A162+$A$11,IF($C$5,8,0),1,1)) -> 370.58 | E162: =IF(A162>$A$8,"",OFFSET(InputPriceData!D$15,CalculationsAndCharts!$A162+$A$11,IF($C$5,8,0),1,1)) -> 373.6 | F162: =IF(A162>$A$8,"",OFFSET(InputPriceData!E$15,CalculationsAndCharts!$A162+$A$11,IF($C$5,8,0),1,1)) -> 369.2 | G162: =IF(A162>$A$8,"",OFFSET(InputPriceData!F$15,CalculationsAndCharts!$A162+$A$11,IF($C$5,8,0),1,1)) -> 372.56 | H162: =IF(G162>G163,C162,IF(G162<G163,-C162,0))+H163 -> 97672100 | I162: =H162*$C$16+I163*$D$16 -> 97756817.4 | J162: =I162*$C$17+J163*$D$17 -> 97033824.84 | K162: =CORREL(OFFSET(H162,0,0,$A$18,1),OFFSET(G162,0,0,$A$18,1)) -> 0.7830094879 | L162: FALSE | M162: FALSE | N162: =I162>J162 -> TRUE | O162: =I162<J162 -> FALSE | Z162: =IF(AND($R$9>1,OR(AND($R$4=3,$N162),AND($R$4=2,$L162))),IF($AX$34> 0,$AX$34,NA()),NA()) ->  | AA162: =IF(AND($R$9>1,OR(AND($R$4=3,$N162),AND($R$4=2,$L162))),IF($AX$33<0,$AX$33,NA()),NA()) ->  | AB162: =IF(AND($R$9>1,OR(AND($R$4=2,$M162),AND($R$4=3,$O162))),IF($AX$34>0,$AX$34,NA()),NA()) ->  | AC162: =IF(AND($R$9>1,OR(AND($R$4=2,$M162),AND($R$4=3,$O162))),IF($AX$33<0,$AX$33,NA()),NA()) ->  | AD162: =IF(AND($R$9>1,OR(AND($R$4=2,$L162),AND($R$4=3,$N162))),$AZ$34,NA()) ->  | AE162: =IF(AND($R$9>1,OR(AND($R$4=2,$M162),AND($R$4=3,$O162))),$AZ$34,NA()) ->  | AP162: 646800
A163: 131 | B163: =IF(A163>$A$8,"",OFFSET(InputPriceData!B$15,$A163+$A$11,0,1,1)) -> 2019-08-09 | C163: =IF(A163>$A$8,"",OFFSET(InputPriceData!G$15,CalculationsAndCharts!$A163+$A$11,IF($C$5,8,0),1,1)) -> 872000 | D163: =IF(A163>$A$8,"",OFFSET(InputPriceData!C$15,CalculationsAndCharts!$A163+$A$11,IF($C$5,8,0),1,1)) -> 371.67 | E163: =IF(A163>$A$8,"",OFFSET(InputPriceData!D$15,CalculationsAndCharts!$A163+$A$11,IF($C$5,8,0),1,1)) -> 374.89 | F163: =IF(A163>$A$8,"",OFFSET(InputPriceData!E$15,CalculationsAndCharts!$A163+$A$11,IF($C$5,8,0),1,1)) -> 368.93 | G163: =IF(A163>$A$8,"",OFFSET(InputPriceData!F$15,CalculationsAndCharts!$A163+$A$11,IF($C$5,8,0),1,1)) -> 372.57 | H163: 98318900 | I163: 97785056.53 | J163: 96873159.83 | K163: 0.7861557584 | L163: FALSE | M163: FALSE | N163: TRUE | O163: FALSE | AP163: 872000
A164: 132 | B164: =IF(A164>$A$8,"",OFFSET(InputPriceData!B$15,$A164+$A$11,0,1,1)) -> 2019-08-08 | C164: =IF(A164>$A$8,"",OFFSET(InputPriceData!G$15,CalculationsAndCharts!$A164+$A$11,IF($C$5,8,0),1,1)) -> 1185800 | D164: =IF(A164>$A$8,"",OFFSET(InputPriceData!C$15,CalculationsAndCharts!$A164+$A$11,IF($C$5,8,0),1,1)) -> 365.65 | E164: =IF(A164>$A$8,"",OFFSET(InputPriceData!D$15,CalculationsAndCharts!$A164+$A$11,IF($C$5,8,0),1,1)) -> 373.94 | F164: =IF(A164>$A$8,"",OFFSET(InputPriceData!E$15,CalculationsAndCharts!$A164+$A$11,IF($C$5,8,0),1,1)) -> 365.65 | G164: =IF(A164>$A$8,"",OFFSET(InputPriceData!F$15,CalculationsAndCharts!$A164+$A$11,IF($C$5,8,0),1,1)) -> 372.73 | H164: 99190900 | I164: 97607108.71 | J164: 96670516.11 | K164: 0.7801290717 | L164: FALSE | M164: FALSE | N164: TRUE | O164: FALSE | AP164: 1185800
A165: 133 | B165: =IF(A165>$A$8,"",OFFSET(InputPriceData!B$15,$A165+$A$11,0,1,1)) -> 2019-08-07 | C165: =IF(A165>$A$8,"",OFFSET(InputPriceData!G$15,CalculationsAndCharts!$A165+$A$11,IF($C$5,8,0),1,1)) -> 1243000 | D165: =IF(A165>$A$8,"",OFFSET(InputPriceData!C$15,CalculationsAndCharts!$A165+$A$11,IF($C$5,8,0),1,1)) -> 359.73 | E165: =IF(A165>$A$8,"",OFFSET(InputPriceData!D$15,CalculationsAndCharts!$A165+$A$11,IF($C$5,8,0),1,1)) -> 366.56 | F165: =IF(A165>$A$8,"",OFFSET(InputPriceData!E$15,CalculationsAndCharts!$A165+$A$11,IF($C$5,8,0),1,1)) -> 357.76 | G165: =IF(A165>$A$8,"",OFFSET(InputPriceData!F$15,CalculationsAndCharts!$A165+$A$11,IF($C$5,8,0),1,1)) -> 364.95 | H165: 98005100 | I165: 97079178.28 | J165: 96462384.43 | K165: 0.7315234888 | L165: FALSE | M165: FALSE | N165: TRUE | O165: FALSE | AP165: 1243000
A166: 134 | B166: =IF(A166>$A$8,"",OFFSET(InputPriceData!B$15,$A166+$A$11,0,1,1)) -> 2019-08-06 | C166: =IF(A166>$A$8,"",OFFSET(InputPriceData!G$15,CalculationsAndCharts!$A166+$A$11,IF($C$5,8,0),1,1)) -> 1124900 | D166: =IF(A166>$A$8,"",OFFSET(InputPriceData!C$15,CalculationsAndCharts!$A166+$A$11,IF($C$5,8,0),1,1)) -> 357.03 | E166: =IF(A166>$A$8,"",OFFSET(InputPriceData!D$15,CalculationsAndCharts!$A166+$A$11,IF($C$5,8,0),1,1)) -> 362.57 | F166: =IF(A166>$A$8,"",OFFSET(InputPriceData!E$15,CalculationsAndCharts!$A166+$A$11,IF($C$5,8,0),1,1)) -> 354.61 | G166: =IF(A166>$A$8,"",OFFSET(InputPriceData!F$15,CalculationsAndCharts!$A166+$A$11,IF($C$5,8,0),1,1)) -> 362.46 | H166: 96762100 | I166: 96770537.71 | J166: 96325319.12 | K166: 0.6532805423 | L166: FALSE | M166: FALSE | N166: TRUE | O166: FALSE | AP166: 1124900
A167: 135 | B167: =IF(A167>$A$8,"",OFFSET(InputPriceData!B$15,$A167+$A$11,0,1,1)) -> 2019-08-05 | C167: =IF(A167>$A$8,"",OFFSET(InputPriceData!G$15,CalculationsAndCharts!$A167+$A$11,IF($C$5,8,0),1,1)) -> 1464600 | D167: =IF(A167>$A$8,"",OFFSET(InputPriceData!C$15,CalculationsAndCharts!$A167+$A$11,IF($C$5,8,0),1,1)) -> 352.35 | E167: =IF(A167>$A$8,"",OFFSET(InputPriceData!D$15,CalculationsAndCharts!$A167+$A$11,IF($C$5,8,0),1,1)) -> 356.85 | F167: =IF(A167>$A$8,"",OFFSET(InputPriceData!E$15,CalculationsAndCharts!$A167+$A$11,IF($C$5,8,0),1,1)) -> 349.8 | G167: =IF(A167>$A$8,"",OFFSET(InputPriceData!F$15,CalculationsAndCharts!$A167+$A$11,IF($C$5,8,0),1,1)) -> 354.21 | H167: 95637200 | I167: 96773350.28 | J167: 96226381.66 | K167: 0.5991891475 | L167: FALSE | M167: FALSE | N167: TRUE | O167: FALSE | AP167: 1464600
A168: 136 | B168: =IF(A168>$A$8,"",OFFSET(InputPriceData!B$15,$A168+$A$11,0,1,1)) -> 2019-08-02 | C168: =IF(A168>$A$8,"",OFFSET(InputPriceData!G$15,CalculationsAndCharts!$A168+$A$11,IF($C$5,8,0),1,1)) -> 836300 | D168: =IF(A168>$A$8,"",OFFSET(InputPriceData!C$15,CalculationsAndCharts!$A168+$A$11,IF($C$5,8,0),1,1)) -> 359.84 | E168: =IF(A168>$A$8,"",OFFSET(InputPriceData!D$15,CalculationsAndCharts!$A168+$A$11,IF($C$5,8,0),1,1)) -> 360.02 | F168: =IF(A168>$A$8,"",OFFSET(InputPriceData!E$15,CalculationsAndCharts!$A168+$A$11,IF($C$5,8,0),1,1)) -> 355.26 | G168: =IF(A168>$A$8,"",OFFSET(InputPriceData!F$15,CalculationsAndCharts!$A168+$A$11,IF($C$5,8,0),1,1)) -> 357.65 | H168: 97101800 | I168: 97152067.03 | J168: 96104833.08 | K168: 0.5737565691 | L168: FALSE | M168: FALSE | N168: TRUE | O168: FALSE | AQ168: 836300
A169: 137 | B169: =IF(A169>$A$8,"",OFFSET(InputPriceData!B$15,$A169+$A$11,0,1,1)) -> 2019-08-01 | C169: =IF(A169>$A$8,"",OFFSET(InputPriceData!G$15,CalculationsAndCharts!$A169+$A$11,IF($C$5,8,0),1,1)) -> 1220300 | D169: =IF(A169>$A$8,"",OFFSET(InputPriceData!C$15,CalculationsAndCharts!$A169+$A$11,IF($C$5,8,0),1,1)) -> 357.46 | E169: =IF(A169>$A$8,"",OFFSET(InputPriceData!D$15,CalculationsAndCharts!$A169+$A$11,IF($C$5,8,0),1,1)) -> 363.01 | F169: =IF(A169>$A$8,"",OFFSET(InputPriceData!E$15,CalculationsAndCharts!$A169+$A$11,IF($C$5,8,0),1,1)) -> 354.96 | G169: =IF(A169>$A$8,"",OFFSET(InputPriceData!F$15,CalculationsAndCharts!$A169+$A$11,IF($C$5,8,0),1,1)) -> 358.81 | H169: 97938100 | I169: 97168822.71 | J169: 95872114.42 | K169: 0.5782572522 | L169: FALSE | M169: FALSE | N169: TRUE | O169: FALSE | AP169: 1220300
A170: 138 | B170: =IF(A170>$A$8,"",OFFSET(InputPriceData!B$15,$A170+$A$11,0,1,1)) -> 2019-07-31 | C170: =IF(A170>$A$8,"",OFFSET(InputPriceData!G$15,CalculationsAndCharts!$A170+$A$11,IF($C$5,8,0),1,1)) -> 1037100 | D170: =IF(A170>$A$8,"",OFFSET(InputPriceData!C$15,CalculationsAndCharts!$A170+$A$11,IF($C$5,8,0),1,1)) -> 361.6 | E170: =IF(A170>$A$8,"",OFFSET(InputPriceData!D$15,CalculationsAndCharts!$A170+$A$11,IF($C$5,8,0),1,1)) -> 364.37 | F170: =IF(A170>$A$8,"",OFFSET(InputPriceData!E$15,CalculationsAndCharts!$A170+$A$11,IF($C$5,8,0),1,1)) -> 355.06 | G170: =IF(A170>$A$8,"",OFFSET(InputPriceData!F$15,CalculationsAndCharts!$A170+$A$11,IF($C$5,8,0),1,1)) -> 357.91 | H170: 96717800 | I170: 96912396.95 | J170: 95583957.03 | K170: 0.6185075038 | L170: FALSE | M170: FALSE | N170: TRUE | O170: FALSE | AQ170: 1037100
A171: 139 | B171: =IF(A171>$A$8,"",OFFSET(InputPriceData!B$15,$A171+$A$11,0,1,1)) -> 2019-07-30 | C171: =IF(A171>$A$8,"",OFFSET(InputPriceData!G$15,CalculationsAndCharts!$A171+$A$11,IF($C$5,8,0),1,1)) -> 699400 | D171: =IF(A171>$A$8,"",OFFSET(InputPriceData!C$15,CalculationsAndCharts!$A171+$A$11,IF($C$5,8,0),1,1)) -> 364.29 | E171: =IF(A171>$A$8,"",OFFSET(InputPriceData!D$15,CalculationsAndCharts!$A171+$A$11,IF($C$5,8,0),1,1)) -> 366.31 | F171: =IF(A171>$A$8,"",OFFSET(InputPriceData!E$15,CalculationsAndCharts!$A171+$A$11,IF($C$5,8,0),1,1)) -> 361.03 | G171: =IF(A171>$A$8,"",OFFSET(InputPriceData!F$15,CalculationsAndCharts!$A171+$A$11,IF($C$5,8,0),1,1)) -> 361.68 | H171: 97754900 | I171: 96977262.6 | J171: 95288748.15 | K171: 0.6535020757 | L171: FALSE | M171: FALSE | N171: TRUE | O171: FALSE | AQ171: 699400
A172: 140 | B172: =IF(A172>$A$8,"",OFFSET(InputPriceData!B$15,$A172+$A$11,0,1,1)) -> 2019-07-29 | C172: =IF(A172>$A$8,"",OFFSET(InputPriceData!G$15,CalculationsAndCharts!$A172+$A$11,IF($C$5,8,0),1,1)) -> 659200 | D172: =IF(A172>$A$8,"",OFFSET(InputPriceData!C$15,CalculationsAndCharts!$A172+$A$11,IF($C$5,8,0),1,1)) -> 365.06 | E172: =IF(A172>$A$8,"",OFFSET(InputPriceData!D$15,CalculationsAndCharts!$A172+$A$11,IF($C$5,8,0),1,1)) -> 365.75 | F172: =IF(A172>$A$8,"",OFFSET(InputPriceData!E$15,CalculationsAndCharts!$A172+$A$11,IF($C$5,8,0),1,1)) -> 363.62 | G172: =IF(A172>$A$8,"",OFFSET(InputPriceData!F$15,CalculationsAndCharts!$A172+$A$11,IF($C$5,8,0),1,1)) -> 365.27 | H172: 98454300 | I172: 96718050.13 | J172: 94913522.72 | K172: 0.6902991956 | L172: FALSE | M172: FALSE | N172: TRUE | O172: FALSE | AP172: 659200
A173: 141 | B173: =IF(A173>$A$8,"",OFFSET(InputPriceData!B$15,$A173+$A$11,0,1,1)) -> 2019-07-26 | C173: =IF(A173>$A$8,"",OFFSET(InputPriceData!G$15,CalculationsAndCharts!$A173+$A$11,IF($C$5,8,0),1,1)) -> 791300 | D173: =IF(A173>$A$8,"",OFFSET(InputPriceData!C$15,CalculationsAndCharts!$A173+$A$11,IF($C$5,8,0),1,1)) -> 365.26 | E173: =IF(A173>$A$8,"",OFFSET(InputPriceData!D$15,CalculationsAndCharts!$A173+$A$11,IF($C$5,8,0),1,1)) -> 366.34 | F173: =IF(A173>$A$8,"",OFFSET(InputPriceData!E$15,CalculationsAndCharts!$A173+$A$11,IF($C$5,8,0),1,1)) -> 363.45 | G173: =IF(A173>$A$8,"",OFFSET(InputPriceData!F$15,CalculationsAndCharts!$A173+$A$11,IF($C$5,8,0),1,1)) -> 365.11 | H173: 97795100 | I173: 96139300.18 | J173: 94512516.63 | K173: 0.6861873357 | L173: FALSE | M173: FALSE | N173: TRUE | O173: FALSE | AQ173: 791300
A174: 142 | B174: =IF(A174>$A$8,"",OFFSET(InputPriceData!B$15,$A174+$A$11,0,1,1)) -> 2019-07-25 | C174: =IF(A174>$A$8,"",OFFSET(InputPriceData!G$15,CalculationsAndCharts!$A174+$A$11,IF($C$5,8,0),1,1)) -> 1143300 | D174: =IF(A174>$A$8,"",OFFSET(InputPriceData!C$15,CalculationsAndCharts!$A174+$A$11,IF($C$5,8,0),1,1)) -> 364.42 | E174: =IF(A174>$A$8,"",OFFSET(InputPriceData!D$15,CalculationsAndCharts!$A174+$A$11,IF($C$5,8,0),1,1)) -> 368.32 | F174: =IF(A174>$A$8,"",OFFSET(InputPriceData!E$15,CalculationsAndCharts!$A174+$A$11,IF($C$5,8,0),1,1)) -> 362.83 | G174: =IF(A174>$A$8,"",OFFSET(InputPriceData!F$15,CalculationsAndCharts!$A174+$A$11,IF($C$5,8,0),1,1)) -> 365.96 | H174: 98586400 | I174: 95587366.91 | J174: 94151009.17 | K174: 0.6889190861 | L174: FALSE | M174: FALSE | N174: TRUE | O174: FALSE | AP174: 1143300
A175: 143 | B175: =IF(A175>$A$8,"",OFFSET(InputPriceData!B$15,$A175+$A$11,0,1,1)) -> 2019-07-24 | C175: =IF(A175>$A$8,"",OFFSET(InputPriceData!G$15,CalculationsAndCharts!$A175+$A$11,IF($C$5,8,0),1,1)) -> 1900400 | D175: =IF(A175>$A$8,"",OFFSET(InputPriceData!C$15,CalculationsAndCharts!$A175+$A$11,IF($C$5,8,0),1,1)) -> 353.98 | E175: =IF(A175>$A$8,"",OFFSET(InputPriceData!D$15,CalculationsAndCharts!$A175+$A$11,IF($C$5,8,0),1,1)) -> 364.64 | F175: =IF(A175>$A$8,"",OFFSET(InputPriceData!E$15,CalculationsAndCharts!$A175+$A$11,IF($C$5,8,0),1,1)) -> 353.78 | G175: =IF(A175>$A$8,"",OFFSET(InputPriceData!F$15,CalculationsAndCharts!$A175+$A$11,IF($C$5,8,0),1,1)) -> 364.56 | H175: 97443100 | I175: 94587689.21 | J175: 93831818.57 | K175: 0.6750606007 | L175: TRUE | M175: FALSE | N175: TRUE | O175: FALSE | Z175: 125000000 | AD175: 453.59325 | AP175: 1900400
A176: 144 | B176: =IF(A176>$A$8,"",OFFSET(InputPriceData!B$15,$A176+$A$11,0,1,1)) -> 2019-07-23 | C176: =IF(A176>$A$8,"",OFFSET(InputPriceData!G$15,CalculationsAndCharts!$A176+$A$11,IF($C$5,8,0),1,1)) -> 2343900 | D176: =IF(A176>$A$8,"",OFFSET(InputPriceData!C$15,CalculationsAndCharts!$A176+$A$11,IF($C$5,8,0),1,1)) -> 358.73 | E176: =IF(A176>$A$8,"",OFFSET(InputPriceData!D$15,CalculationsAndCharts!$A176+$A$11,IF($C$5,8,0),1,1)) -> 358.73 | F176: =IF(A176>$A$8,"",OFFSET(InputPriceData!E$15,CalculationsAndCharts!$A176+$A$11,IF($C$5,8,0),1,1)) -> 346.68 | G176: =IF(A176>$A$8,"",OFFSET(InputPriceData!F$15,CalculationsAndCharts!$A176+$A$11,IF($C$5,8,0),1,1)) -> 353.59 | H176: 95542700 | I176: 93635885.61 | J176: 93663847.31 | K176: 0.638111254 | L176: FALSE | M176: FALSE | N176: FALSE | O176: TRUE | AQ176: 2343900
A177: 145 | B177: =IF(A177>$A$8,"",OFFSET(InputPriceData!B$15,$A177+$A$11,0,1,1)) -> 2019-07-22 | C177: =IF(A177>$A$8,"",OFFSET(InputPriceData!G$15,CalculationsAndCharts!$A177+$A$11,IF($C$5,8,0),1,1)) -> 1144700 | D177: =IF(A177>$A$8,"",OFFSET(InputPriceData!C$15,CalculationsAndCharts!$A177+$A$11,IF($C$5,8,0),1,1)) -> 353.23 | E177: =IF(A177>$A$8,"",OFFSET(InputPriceData!D$15,CalculationsAndCharts!$A177+$A$11,IF($C$5,8,0),1,1)) -> 354.25 | F177: =IF(A177>$A$8,"",OFFSET(InputPriceData!E$15,CalculationsAndCharts!$A177+$A$11,IF($C$5,8,0),1,1)) -> 351.37 | G177: =IF(A177>$A$8,"",OFFSET(InputPriceData!F$15,CalculationsAndCharts!$A177+$A$11,IF($C$5,8,0),1,1)) -> 353.42 | H177: 93198800 | I177: 93000280.81 | J177: 93670061.02 | K177: 0.7640011039 | L177: FALSE | M177: FALSE | N177: FALSE | O177: TRUE | AP177: 1144700
A178: 146 | B178: =IF(A178>$A$8,"",OFFSET(InputPriceData!B$15,$A178+$A$11,0,1,1)) -> 2019-07-19 | C178: =IF(A178>$A$8,"",OFFSET(InputPriceData!G$15,CalculationsAndCharts!$A178+$A$11,IF($C$5,8,0),1,1)) -> 1463300 | D178: =IF(A178>$A$8,"",OFFSET(InputPriceData!C$15,CalculationsAndCharts!$A178+$A$11,IF($C$5,8,0),1,1)) -> 353.43 | E178: =IF(A178>$A$8,"",OFFSET(InputPriceData!D$15,CalculationsAndCharts!$A178+$A$11,IF($C$5,8,0),1,1)) -> 354.87 | F178: =IF(A178>$A$8,"",OFFSET(InputPriceData!E$15,CalculationsAndCharts!$A178+$A$11,IF($C$5,8,0),1,1)) -> 351.66 | G178: =IF(A178>$A$8,"",OFFSET(InputPriceData!F$15,CalculationsAndCharts!$A178+$A$11,IF($C$5,8,0),1,1)) -> 352.76 | H178: 92054100 | I178: 92934107.75 | J178: 93818901.07 | K178: 0.7770371383 | L178: =AND(I178>J178,I179<J179) -> FALSE | M178: =AND(I178<J178,I179>J179) -> FALSE | N178: FALSE | O178: TRUE | AQ178: 1463300
A179: 147 | B179: =IF(A179>$A$8,"",OFFSET(InputPriceData!B$15,$A179+$A$11,0,1,1)) -> 2019-07-18 | C179: =IF(A179>$A$8,"",OFFSET(InputPriceData!G$15,CalculationsAndCharts!$A179+$A$11,IF($C$5,8,0),1,1)) -> 1704900 | D179: =IF(A179>$A$8,"",OFFSET(InputPriceData!C$15,CalculationsAndCharts!$A179+$A$11,IF($C$5,8,0),1,1)) -> 354.07 | E179: =IF(A179>$A$8,"",OFFSET(InputPriceData!D$15,CalculationsAndCharts!$A179+$A$11,IF($C$5,8,0),1,1)) -> 354.16 | F179: =IF(A179>$A$8,"",OFFSET(InputPriceData!E$15,CalculationsAndCharts!$A179+$A$11,IF($C$5,8,0),1,1)) -> 348.64 | G179: =IF(A179>$A$8,"",OFFSET(InputPriceData!F$15,CalculationsAndCharts!$A179+$A$11,IF($C$5,8,0),1,1)) -> 352.02 | H179: 90590800 | I179: 93227443.67 | J179: 94015521.81 | K179: 0.7523277619 | L179: FALSE | M179: FALSE | N179: FALSE | O179: TRUE | AQ179: 1704900
A180: 148 | B180: =IF(A180>$A$8,"",OFFSET(InputPriceData!B$15,$A180+$A$11,0,1,1)) -> 2019-07-17 | C180: =IF(A180>$A$8,"",OFFSET(InputPriceData!G$15,CalculationsAndCharts!$A180+$A$11,IF($C$5,8,0),1,1)) -> 1867000 | D180: =IF(A180>$A$8,"",OFFSET(InputPriceData!C$15,CalculationsAndCharts!$A180+$A$11,IF($C$5,8,0),1,1)) -> 361.05 | E180: =IF(A180>$A$8,"",OFFSET(InputPriceData!D$15,CalculationsAndCharts!$A180+$A$11,IF($C$5,8,0),1,1)) -> 361.17 | F180: =IF(A180>$A$8,"",OFFSET(InputPriceData!E$15,CalculationsAndCharts!$A180+$A$11,IF($C$5,8,0),1,1)) -> 353.64 | G180: =IF(A180>$A$8,"",OFFSET(InputPriceData!F$15,CalculationsAndCharts!$A180+$A$11,IF($C$5,8,0),1,1)) -> 354.25 | H180: 92295700 | I180: 94106324.89 | J180: 94190650.28 | K180: 0.73974984 | L180: FALSE | M180: TRUE | N180: FALSE | O180: TRUE | AB180: 125000000 | AE180: 453.59325 | AQ180: 1867000
A181: 149 | B181: =IF(A181>$A$8,"",OFFSET(InputPriceData!B$15,$A181+$A$11,0,1,1)) -> 2019-07-16 | C181: =IF(A181>$A$8,"",OFFSET(InputPriceData!G$15,CalculationsAndCharts!$A181+$A$11,IF($C$5,8,0),1,1)) -> 1027100 | D181: =IF(A181>$A$8,"",OFFSET(InputPriceData!C$15,CalculationsAndCharts!$A181+$A$11,IF($C$5,8,0),1,1)) -> 363.67 | E181: =IF(A181>$A$8,"",OFFSET(InputPriceData!D$15,CalculationsAndCharts!$A181+$A$11,IF($C$5,8,0),1,1)) -> 364.08 | F181: =IF(A181>$A$8,"",OFFSET(InputPriceData!E$15,CalculationsAndCharts!$A181+$A$11,IF($C$5,8,0),1,1)) -> 360.86 | G181: =IF(A181>$A$8,"",OFFSET(InputPriceData!F$15,CalculationsAndCharts!$A181+$A$11,IF($C$5,8,0),1,1)) -> 361.05 | H181: 94162700 | I181: 94709866.53 | J181: 94209389.26 | K181: 0.7790381578 | L181: FALSE | M181: FALSE | N181: TRUE | O181: FALSE | AQ181: 1027100
A182: 150 | B182: =IF(A182>$A$8,"",OFFSET(InputPriceData!B$15,$A182+$A$11,0,1,1)) -> 2019-07-15 | C182: =IF(A182>$A$8,"",OFFSET(InputPriceData!G$15,CalculationsAndCharts!$A182+$A$11,IF($C$5,8,0),1,1)) -> 1010700 | D182: =IF(A182>$A$8,"",OFFSET(InputPriceData!C$15,CalculationsAndCharts!$A182+$A$11,IF($C$5,8,0),1,1)) -> 365.48 | E182: =IF(A182>$A$8,"",OFFSET(InputPriceData!D$15,CalculationsAndCharts!$A182+$A$11,IF($C$5,8,0),1,1)) -> 365.65 | F182: =IF(A182>$A$8,"",OFFSET(InputPriceData!E$15,CalculationsAndCharts!$A182+$A$11,IF($C$5,8,0),1,1)) -> 362.58 | G182: =IF(A182>$A$8,"",OFFSET(InputPriceData!F$15,CalculationsAndCharts!$A182+$A$11,IF($C$5,8,0),1,1)) -> 363.36 | H182: 95189800 | I182: 94892255.37 | J182: 94098172.09 | K182: 0.843355728 | L182: FALSE | M182: FALSE | N182: TRUE | O182: FALSE | AQ182: 1010700
A183: 151 | B183: =IF(A183>$A$8,"",OFFSET(InputPriceData!B$15,$A183+$A$11,0,1,1)) -> 2019-07-12 | C183: =IF(A183>$A$8,"",OFFSET(InputPriceData!G$15,CalculationsAndCharts!$A183+$A$11,IF($C$5,8,0),1,1)) -> 1148700 | D183: =IF(A183>$A$8,"",OFFSET(InputPriceData!C$15,CalculationsAndCharts!$A183+$A$11,IF($C$5,8,0),1,1)) -> 364.85 | E183: =IF(A183>$A$8,"",OFFSET(InputPriceData!D$15,CalculationsAndCharts!$A183+$A$11,IF($C$5,8,0),1,1)) -> 365.16 | F183: =IF(A183>$A$8,"",OFFSET(InputPriceData!E$15,CalculationsAndCharts!$A183+$A$11,IF($C$5,8,0),1,1)) -> 362.51 | G183: =IF(A183>$A$8,"",OFFSET(InputPriceData!F$15,CalculationsAndCharts!$A183+$A$11,IF($C$5,8,0),1,1)) -> 365.1 | H183: 96200500 | I183: 94793073.82 | J183: 93921709.14 | K183: 0.8574473005 | L183: FALSE | M183: FALSE | N183: TRUE | O183: FALSE | AP183: 1148700
A184: 152 | B184: =IF(A184>$A$8,"",OFFSET(InputPriceData!B$15,$A184+$A$11,0,1,1)) -> 2019-07-11 | C184: =IF(A184>$A$8,"",OFFSET(InputPriceData!G$15,CalculationsAndCharts!$A184+$A$11,IF($C$5,8,0),1,1)) -> 1358000 | D184: =IF(A184>$A$8,"",OFFSET(InputPriceData!C$15,CalculationsAndCharts!$A184+$A$11,IF($C$5,8,0),1,1)) -> 363.82 | E184: =IF(A184>$A$8,"",OFFSET(InputPriceData!D$15,CalculationsAndCharts!$A184+$A$11,IF($C$5,8,0),1,1)) -> 365.03 | F184: =IF(A184>$A$8,"",OFFSET(InputPriceData!E$15,CalculationsAndCharts!$A184+$A$11,IF($C$5,8,0),1,1)) -> 361.9 | G184: =IF(A184>$A$8,"",OFFSET(InputPriceData!F$15,CalculationsAndCharts!$A184+$A$11,IF($C$5,8,0),1,1)) -> 363.89 | H184: 95051800 | I184: 94323931.76 | J184: 93728072.54 | K184: 0.8838140195 | L184: FALSE | M184: FALSE | N184: TRUE | O184: FALSE | AP184: 1358000
A185: 153 | B185: =IF(A185>$A$8,"",OFFSET(InputPriceData!B$15,$A185+$A$11,0,1,1)) -> 2019-07-10 | C185: =IF(A185>$A$8,"",OFFSET(InputPriceData!G$15,CalculationsAndCharts!$A185+$A$11,IF($C$5,8,0),1,1)) -> 818700 | D185: =IF(A185>$A$8,"",OFFSET(InputPriceData!C$15,CalculationsAndCharts!$A185+$A$11,IF($C$5,8,0),1,1)) -> 365.64 | E185: =IF(A185>$A$8,"",OFFSET(InputPriceData!D$15,CalculationsAndCharts!$A185+$A$11,IF($C$5,8,0),1,1)) -> 368.97 | F185: =IF(A185>$A$8,"",OFFSET(InputPriceData!E$15,CalculationsAndCharts!$A185+$A$11,IF($C$5,8,0),1,1)) -> 363.51 | G185: =IF(A185>$A$8,"",OFFSET(InputPriceData!F$15,CalculationsAndCharts!$A185+$A$11,IF($C$5,8,0),1,1)) -> 363.82 | H185: 93693800 | I185: 94081309.02 | J185: 93595659.38 | K185: 0.9016761637 | L185: FALSE | M185: FALSE | N185: TRUE | O185: FALSE | AQ185: 818700
A186: 154 | B186: =IF(A186>$A$8,"",OFFSET(InputPriceData!B$15,$A186+$A$11,0,1,1)) -> 2019-07-09 | C186: =IF(A186>$A$8,"",OFFSET(InputPriceData!G$15,CalculationsAndCharts!$A186+$A$11,IF($C$5,8,0),1,1)) -> 651000 | D186: =IF(A186>$A$8,"",OFFSET(InputPriceData!C$15,CalculationsAndCharts!$A186+$A$11,IF($C$5,8,0),1,1)) -> 363.42 | E186: =IF(A186>$A$8,"",OFFSET(InputPriceData!D$15,CalculationsAndCharts!$A186+$A$11,IF($C$5,8,0),1,1)) -> 365.89 | F186: =IF(A186>$A$8,"",OFFSET(InputPriceData!E$15,CalculationsAndCharts!$A186+$A$11,IF($C$5,8,0),1,1)) -> 361.79 | G186: =IF(A186>$A$8,"",OFFSET(InputPriceData!F$15,CalculationsAndCharts!$A186+$A$11,IF($C$5,8,0),1,1)) -> 365.38 | H186: 94512500 | I186: 94210478.69 | J186: 93487737.24 | K186: 0.9208544733 | L186: FALSE | M186: FALSE | N186: TRUE | O186: FALSE | AP186: 651000
A187: 155 | B187: =IF(A187>$A$8,"",OFFSET(InputPriceData!B$15,$A187+$A$11,0,1,1)) -> 2019-07-08 | C187: =IF(A187>$A$8,"",OFFSET(InputPriceData!G$15,CalculationsAndCharts!$A187+$A$11,IF($C$5,8,0),1,1)) -> 646600 | D187: =IF(A187>$A$8,"",OFFSET(InputPriceData!C$15,CalculationsAndCharts!$A187+$A$11,IF($C$5,8,0),1,1)) -> 364.2 | E187: =IF(A187>$A$8,"",OFFSET(InputPriceData!D$15,CalculationsAndCharts!$A187+$A$11,IF($C$5,8,0),1,1)) -> 365.56 | F187: =IF(A187>$A$8,"",OFFSET(InputPriceData!E$15,CalculationsAndCharts!$A187+$A$11,IF($C$5,8,0),1,1)) -> 362.46 | G187: =IF(A187>$A$8,"",OFFSET(InputPriceData!F$15,CalculationsAndCharts!$A187+$A$11,IF($C$5,8,0),1,1)) -> 364.83 | H187: 93861500 | I187: 94109804.92 | J187: 93327128.02 | K187: 0.9175212586 | L187: FALSE | M187: FALSE | N187: TRUE | O187: FALSE | AP187: 646600
A188: 156 | B188: =IF(A188>$A$8,"",OFFSET(InputPriceData!B$15,$A188+$A$11,0,1,1)) -> 2019-07-05 | C188: =IF(A188>$A$8,"",OFFSET(InputPriceData!G$15,CalculationsAndCharts!$A188+$A$11,IF($C$5,8,0),1,1)) -> 716900 | D188: =IF(A188>$A$8,"",OFFSET(InputPriceData!C$15,CalculationsAndCharts!$A188+$A$11,IF($C$5,8,0),1,1)) -> 365.52 | E188: =IF(A188>$A$8,"",OFFSET(InputPriceData!D$15,CalculationsAndCharts!$A188+$A$11,IF($C$5,8,0),1,1)) -> 366.46 | F188: =IF(A188>$A$8,"",OFFSET(InputPriceData!E$15,CalculationsAndCharts!$A188+$A$11,IF($C$5,8,0),1,1)) -> 362.35 | G188: =IF(A188>$A$8,"",OFFSET(InputPriceData!F$15,CalculationsAndCharts!$A188+$A$11,IF($C$5,8,0),1,1)) -> 365.56 | H188: 94508100 | I188: 94192573.23 | J188: 93153199.82 | K188: 0.9268183891 | L188: FALSE | M188: FALSE | N188: TRUE | O188: FALSE | AP188: 716900
A189: 157 | B189: =IF(A189>$A$8,"",OFFSET(InputPriceData!B$15,$A189+$A$11,0,1,1)) -> 2019-07-03 | C189: =IF(A189>$A$8,"",OFFSET(InputPriceData!G$15,CalculationsAndCharts!$A189+$A$11,IF($C$5,8,0),1,1)) -> 742100 | D189: =IF(A189>$A$8,"",OFFSET(InputPriceData!C$15,CalculationsAndCharts!$A189+$A$11,IF($C$5,8,0),1,1)) -> 363.61 | E189: =IF(A189>$A$8,"",OFFSET(InputPriceData!D$15,CalculationsAndCharts!$A189+$A$11,IF($C$5,8,0),1,1)) -> 366.11 | F189: =IF(A189>$A$8,"",OFFSET(InputPriceData!E$15,CalculationsAndCharts!$A189+$A$11,IF($C$5,8,0),1,1)) -> 361.05 | G189: =IF(A189>$A$8,"",OFFSET(InputPriceData!F$15,CalculationsAndCharts!$A189+$A$11,IF($C$5,8,0),1,1)) -> 366.02 | H189: 95225000 | I189: 94087397.64 | J189: 92922227.96 | K189: 0.9265014337 | L189: FALSE | M189: FALSE | N189: TRUE | O189: FALSE | AP189: 742100
A190: 158 | B190: =IF(A190>$A$8,"",OFFSET(InputPriceData!B$15,$A190+$A$11,0,1,1)) -> 2019-07-02 | C190: =IF(A190>$A$8,"",OFFSET(InputPriceData!G$15,CalculationsAndCharts!$A190+$A$11,IF($C$5,8,0),1,1)) -> 1052800 | D190: =IF(A190>$A$8,"",OFFSET(InputPriceData!C$15,CalculationsAndCharts!$A190+$A$11,IF($C$5,8,0),1,1)) -> 357.32 | E190: =IF(A190>$A$8,"",OFFSET(InputPriceData!D$15,CalculationsAndCharts!$A190+$A$11,IF($C$5,8,0),1,1)) -> 363.24 | F190: =IF(A190>$A$8,"",OFFSET(InputPriceData!E$15,CalculationsAndCharts!$A190+$A$11,IF($C$5,8,0),1,1)) -> 356.82 | G190: =IF(A190>$A$8,"",OFFSET(InputPriceData!F$15,CalculationsAndCharts!$A190+$A$11,IF($C$5,8,0),1,1)) -> 363.24 | H190: 94482900 | I190: 93708196.85 | J190: 92663301.36 | K190: 0.9193907346 | L190: FALSE | M190: FALSE | N190: TRUE | O190: FALSE | AP190: 1052800
A191: 159 | B191: =IF(A191>$A$8,"",OFFSET(InputPriceData!B$15,$A191+$A$11,0,1,1)) -> 2019-07-01 | C191: =IF(A191>$A$8,"",OFFSET(InputPriceData!G$15,CalculationsAndCharts!$A191+$A$11,IF($C$5,8,0),1,1)) -> 1003900 | D191: =IF(A191>$A$8,"",OFFSET(InputPriceData!C$15,CalculationsAndCharts!$A191+$A$11,IF($C$5,8,0),1,1)) -> 361.11 | E191: =IF(A191>$A$8,"",OFFSET(InputPriceData!D$15,CalculationsAndCharts!$A191+$A$11,IF($C$5,8,0),1,1)) -> 362.45 | F191: =IF(A191>$A$8,"",OFFSET(InputPriceData!E$15,CalculationsAndCharts!$A191+$A$11,IF($C$5,8,0),1,1)) -> 356.8 | G191: =IF(A191>$A$8,"",OFFSET(InputPriceData!F$15,CalculationsAndCharts!$A191+$A$11,IF($C$5,8,0),1,1)) -> 357.21 | H191: 93430100 | I191: 93449962.46 | J191: 92431102.37 | K191: 0.9198520798 | L191: FALSE | M191: FALSE | N191: TRUE | O191: FALSE | AQ191: 1003900
A192: 160 | B192: =IF(A192>$A$8,"",OFFSET(InputPriceData!B$15,$A192+$A$11,0,1,1)) -> 2019-06-28 | C192: =IF(A192>$A$8,"",OFFSET(InputPriceData!G$15,CalculationsAndCharts!$A192+$A$11,IF($C$5,8,0),1,1)) -> 1369600 | D192: =IF(A192>$A$8,"",OFFSET(InputPriceData!C$15,CalculationsAndCharts!$A192+$A$11,IF($C$5,8,0),1,1)) -> 355.25 | E192: =IF(A192>$A$8,"",OFFSET(InputPriceData!D$15,CalculationsAndCharts!$A192+$A$11,IF($C$5,8,0),1,1)) -> 359.47 | F192: =IF(A192>$A$8,"",OFFSET(InputPriceData!E$15,CalculationsAndCharts!$A192+$A$11,IF($C$5,8,0),1,1)) -> 353.46 | G192: =IF(A192>$A$8,"",OFFSET(InputPriceData!F$15,CalculationsAndCharts!$A192+$A$11,IF($C$5,8,0),1,1)) -> 359.26 | H192: 94434000 | I192: 93456583.28 | J192: 92204689.01 | K192: 0.9278298323 | L192: FALSE | M192: FALSE | N192: TRUE | O192: FALSE | AP192: 1369600
A193: 161 | B193: =IF(A193>$A$8,"",OFFSET(InputPriceData!B$15,$A193+$A$11,0,1,1)) -> 2019-06-27 | C193: =IF(A193>$A$8,"",OFFSET(InputPriceData!G$15,CalculationsAndCharts!$A193+$A$11,IF($C$5,8,0),1,1)) -> 826500 | D193: =IF(A193>$A$8,"",OFFSET(InputPriceData!C$15,CalculationsAndCharts!$A193+$A$11,IF($C$5,8,0),1,1)) -> 355.69 | E193: =IF(A193>$A$8,"",OFFSET(InputPriceData!D$15,CalculationsAndCharts!$A193+$A$11,IF($C$5,8,0),1,1)) -> 356.27 | F193: =IF(A193>$A$8,"",OFFSET(InputPriceData!E$15,CalculationsAndCharts!$A193+$A$11,IF($C$5,8,0),1,1)) -> 353.05 | G193: =IF(A193>$A$8,"",OFFSET(InputPriceData!F$15,CalculationsAndCharts!$A193+$A$11,IF($C$5,8,0),1,1)) -> 354.86 | H193: 93064400 | I193: 93130777.71 | J193: 91926490.28 | K193: 0.9381850497 | L193: FALSE | M193: FALSE | N193: TRUE | O193: FALSE | AQ193: 826500
A194: 162 | B194: =IF(A194>$A$8,"",OFFSET(InputPriceData!B$15,$A194+$A$11,0,1,1)) -> 2019-06-26 | C194: =IF(A194>$A$8,"",OFFSET(InputPriceData!G$15,CalculationsAndCharts!$A194+$A$11,IF($C$5,8,0),1,1)) -> 977700 | D194: =IF(A194>$A$8,"",OFFSET(InputPriceData!C$15,CalculationsAndCharts!$A194+$A$11,IF($C$5,8,0),1,1)) -> 357.38 | E194: =IF(A194>$A$8,"",OFFSET(InputPriceData!D$15,CalculationsAndCharts!$A194+$A$11,IF($C$5,8,0),1,1)) -> 357.74 | F194: =IF(A194>$A$8,"",OFFSET(InputPriceData!E$15,CalculationsAndCharts!$A194+$A$11,IF($C$5,8,0),1,1)) -> 352.8 | G194: =IF(A194>$A$8,"",OFFSET(InputPriceData!F$15,CalculationsAndCharts!$A194+$A$11,IF($C$5,8,0),1,1)) -> 355.27 | H194: 93890900 | I194: 93152903.62 | J194: 91658870.86 | K194: 0.9417161577 | L194: FALSE | M194: FALSE | N194: TRUE | O194: FALSE | AQ194: 977700
A195: 163 | B195: =IF(A195>$A$8,"",OFFSET(InputPriceData!B$15,$A195+$A$11,0,1,1)) -> 2019-06-25 | C195: =IF(A195>$A$8,"",OFFSET(InputPriceData!G$15,CalculationsAndCharts!$A195+$A$11,IF($C$5,8,0),1,1)) -> 1168900 | D195: =IF(A195>$A$8,"",OFFSET(InputPriceData!C$15,CalculationsAndCharts!$A195+$A$11,IF($C$5,8,0),1,1)) -> 355.76 | E195: =IF(A195>$A$8,"",OFFSET(InputPriceData!D$15,CalculationsAndCharts!$A195+$A$11,IF($C$5,8,0),1,1)) -> 358.53 | F195: =IF(A195>$A$8,"",OFFSET(InputPriceData!E$15,CalculationsAndCharts!$A195+$A$11,IF($C$5,8,0),1,1)) -> 355.5 | G195: =IF(A195>$A$8,"",OFFSET(InputPriceData!F$15,CalculationsAndCharts!$A195+$A$11,IF($C$5,8,0),1,1)) -> 356.31 | H195: 94868600 | I195: 92906904.82 | J195: 91326863.58 | K195: 0.9470136318 | L195: FALSE | M195: FALSE | N195: TRUE | O195: FALSE | AP195: 1168900
A196: 164 | B196: =IF(A196>$A$8,"",OFFSET(InputPriceData!B$15,$A196+$A$11,0,1,1)) -> 2019-06-24 | C196: =IF(A196>$A$8,"",OFFSET(InputPriceData!G$15,CalculationsAndCharts!$A196+$A$11,IF($C$5,8,0),1,1)) -> 1766700 | D196: =IF(A196>$A$8,"",OFFSET(InputPriceData!C$15,CalculationsAndCharts!$A196+$A$11,IF($C$5,8,0),1,1)) -> 356.2 | E196: =IF(A196>$A$8,"",OFFSET(InputPriceData!D$15,CalculationsAndCharts!$A196+$A$11,IF($C$5,8,0),1,1)) -> 358.61 | F196: =IF(A196>$A$8,"",OFFSET(InputPriceData!E$15,CalculationsAndCharts!$A196+$A$11,IF($C$5,8,0),1,1)) -> 355.5 | G196: =IF(A196>$A$8,"",OFFSET(InputPriceData!F$15,CalculationsAndCharts!$A196+$A$11,IF($C$5,8,0),1,1)) -> 355.74 | H196: 93699700 | I196: 92253006.43 | J196: 90975743.3 | K196: 0.9581330889 | L196: FALSE | M196: FALSE | N196: TRUE | O196: FALSE | AQ196: 1766700
A197: 165 | B197: =IF(A197>$A$8,"",OFFSET(InputPriceData!B$15,$A197+$A$11,0,1,1)) -> 2019-06-21 | C197: =IF(A197>$A$8,"",OFFSET(InputPriceData!G$15,CalculationsAndCharts!$A197+$A$11,IF($C$5,8,0),1,1)) -> 1544700 | D197: =IF(A197>$A$8,"",OFFSET(InputPriceData!C$15,CalculationsAndCharts!$A197+$A$11,IF($C$5,8,0),1,1)) -> 357.96 | E197: =IF(A197>$A$8,"",OFFSET(InputPriceData!D$15,CalculationsAndCharts!$A197+$A$11,IF($C$5,8,0),1,1)) -> 358.47 | F197: =IF(A197>$A$8,"",OFFSET(InputPriceData!E$15,CalculationsAndCharts!$A197+$A$11,IF($C$5,8,0),1,1)) -> 353.36 | G197: =IF(A197>$A$8,"",OFFSET(InputPriceData!F$15,CalculationsAndCharts!$A197+$A$11,IF($C$5,8,0),1,1)) -> 355.13 | H197: 91933000 | I197: 91770775.24 | J197: 90691907.05 | K197: 0.9156130467 | L197: FALSE | M197: FALSE | N197: TRUE | O197: FALSE | AQ197: 1544700
A198: 166 | B198: =IF(A198>$A$8,"",OFFSET(InputPriceData!B$15,$A198+$A$11,0,1,1)) -> 2019-06-20 | C198: =IF(A198>$A$8,"",OFFSET(InputPriceData!G$15,CalculationsAndCharts!$A198+$A$11,IF($C$5,8,0),1,1)) -> 1048800 | D198: =IF(A198>$A$8,"",OFFSET(InputPriceData!C$15,CalculationsAndCharts!$A198+$A$11,IF($C$5,8,0),1,1)) -> 353.56 | E198: =IF(A198>$A$8,"",OFFSET(InputPriceData!D$15,CalculationsAndCharts!$A198+$A$11,IF($C$5,8,0),1,1)) -> 359.05 | F198: =IF(A198>$A$8,"",OFFSET(InputPriceData!E$15,CalculationsAndCharts!$A198+$A$11,IF($C$5,8,0),1,1)) -> 353.5 | G198: =IF(A198>$A$8,"",OFFSET(InputPriceData!F$15,CalculationsAndCharts!$A198+$A$11,IF($C$5,8,0),1,1)) -> 358.53 | H198: 93477700 | I198: 91716700.32 | J198: 90452158.56 | K198: 0.8494358876 | L198: FALSE | M198: FALSE | N198: TRUE | O198: FALSE | AP198: 1048800
A199: 167 | B199: =IF(A199>$A$8,"",OFFSET(InputPriceData!B$15,$A199+$A$11,0,1,1)) -> 2019-06-19 | C199: =IF(A199>$A$8,"",OFFSET(InputPriceData!G$15,CalculationsAndCharts!$A199+$A$11,IF($C$5,8,0),1,1)) -> 816500 | D199: =IF(A199>$A$8,"",OFFSET(InputPriceData!C$15,CalculationsAndCharts!$A199+$A$11,IF($C$5,8,0),1,1)) -> 349.59 | E199: =IF(A199>$A$8,"",OFFSET(InputPriceData!D$15,CalculationsAndCharts!$A199+$A$11,IF($C$5,8,0),1,1)) -> 352.35 | F199: =IF(A199>$A$8,"",OFFSET(InputPriceData!E$15,CalculationsAndCharts!$A199+$A$11,IF($C$5,8,0),1,1)) -> 349.03 | G199: =IF(A199>$A$8,"",OFFSET(InputPriceData!F$15,CalculationsAndCharts!$A199+$A$11,IF($C$5,8,0),1,1)) -> 351.54 | H199: 92428900 | I199: 91129700.42 | J199: 90171149.28 | K199: 0.69460469 | L199: FALSE | M199: FALSE | N199: TRUE | O199: FALSE | AP199: 816500
A200: 168 | B200: =IF(A200>$A$8,"",OFFSET(InputPriceData!B$15,$A200+$A$11,0,1,1)) -> 2019-06-18 | C200: =IF(A200>$A$8,"",OFFSET(InputPriceData!G$15,CalculationsAndCharts!$A200+$A$11,IF($C$5,8,0),1,1)) -> 826400 | D200: =IF(A200>$A$8,"",OFFSET(InputPriceData!C$15,CalculationsAndCharts!$A200+$A$11,IF($C$5,8,0),1,1)) -> 345.37 | E200: =IF(A200>$A$8,"",OFFSET(InputPriceData!D$15,CalculationsAndCharts!$A200+$A$11,IF($C$5,8,0),1,1)) -> 350.11 | F200: =IF(A200>$A$8,"",OFFSET(InputPriceData!E$15,CalculationsAndCharts!$A200+$A$11,IF($C$5,8,0),1,1)) -> 344.29 | G200: =IF(A200>$A$8,"",OFFSET(InputPriceData!F$15,CalculationsAndCharts!$A200+$A$11,IF($C$5,8,0),1,1)) -> 349.36 | H200: 91612400 | I200: 90696633.9 | J200: 89958137.92 | K200: 0.5498570794 | L200: FALSE | M200: FALSE | N200: TRUE | O200: FALSE | AP200: 826400
A201: 169 | B201: =IF(A201>$A$8,"",OFFSET(InputPriceData!B$15,$A201+$A$11,0,1,1)) -> 2019-06-17 | C201: =IF(A201>$A$8,"",OFFSET(InputPriceData!G$15,CalculationsAndCharts!$A201+$A$11,IF($C$5,8,0),1,1)) -> 904200 | D201: =IF(A201>$A$8,"",OFFSET(InputPriceData!C$15,CalculationsAndCharts!$A201+$A$11,IF($C$5,8,0),1,1)) -> 347.08 | E201: =IF(A201>$A$8,"",OFFSET(InputPriceData!D$15,CalculationsAndCharts!$A201+$A$11,IF($C$5,8,0),1,1)) -> 348.26 | F201: =IF(A201>$A$8,"",OFFSET(InputPriceData!E$15,CalculationsAndCharts!$A201+$A$11,IF($C$5,8,0),1,1)) -> 342.68 | G201: =IF(A201>$A$8,"",OFFSET(InputPriceData!F$15,CalculationsAndCharts!$A201+$A$11,IF($C$5,8,0),1,1)) -> 344.58 | H201: 90786000 | I201: 90391378.53 | J201: 89794027.7 | K201: 0.4487494042 | L201: FALSE | M201: FALSE | N201: TRUE | O201: FALSE | AQ201: 904200
A202: 170 | B202: =IF(A202>$A$8,"",OFFSET(InputPriceData!B$15,$A202+$A$11,0,1,1)) -> 2019-06-14 | C202: =IF(A202>$A$8,"",OFFSET(InputPriceData!G$15,CalculationsAndCharts!$A202+$A$11,IF($C$5,8,0),1,1)) -> 1059400 | D202: =IF(A202>$A$8,"",OFFSET(InputPriceData!C$15,CalculationsAndCharts!$A202+$A$11,IF($C$5,8,0),1,1)) -> 344.97 | E202: =IF(A202>$A$8,"",OFFSET(InputPriceData!D$15,CalculationsAndCharts!$A202+$A$11,IF($C$5,8,0),1,1)) -> 348.31 | F202: =IF(A202>$A$8,"",OFFSET(InputPriceData!E$15,CalculationsAndCharts!$A202+$A$11,IF($C$5,8,0),1,1)) -> 344.34 | G202: =IF(A202>$A$8,"",OFFSET(InputPriceData!F$15,CalculationsAndCharts!$A202+$A$11,IF($C$5,8,0),1,1)) -> 346.02 | H202: 91690200 | I202: 90259838.04 | J202: 89661283.07 | K202: 0.3893229148 | L202: FALSE | M202: FALSE | N202: TRUE | O202: FALSE | AP202: 1059400
A203: 171 | B203: =IF(A203>$A$8,"",OFFSET(InputPriceData!B$15,$A203+$A$11,0,1,1)) -> 2019-06-13 | C203: =IF(A203>$A$8,"",OFFSET(InputPriceData!G$15,CalculationsAndCharts!$A203+$A$11,IF($C$5,8,0),1,1)) -> 1203900 | D203: =IF(A203>$A$8,"",OFFSET(InputPriceData!C$15,CalculationsAndCharts!$A203+$A$11,IF($C$5,8,0),1,1)) -> 343.49 | E203: =IF(A203>$A$8,"",OFFSET(InputPriceData!D$15,CalculationsAndCharts!$A203+$A$11,IF($C$5,8,0),1,1)) -> 345.59 | F203: =IF(A203>$A$8,"",OFFSET(InputPriceData!E$15,CalculationsAndCharts!$A203+$A$11,IF($C$5,8,0),1,1)) -> 340.34 | G203: =IF(A203>$A$8,"",OFFSET(InputPriceData!F$15,CalculationsAndCharts!$A203+$A$11,IF($C$5,8,0),1,1)) -> 344.97 | H203: 90630800 | I203: 89783050.72 | J203: 89528270.85 | K203: 0.2831337587 | L203: FALSE | M203: FALSE | N203: TRUE | O203: FALSE | AP203: 1203900
A204: 172 | B204: =IF(A204>$A$8,"",OFFSET(InputPriceData!B$15,$A204+$A$11,0,1,1)) -> 2019-06-12 | C204: =IF(A204>$A$8,"",OFFSET(InputPriceData!G$15,CalculationsAndCharts!$A204+$A$11,IF($C$5,8,0),1,1)) -> 1131900 | D204: =IF(A204>$A$8,"",OFFSET(InputPriceData!C$15,CalculationsAndCharts!$A204+$A$11,IF($C$5,8,0),1,1)) -> 340.18 | E204: =IF(A204>$A$8,"",OFFSET(InputPriceData!D$15,CalculationsAndCharts!$A204+$A$11,IF($C$5,8,0),1,1)) -> 342.06 | F204: =IF(A204>$A$8,"",OFFSET(InputPriceData!E$15,CalculationsAndCharts!$A204+$A$11,IF($C$5,8,0),1,1)) -> 338.29 | G204: =IF(A204>$A$8,"",OFFSET(InputPriceData!F$15,CalculationsAndCharts!$A204+$A$11,IF($C$5,8,0),1,1)) -> 341.44 | H204: 89426900 | I204: 89500467.63 | J204: 89471653.1 | K204: 0.2075313839 | L204: FALSE | M204: FALSE | N204: TRUE | O204: FALSE | AP204: 1131900
A205: 173 | B205: =IF(A205>$A$8,"",OFFSET(InputPriceData!B$15,$A205+$A$11,0,1,1)) -> 2019-06-11 | C205: =IF(A205>$A$8,"",OFFSET(InputPriceData!G$15,CalculationsAndCharts!$A205+$A$11,IF($C$5,8,0),1,1)) -> 1684300 | D205: =IF(A205>$A$8,"",OFFSET(InputPriceData!C$15,CalculationsAndCharts!$A205+$A$11,IF($C$5,8,0),1,1)) -> 347.86 | E205: =IF(A205>$A$8,"",OFFSET(InputPriceData!D$15,CalculationsAndCharts!$A205+$A$11,IF($C$5,8,0),1,1)) -> 348.4 | F205: =IF(A205>$A$8,"",OFFSET(InputPriceData!E$15,CalculationsAndCharts!$A205+$A$11,IF($C$5,8,0),1,1)) -> 336.86 | G205: =IF(A205>$A$8,"",OFFSET(InputPriceData!F$15,CalculationsAndCharts!$A205+$A$11,IF($C$5,8,0),1,1)) -> 339.99 | H205: 88295000 | I205: 89524990.17 | J205: 89465249.88 | K205: 0.1407993508 | L205: FALSE | M205: FALSE | N205: TRUE | O205: FALSE | AQ205: 1684300
A206: 174 | B206: =IF(A206>$A$8,"",OFFSET(InputPriceData!B$15,$A206+$A$11,0,1,1)) -> 2019-06-10 | C206: =IF(A206>$A$8,"",OFFSET(InputPriceData!G$15,CalculationsAndCharts!$A206+$A$11,IF($C$5,8,0),1,1)) -> 1356200 | D206: =IF(A206>$A$8,"",OFFSET(InputPriceData!C$15,CalculationsAndCharts!$A206+$A$11,IF($C$5,8,0),1,1)) -> 353.75 | E206: =IF(A206>$A$8,"",OFFSET(InputPriceData!D$15,CalculationsAndCharts!$A206+$A$11,IF($C$5,8,0),1,1)) -> 354.41 | F206: =IF(A206>$A$8,"",OFFSET(InputPriceData!E$15,CalculationsAndCharts!$A206+$A$11,IF($C$5,8,0),1,1)) -> 346.6 | G206: =IF(A206>$A$8,"",OFFSET(InputPriceData!F$15,CalculationsAndCharts!$A206+$A$11,IF($C$5,8,0),1,1)) -> 347.46 | H206: 89979300 | I206: 89934986.89 | J206: 89451974.25 | K206: 0.1307040287 | L206: FALSE | M206: FALSE | N206: TRUE | O206: FALSE | AQ206: 1356200
... 1076 more rows

Sheet Follow
A1: Stocks and Indexes I wish to follow
A3: To ease following a stock, enter a Yahoo Finance acceptable symbol in column "A" anywhere below cell "A9".
A4: Thereafter you may doubleclick the cell containing a symbol of interest to initiate data retrieval and charting for that symbol.
A7: Symbol
A8: To | B8: Description | C8: Last Trade as of most recent check
A9: Follow | C9: Date | D9: Time | E9: Open | F9: High | G9: Low | H9: Close | I9: Volume | J9: Change | K9: Retrieved @
A10: A | B10: Agilent Technologies, Inc. (A) -NYSE (Daily) | C10: 2020-01-31 | D10: 16:03:00 | E10: 84.029999 | F10: 84.339996 | G10: 82.339996 | H10: 82.559998 | I10: 2850400 | J10: -1.819999 | K10: 2020-02-02T15:04:08
A11: AA | B11: Alcoa Corporation (AA) -NYSE (Daily) | C11: 2020-01-31 | D11: 16:04:00 | E11: 14.01 | F11: 14.24 | G11: 13.62 | H11: 13.95 | I11: 9931500 | J11: -0.34 | K11: 2020-02-02T15:07:13
A12: AAL | B12: American Airlines Group Inc. (AAL) -NasdaqGS (Daily) | C12: 2019-12-16 | D12: 11:39:00 | E12: 27.620001 | F12: 28.306999 | G12: 27.610001 | H12: 28.209999 | I12: 2680563 | J12: 0.729999
A13: AAPL | B13: Apple Inc. (AAPL) -NasdaqGS (Daily) | C13: 2020-02-14 | D13: 16:00:00 | E13: 324.73999 | F13: 325.980011 | G13: 322.850006 | H13: 324.950012 | I13: 19982500 | J13: 0.080017 | K13: 2020-02-15T17:16:33
A14: ADM | B14: Archer-Daniels-Midland Company (ADM) -NYSE (Weekly) | C14: 2018-07-13 | D14: 16:00:00 | E14: 47.5 | F14: 47.84 | G14: 47.169998 | H14: 47.57 | I14: 2402809 | J14: 0
A15: ALGN | B15: Align Technology, Inc. (ALGN) -NasdaqGS (Daily) | C15: 2020-01-30 | D15: 16:00:00 | E15: 248.740005 | F15: 264.450012 | G15: 248.350006 | H15: 262.890015 | I15: 1833160 | J15: 1.290009
A16: AMC | B16: AMC Entertainment Holdings, Inc. (AMC) -NYSE (Weekly) | C16: 2018-07-13 | D16: 16:02:00 | E16: 17.049999 | F16: 17.15 | G16: 16.525 | H16: 17.049999 | I16: 1442776 | J16: 0
A17: BSX | B17: Boston Scientific Corporation C (BSX) -NYQ (Daily) | C17: 2015-03-13 | D17: 16:01:00 | E17: 16.84 | F17: 16.91 | G17: 16.44 | H17: 16.61 | I17: 7262460 | J17: -0.28
A18: CASY | B18: Casey's General Stores, Inc. (CASY) -NasdaqGS (Daily) | C18: 2019-04-10 | D18: 16:00:00 | E18: 128.979996 | F18: 130.330002 | G18: 128.779999 | H18: 130.179993 | I18: 351300 | J18: 1.489991
A19: CAT | B19: Caterpillar Inc. (CAT) -NYSE (Daily) | C19: 2020-02-14 | D19: 16:00:00 | E19: 139.490005 | F19: 139.619995 | G19: 136.889999 | H19: 137.990005 | I19: 2813400 | J19: -1.729996 | K19: 2020-02-15T15:46:18
A20: CSCO | B20: Cisco Systems, In (CSCO) -NasdaqNM (Daily) | C20: 2015-02-19 | D20: 16:00:00 | E20: 29.32 | F20: 29.39 | G20: 29.13 | H20: 29.31 | I20: 21469012 | J20: -0.18
A21: CVS | B21: CVS Health Corporation (CVS) -NYSE (Daily) | C21: 2020-01-31 | D21: 16:00:00 | E21: 69.349998 | F21: 69.349998 | G21: 67.400002 | H21: 67.82 | I21: 9867100 | J21: -1.889999 | K21: 2020-02-02T17:13:59
A22: DIS | B22: The Walt Disney Company (DIS) -NYSE (Daily) | C22: 2020-02-14 | D22: 16:05:00 | E22: 141.100006 | F22: 141.279999 | G22: 139.130005 | H22: 139.539993 | I22: 9107300 | J22: -1.360001 | K22: 2020-02-15T15:42:29
A23: F | B23: Ford Motor Company (F) -NYSE (Daily) | C23: 2020-01-31 | D23: 16:03:00 | E23: 8.78 | F23: 8.84 | G23: 8.74 | H23: 8.82 | I23: 59781000 | J23: -0.02 | K23: 2020-02-02T15:09:03
A24: FAS | B24: Direxion Daily Financial Bull 3X ETF (FAS) -NYSEArca (Daily) | C24: 2017-10-13 | D24: 16:00:00 | E24: 58.099998 | F24: 58.939999 | G24: 57.43 | H24: 58.450001 | I24: 1709300 | J24: 0.07
A25: FB | B25: Facebook, Inc. (FB) -NasdaqGS (Daily) | C25: 2020-02-14 | D25: 16:00:00 | E25: 214 | F25: 214.929993 | G25: 212.649994 | H25: 214.179993 | I25: 10727400 | J25: 1.039994 | K25: 2020-02-15T17:19:34
A26: GSK | B26: GlaxoSmithKline plc (GSK) -NYSE (Daily) | C26: 2019-08-14 | D26: 11:15:00 | E26: 40.060001 | F26: 40.209999 | G26: 39.895 | H26: 39.93 | I26: 941699 | J26: -0.310002
A27: GDX | B27: VanEck Vectors Gold Miners ETF (GDX) -NYSEArca (Daily) | C27: 2020-01-31 | D27: 16:00:00 | E27: 28.799999 | F27: 29.24 | G27: 28.76 | H27: 28.99 | I27: 41946000 | J27: 0.26 | K27: 2020-02-02T15:11:17
A28: GOOG | B28: Alphabet Inc. (GOOG) -NasdaqGS (Daily) | C28: 2020-02-14 | D28: 16:00:00 | E28: 1515.599976 | F28: 1520.73999 | G28: 1507.339966 | H28: 1520.73999 | I28: 1196700 | J28: 6.079956 | K28: 2020-02-15T17:20:39
A29: HD | B29: The Home Depot, Inc. (HD) -NYSE (Daily) | C29: 2020-02-14 | D29: 15:20:00 | E29: 243.440002 | F29: 245.199997 | G29: 242.75 | H29: 243.800003 | I29: 1736116 | J29: 1.440002 | K29: 2020-02-14T15:20:39
A30: HSY | B30: The Hershey Company (HSY) -NYSE (Daily) | C30: 2019-04-10 | D30: 16:02:00 | E30: 116.099998 | F30: 116.43 | G30: 115.75 | H30: 116.309998 | I30: 574600 | J30: 0.290001
A31: HTLD | B31: Heartland Express, Inc. (HTLD) -NasdaqGS (Daily) | C31: 2018-04-16 | D31: 13:57:00 | E31: 18.17 | F31: 18.620001 | G31: 18.129999 | H31: 18.540001 | I31: 202134 | J31: 0.540001
A32: IBM | B32: International Business Machines Corporation (IBM) -NYSE (Daily) | C32: 2019-08-14 | D32: 11:24:00 | E32: 133.910004 | F32: 134.160004 | G32: 132.130005 | H32: 132.460098 | I32: 1281528 | J32: -1.659897
A33: INTC | B33: Intel Corporation (INTC) -NasdaqGS (Daily) | C33: 2020-02-14 | D33: 16:00:00 | E33: 67.519997 | F33: 67.860001 | G33: 66.82 | H33: 67.269997 | I33: 13402800 | J33: -0.170005 | K33: 2020-02-15T17:21:41
A34: JAH | B34: Jarden Corporation Common Stock (JAH) -NYQ (Daily) | C34: 2016-01-08 | D34: 16:02:00 | E34: 53.82 | F34: 53.88 | G34: 52.65 | H34: 52.73 | I34: 4519480 | J34: -0.81
A35: JNJ | B35: Johnson & Johnson (JNJ) -NYSE (Daily) | C35: 2019-08-14 | D35: 10:33:00 | E35: 132.529999 | F35: 132.539993 | G35: 131.419998 | H35: 131.759995 | I35: 870520 | J35: -0.169998
A36: KO | B36: The Coca-Cola Company (KO) -NYSE (Daily) | C36: 2020-02-14 | D36: 16:00:00 | E36: 59.630001 | F36: 60.07 | G36: 59.619999 | H36: 59.950001 | I36: 9965500 | J36: 0.34 | K36: 2020-02-15T15:40:39
A37: LOW | B37: Lowe's Companies, Inc. (LOW) -NYSE (Daily) | C37: 2019-06-17 | D37: 15:29:00 | E37: 99.769997 | F37: 100.735001 | G37: 99.334999 | H37: 100.360001 | I37: 2967215 | J37: 0.730004
A38: LMT | B38: Lockheed Martin Corporation (LMT) -NYSE (Daily) | C38: 2020-02-14 | D38: 16:05:00 | E38: 434.980011 | F38: 438.470001 | G38: 434.309998 | H38: 437.850006 | I38: 948600 | J38: 3.149994 | K38: 2020-02-15T17:25:36
A39: MCD | B39: McDonald's Corporation (MCD) -NYSE (Daily) | C39: 2020-02-14 | D39: 16:00:00 | E39: 217.5 | F39: 217.839996 | G39: 216.380005 | H39: 217.089996 | I39: 1719900 | J39: -0.330002 | K39: 2020-02-15T15:26:23
A40: MDT | B40: Medtronic plc (MDT) -NYSE (Daily) | C40: 2020-01-31 | D40: 16:01:00 | E40: 117.760002 | F40: 118.150002 | G40: 115 | H40: 115.440002 | I40: 6067800 | J40: -2.71 | K40: 2020-02-02T15:18:49
A41: MGM | B41: MGM Resorts International (MGM) -NYSE (Daily) | C41: 2020-01-31 | D41: 16:02:00 | E41: 31.209999 | F41: 31.23 | G41: 30.65 | H41: 31.059999 | I41: 6999900 | J41: -0.24 | K41: 2020-02-02T15:19:51
A42: MO | B42: Altria Group, Inc. (MO) -NYSE (Daily) | C42: 2020-01-31 | D42: 16:05:00 | E42: 48.25 | F42: 48.799999 | G42: 47.240002 | H42: 47.529999 | I42: 11790800 | J42: -0.470001 | K42: 2020-02-02T15:20:55
A43: MSFT | B43: Microsoft Corporation (MSFT) -NasdaqGS (Daily) | C43: 2019-04-10 | D43: 16:00:00 | E43: 119.760002 | F43: 120.349998 | G43: 119.540001 | H43: 120.190002 | I43: 16123400 | J43: 0.910003
A44: NFLX | B44: Netflix, Inc. (NFLX) -NasdaqGS (Daily) | C44: 2020-02-14 | D44: 16:00:00 | E44: 381.470001 | F44: 385.149994 | G44: 379.429993 | H44: 380.399994 | I44: 3734100 | J44: -1 | K44: 2020-02-15T17:20:02
A45: NUGT | B45: Direxion Daily Gold Miners Index Bull 3X Shares (NUGT) -NYSEArca (Daily) | C45: 2020-01-31 | D45: 16:00:00 | E45: 32.439999 | F45: 33.830002 | G45: 32.240002 | H45: 33.02 | I45: 11325200 | J45: 0.84 | K45: 2020-02-02T15:21:51
A46: NVS | B46: Novartis AG (NVS) -NYSE (Daily) | C46: 2018-04-13 | D46: 16:02:00 | E46: 81.150002 | F46: 81.269997 | G46: 80.699997 | H46: 81.040001 | I46: 1037000 | J46: -0.400001
A47: NVDA | B47: NVIDIA Corporation (NVDA) -NasdaqGS (Daily) | C47: 2020-02-14 | D47: 16:00:00 | E47: 287.26001 | F47: 294.970001 | G47: 286 | H47: 289.790009 | I47: 26017300 | J47: 19.01001 | K47: 2020-02-15T15:47:29
A48: PRU | B48: Prudential Financial, Inc. (PRU) -NYSE (Daily) | C48: 2020-01-31 | D48: 16:02:00 | E48: 92.040001 | F48: 92.599998 | G48: 90.580002 | H48: 91.059998 | I48: 2695900 | J48: -2.050003 | K48: 2020-02-02T15:22:42
A49: PSEC | B49: Prospect Capital Corporation (PSEC) -NasdaqGS (Daily) | C49: 2020-02-14 | D49: 16:00:00 | E49: 6.53 | F49: 6.56 | G49: 6.51 | H49: 6.52 | I49: 1235500 | J49: -0.04 | K49: 2020-02-15T14:43:16
A50: RPM | B50: RPM International Inc. (RPM) -NYSE (Daily) | C50: 2020-02-14 | D50: 16:02:00 | E50: 75.459999 | F50: 76.080002 | G50: 75.209999 | H50: 75.440002 | I50: 286100 | J50: 0.090004 | K50: 2020-02-15T14:39:03
A51: RSP | B51: Invesco S&P 500 Equal Weight ETF (RSP) -NYSEArca (Daily) | C51: 2020-01-31 | D51: 16:00:00 | E51: 115.279999 | F51: 115.32 | G51: 113.230003 | H51: 113.540001 | I51: 747600 | J51: -2.309997 | K51: 2020-02-02T15:28:52
A52: SPR | B52: Spirit AeroSystems Holdings, Inc. (SPR) -NYSE (Daily) | C52: 2020-01-31 | D52: 16:03:00 | E52: 65 | F52: 65.419998 | G52: 64.040001 | H52: 65.32 | I52: 1565400 | J52: 0.239998 | K52: 2020-02-02T15:26:08
A53: SWKS | B53: Skyworks Solutions, Inc. (SWKS) -NasdaqGS (Daily) | C53: 2020-01-31 | D53: 16:00:00 | E53: 115.5 | F53: 115.739998 | G53: 112.720001 | H53: 113.150002 | I53: 2444600 | J53: -3.080001 | K53: 2020-02-02T15:26:46
A54: TOL | B54: Toll Brothers, Inc. (TOL) -NYSE (Daily) | C54: 2020-02-14 | D54: 16:03:00 | E54: 48.080002 | F54: 48.240002 | G54: 46.75 | H54: 47.580002 | I54: 4363800 | J54: -0.529999 | K54: 2020-02-15T13:44:48
A55: TSLA | B55: Tesla, Inc. (TSLA) -NasdaqGS (Daily) | C55: 2020-02-14 | D55: 16:00:00 | E55: 787.219971 | F55: 812.969971 | G55: 785.5 | H55: 800.030029 | I55: 15656900 | J55: -3.969971 | K55: 2020-02-15T15:51:12
A56: UNP | B56: Union Pacific Corporation (UNP) -NYSE (Daily) | C56: 2020-01-31 | D56: 16:02:00 | E56: 181.690002 | F56: 182.470001 | G56: 178.5 | H56: 179.419998 | I56: 3653700 | J56: -3.650009 | K56: 2020-02-02T15:27:25
A57: VZ | B57: Verizon Communications Inc. (VZ) -NYSE (Daily) | C57: 2019-04-10 | D57: 16:00:00 | E57: 58.400002 | F57: 58.700001 | G57: 58.360001 | H57: 58.610001 | I57: 8022000 | J57: 0.209999
A58: WBA | B58: Walgreens Boots Alliance, Inc. (WBA) -NasdaqGS (Daily) | C58: 2020-01-31 | D58: 16:00:00 | E58: 51.709999 | F58: 51.919998 | G58: 50.66 | H58: 50.849998 | I58: 6532300 | J58: -1.100003 | K58: 2020-02-02T15:28:06
A59: WMT | B59: Walmart Inc. (WMT) -NYSE (Daily) | C59: 2018-07-13 | D59: 16:00:00 | E59: 86.519997 | F59: 87.989998 | G59: 86.5 | H59: 87.699997 | I59: 6388600 | J59: 1.18
A61: ^AEX | B61: AEX-INDEX (^AEX) -Amsterdam (Daily) | C61: 2020-02-12 | D61: 17:49:00 | E61: 624.789978 | F61: 629.109985 | G61: 624.52002 | H61: 629.030029 | I61: 0 | J61: 5.180053 | K61: 2020-02-12T12:04:27
A62: ^AORD | B62: ALL ORDINARIES (^AORD) -ASX (Daily) | C62: 2020-02-14 | D62: 17:11:00 | E62: 7204.600098 | F62: 7235.600098 | G62: 7199.799805 | H62: 7227.100098 | I62: 0 | J62: 22.5 | K62: 2020-02-14T16:01:08
A63: ^DJI | B63: Dow Jones Industrial Average (^DJI) -DJI (Daily) | C63: 2020-02-14 | D63: 17:06:00 | E63: 29440.4707 | F63: 29463.03906 | G63: 29283.17969 | H63: 29398.08008 | I63: 232546894 | J63: -25.230469 | K63: 2020-02-14T20:46:41
A64: ^FTSE | B64: FTSE 100 (^FTSE) -FTSE (Daily) | C64: 2018-02-14 | D64: 15:51:00 | E64: 7168.009766 | F64: 7243.149902 | G64: 7145.72998 | H64: 7222.319824 | I64: 0 | J64: 54.319824
A65: ^GSPC | B65: S&P 500 (^GSPC) -SNP (Daily) | C65: 2019-09-13 | D65: 16:56:00 | E65: 3012.209961 | F65: 3017.330078 | G65: 3002.899902 | H65: 3007.389893 | I65: 3520060000 | J65: -2.180175
A66: ^HSI | B66: HANG SENG INDEX (^HSI) -HKSE (Daily) | C66: 2020-02-14 | D66: 16:08:00 | E66: 27698.56055 | F66: 27960.66016 | G66: 27695.58984 | H66: 27815.59961 | I66: 1445335900 | J66: 85.599609 | K66: 2020-02-14T21:05:35
A67: ^MID | B67: S&P MID CAP 400 INDEX (^MID) -NYSE (Daily) | C67: 2020-02-14 | D67: 16:06:00 | E67: 2099.459961 | F67: 2100.51001 | G67: 2089.610107 | H67: 2096.610107 | I67: 0 | J67: -0.679932 | K67: 2020-02-14T21:04:41
A68: ^NDX | B68: NASDAQ 100 (^NDX) -Nasdaq GIDS (Daily) | C68: 2020-02-14 | D68: 16:51:00 | E68: 9613.881836 | F68: 9634.750977 | G68: 9583.083008 | H68: 9623.580078 | I68: 469910279 | J68: 27.879883 | K68: 2020-02-14T16:52:02
A69: ^NYA | B69: NYSE COMPOSITE (DJ) (^NYA) -NYSE (Daily) | C69: 2018-07-13 | D69: 16:15:00 | E69: 12744.79981 | F69: 12783.24023 | G69: 12727.75977 | H69: 12769.5 | I69: 2614000000 | J69: 8.040039
A70: ^OEX | B70: S&P 100 INDEX (^OEX) -Chicago Options (Daily) | C70: 2019-09-13 | D70: 16:56:00 | E70: 1332.27002 | F70: 1334.420044 | G70: 1328.73999 | H70: 1330.969971 | I70: 3520060000 | J70: -1.010009
A71: ^RUT | B71: Russell 2000 (^RUT) -Chicago Options (Daily) | C71: 2019-09-13 | D71: 16:30:00 | E71: 1579.22998 | F71: 1589.449951 | G71: 1577.109985 | H71: 1578.140015 | I71: 35200600 | J71: 3.070069
A72: ^SSEC | B72: SSE Composite Index (^SSEC) -Shanghai (Daily) | C72: 2020-02-12 | D72: 15:00:00 | E72: 2895.556152 | F72: 2926.89917 | G72: 2892.424072 | H72: 2926.89917 | I72: 3398506420 | J72: -404.622803 | K72: 2020-02-12T12:11:40
A73: ^VIX | B73: VOLATILITY S&P 500 (^VIX) -WCB (Daily) | C73: 2015-12-04 | D73: 16:14:00 | E73: 17.43 | F73: 17.65 | G73: 14.69 | H73: 14.81 | I73: 0 | J73: -3.3
A74: IWM | B74: iShares Russell 2000 ETF (IWM) -NYSEArca (Daily) | C74: 2018-04-13 | D74: 16:00:00 | E74: 155.289993 | F74: 155.330002 | G74: 153.509995 | H74: 153.949997 | I74: 19710100 | J74: -0.809998
A75: QQQ | B75: Invesco QQQ Trust (QQQ) -NasdaqGM (Daily) | C75: 2019-08-12 | D75: 16:00:00 | E75: 185.339996 | F75: 185.889999 | G75: 183.5 | H75: 184.350006 | I75: 23162601 | J75: -2.139999
A76: SPY | B76: SPDR S&P 500 ETF Trust (SPY) -NYSEArca (Daily) | C76: 2020-01-31 | D76: 16:00:00 | E76: 327 | F76: 327.170013 | G76: 320.730011 | H76: 321.730011 | I76: 113688600 | J76: -5.949982 | K76: 2020-02-02T17:14:09
A78: ACAD | B78: ACADIA Pharmaceut (ACAD) -NasdaqNM (Daily) | C78: 2014-07-21 | D78: 16:00:00 | E78: 20.13 | F78: 20.55 | G78: 19.8101 | H78: 20.31 | I78: 691016
A79: CLDX | B79: Celldex Therapeut (CLDX) -NasdaqNM (Daily) | C79: 2015-02-02 | D79: 16:00:00 | E79: 21.47 | F79: 21.69 | G79: 20.11 | H79: 21.02 | I79: 1570418 | J79: -0.4
A80: ICPT | B80: Intercept Pharmac (ICPT) -NasdaqNM (Daily) | C80: 2014-07-21 | D80: 16:00:00 | E80: 215.97 | F80: 218.43 | G80: 213.05 | H80: 218.14 | I80: 191276
A81: INO | B81: Inovio Pharmaceut (INO) -AMEX (Daily) | C81: 2014-07-21 | D81: 16:00:00 | E81: 10.3 | F81: 11.08 | G81: 10.1 | H81: 11.01 | I81: 1800796
A82: JCP | B82: J. C. Penney Company, Inc. (JCP) -NYSE (Daily) | C82: 2017-12-07 | D82: 16:01:00 | E82: 3.34 | F82: 3.4 | G82: 3.25 | H82: 3.27 | I82: 14485464 | J82: -0.07
A83: LCI | B83: Lannett Co Inc Co (LCI) -NYSE (Daily) | C83: 2014-07-21 | D83: 16:02:00 | E83: 38.09 | F83: 38.803 | G83: 36.5101 | H83: 37.76 | I83: 611367
A84: NPSP | B84: NPS Pharmaceutica (NPSP) -NasdaqNM (Daily) | C84: 2014-07-21 | D84: 15:59:00 | E84: 28.75 | F84: 29.43 | G84: 28.31 | H84: 29.29 | I84: 1126758
A85: PBYI | B85: Puma Biotechnolog (PBYI) -NYSE (Daily) | C85: 2014-07-21 | D85: 16:02:00 | E85: 58.27 | F85: 59.46 | G85: 57.39 | H85: 58.98 | I85: 348030
